Body name,Service Area,Dept,Expenses Type,Capital/Revenue,Detailed Expenses Type,Expense Code,Date,Transaction number,Amount,Supplier Name,Supplier ID
WANDSWORTH COUNCIL,CS,,SERVICES,Revenue,CONSULTANTS FEES,100534200,28-Jul-16,1006603,720.00,AGB ENVIRONMENTAL LTD,SP0004287
WANDSWORTH COUNCIL,CS,,SERVICES,Revenue,CONSULTANTS FEES,100534200,05-Jul-16,985594,"10,000.00",KNIGHT FRANK LLP,SP0004347
WANDSWORTH COUNCIL,CS,,SERVICES,Revenue,CONSULTANTS FEES,10053420K0002P,29-Jul-16,1006369,"3,500.00",BROADWAY MALYAN,SP0007508
WANDSWORTH COUNCIL,CS,,OTHER AGENCIES,Revenue,HEALTHWATCH CONTRACT,102043830,06-Jul-16,982791,"35,911.00",WANDSWORTH CARE ALLIANCE,SP0008176
WANDSWORTH COUNCIL,CS,,COMMUNICATIONS & COMP,Revenue,COMMUNICATIONS - POSTAGE,103036000,07-Jul-16,986076,"1,359.65",ROYAL MAIL,SP0001067
WANDSWORTH COUNCIL,CS,,COMMUNICATIONS & COMP,Revenue,COMMUNICATIONS - POSTAGE,103036000,07-Jul-16,986076,584.64,ROYAL MAIL,SP0001067
WANDSWORTH COUNCIL,CS,,COMMUNICATIONS & COMP,Revenue,COMMUNICATIONS - POSTAGE,103036000,05-Jul-16,986077,522.88,ROYAL MAIL,SP0001067
WANDSWORTH COUNCIL,CS,,COMMUNICATIONS & COMP,Revenue,COMMUNICATIONS - POSTAGE,103036000,07-Jul-16,986078,"23,185.51",ROYAL MAIL,SP0001067
WANDSWORTH COUNCIL,CS,,COMMUNICATIONS & COMP,Revenue,COMMUNICATIONS - POSTAGE,103036000,07-Jul-16,986078,440.75,ROYAL MAIL,SP0001067
WANDSWORTH COUNCIL,CS,,COMMUNICATIONS & COMP,Revenue,COMMUNICATIONS - POSTAGE,103036000,05-Jul-16,986079,"3,793.95",ROYAL MAIL,SP0001067
WANDSWORTH COUNCIL,CS,,COMMUNICATIONS & COMP,Revenue,COMMUNICATIONS - POSTAGE,103036000,07-Jul-16,986080,"1,446.21",ROYAL MAIL,SP0001067
WANDSWORTH COUNCIL,CS,,COMMUNICATIONS & COMP,Revenue,COMMUNICATIONS - POSTAGE,103036000,07-Jul-16,986080,"1,040.81",ROYAL MAIL,SP0001067
WANDSWORTH COUNCIL,CS,,COMMUNICATIONS & COMP,Revenue,COMMUNICATIONS - POSTAGE,103036000,07-Jul-16,986081,826.65,ROYAL MAIL,SP0001067
WANDSWORTH COUNCIL,CS,,COMMUNICATIONS & COMP,Revenue,COMMUNICATIONS - POSTAGE,103036000,07-Jul-16,986081,"8,566.47",ROYAL MAIL,SP0001067
WANDSWORTH COUNCIL,CS,,"EQUIPMENT, FURNITURE & MATS",Revenue,FLOWERS,103130170,27-Jul-16,1004338,646.00,PATRICIA WONG,SP0002085
WANDSWORTH COUNCIL,CS,,"EQUIPMENT, FURNITURE & MATS",Revenue,FLOWERS,103130170,27-Jul-16,1004340,646.00,PATRICIA WONG,SP0002085
WANDSWORTH COUNCIL,CS,,COMMUNICATIONS & COMP,Revenue,I.T. EQUIPMENT & MAINTENANCE,103136210,07-Jul-16,987537,58.99,INSIGHT DIRECT (UK) LTD,SP0002399
WANDSWORTH COUNCIL,CS,,COMMUNICATIONS & COMP,Revenue,I.T. EQUIPMENT & MAINTENANCE,103136210,07-Jul-16,987537,161.99,INSIGHT DIRECT (UK) LTD,SP0002399
WANDSWORTH COUNCIL,CS,,COMMUNICATIONS & COMP,Revenue,I.T. EQUIPMENT & MAINTENANCE,103136210,07-Jul-16,987537,161.99,INSIGHT DIRECT (UK) LTD,SP0002399
WANDSWORTH COUNCIL,CS,,COMMUNICATIONS & COMP,Revenue,I.T. EQUIPMENT & MAINTENANCE,103136210,07-Jul-16,987537,161.99,INSIGHT DIRECT (UK) LTD,SP0002399
WANDSWORTH COUNCIL,PH,,HEALTH,Revenue,GP LCS CONTRACTS,105041520,14-Jul-16,994378,"1,907.00",BRIDGE LANE GROUP PRACTICE,SP0000516
WANDSWORTH COUNCIL,PH,,HEALTH,Revenue,GP LCS CONTRACTS,105041520,18-Jul-16,996572,"4,216.00",BALHAM PARK SURGERY,SP0000925
WANDSWORTH COUNCIL,PH,,HEALTH,Revenue,GP LCS CONTRACTS,105041520,27-Jul-16,1004224,"1,764.00",MAYFIELD SURGERY,SP0002209
WANDSWORTH COUNCIL,PH,,HEALTH,Revenue,GP LCS CONTRACTS,105041520,22-Jul-16,1000538,"3,395.00",LAVENDER HILL GROUP PRACTICE H85069,SP0003344
WANDSWORTH COUNCIL,PH,,HEALTH,Revenue,GP LCS CONTRACTS,105041520,18-Jul-16,996603,"4,565.00",LAVENDER HILL GROUP PRACTICE H85069,SP0003344
WANDSWORTH COUNCIL,PH,,HEALTH,Revenue,GP LCS CONTRACTS,105041520,18-Jul-16,996577,"1,728.00",QUEENSTOWN ROAD MEDICAL PRACTICE H85003,SP0003591
WANDSWORTH COUNCIL,PH,,HEALTH,Revenue,GP LCS CONTRACTS,105041520,27-Jul-16,1004225,"2,654.00",CARE UK CLINICAL SERVICES LTD,SP0005790
WANDSWORTH COUNCIL,PH,,HEALTH,Revenue,GP LCS CONTRACTS,105041520,22-Jul-16,1000530,"1,128.00",THE GREYSWOOD PRACTICE,SP0006936
WANDSWORTH COUNCIL,PH,,HEALTH,Revenue,GP LCS CONTRACTS,105041520,22-Jul-16,1001664,"2,570.00",PUTNEYMEAD GROUP MEDICAL PRACTICE H85012,SP0006951
WANDSWORTH COUNCIL,PH,,HEALTH,Revenue,GP LCS CONTRACTS,105041520,18-Jul-16,996579,"4,294.00",WANDSWORTH MEDICAL CENTRE,SP0007088
WANDSWORTH COUNCIL,PH,,HEALTH,Revenue,GP LCS CONTRACTS,105041520,18-Jul-16,997030,"1,267.00",BATTERSEA RISE GROUP PRACTICE H85049,SP0007572
WANDSWORTH COUNCIL,PH,,HEALTH,Revenue,GP LCS CONTRACTS,105041520,18-Jul-16,996582,"1,157.00",EARLSFIELD PRACTICE,SP0007581
WANDSWORTH COUNCIL,PH,,HEALTH,Revenue,GP LCS CONTRACTS,105041520,12-Jul-16,993085,244.00,THE FALCON ROAD MEDICAL CENTRE H85002,SP0007953
WANDSWORTH COUNCIL,PH,,HEALTH,Revenue,GP LCS CONTRACTS,105041520,14-Jul-16,993994,"2,865.00",BROCKLEBANK GROUP PRACTICE,SP0007967
WANDSWORTH COUNCIL,PH,,HEALTH,Revenue,GP LCS CONTRACTS,105041520,12-Jul-16,993083,"1,404.00",ELBOROUGH STREET SURGERY H85057,SP0007971
WANDSWORTH COUNCIL,PH,,HEALTH,Revenue,GP LCS CONTRACTS,105041520,14-Jul-16,993993,"1,082.00",ST PAULS COTTAGE PRACTICE,SP0007978
WANDSWORTH COUNCIL,PH,,HEALTH,Revenue,GP LCS CONTRACTS,105041520,18-Jul-16,996604,"2,214.00",HEATHBRIDGE PRACTICE,SP0008179
WANDSWORTH COUNCIL,PH,,HEALTH,Revenue,GP LCS CONTRACTS,105041520,22-Jul-16,1000892,41.00,BOLINGBROKE MEDICAL CENTRE H85077,SP0008282
WANDSWORTH COUNCIL,PH,,HEALTH,Revenue,GP LCS CONTRACTS,105041520,18-Jul-16,996575,907.00,TUDOR LODGE HEALTH CENTRE H85682,SP0008309
WANDSWORTH COUNCIL,PH,,HEALTH,Revenue,GP LCS CONTRACTS,105041520,18-Jul-16,997036,"2,631.00",CHARTFIELD SURGERY Y01132,SP0008380
WANDSWORTH COUNCIL,PH,,HEALTH,Revenue,EMERG HORMONAL CONTRACEPTION,105041670,22-Jul-16,1000512,"1,932.00",WANDSWORTH PHARMACY FGJ32,SP0004998
WANDSWORTH COUNCIL,PH,,HEALTH,Revenue,EMERG HORMONAL CONTRACEPTION,105041670,20-Jul-16,996570,161.00,SAAJ LTD,SP0005001
WANDSWORTH COUNCIL,PH,,HEALTH,Revenue,EMERG HORMONAL CONTRACEPTION,105041670,22-Jul-16,1001665,138.00,POLYPHARM LTD FNG23,SP0005011
WANDSWORTH COUNCIL,PH,,HEALTH,Revenue,EMERG HORMONAL CONTRACEPTION,105041670,18-Jul-16,997038,828.00,AMICHEM LTD,SP0005013
WANDSWORTH COUNCIL,PH,,HEALTH,Revenue,EMERG HORMONAL CONTRACEPTION,105041670,27-Jul-16,1004222,69.00,MARKRISE PHARMACY,SP0006464
WANDSWORTH COUNCIL,PH,,HEALTH,Revenue,EMERG HORMONAL CONTRACEPTION,105041670,22-Jul-16,1001669,575.00,BOOTS THE CHEMISTS LTD,SP0006952
WANDSWORTH COUNCIL,PH,,HEALTH,Revenue,EMERG HORMONAL CONTRACEPTION,105041670,20-Jul-16,996569,575.00,NSK LTD,SP0007000
WANDSWORTH COUNCIL,PH,,HEALTH,Revenue,EMERG HORMONAL CONTRACEPTION,105041670,20-Jul-16,996779,92.00,HEALTHCHEM LTD,SP0007576
WANDSWORTH COUNCIL,PH,,HEALTH,Revenue,EMERG HORMONAL CONTRACEPTION,105041670,27-Jul-16,1004223,322.00,CANTERBURY PHARMACIES LTD,SP0007593
WANDSWORTH COUNCIL,PH,,HEALTH,Revenue,EMERG HORMONAL CONTRACEPTION,105041670,18-Jul-16,997034,529.00,TINDACOL LTD T/A CARE CHEMISTS FW023,SP0008146
WANDSWORTH COUNCIL,PH,,HEALTH,Revenue,EMERG HORMONAL CONTRACEPTION,105041670,18-Jul-16,996809,897.00,WRICKLEMARSH LTD FVM91,SP0008378
WANDSWORTH COUNCIL,PH,,HEALTH,Revenue,EMERG HORMONAL CONTRACEPTION,105041670,18-Jul-16,996811,460.00,OAKLON LIMITED FMC 35 T/A EAST HILL PHAR,SP0008379
WANDSWORTH COUNCIL,PH,,HEALTH,Revenue,EMERG HORMONAL CONTRACEPTION,105041670,29-Jul-16,1004694,690.00,AMICHEM LIMITED FNQ61 T/A KRYSTAL PHARMA,SP0008457
WANDSWORTH COUNCIL,PH,,HEALTH,Revenue,GP CHLAMYDIA SCREENING LCS,105141540,14-Jul-16,994378,90.00,BRIDGE LANE GROUP PRACTICE,SP0000516
WANDSWORTH COUNCIL,PH,,HEALTH,Revenue,GP CHLAMYDIA SCREENING LCS,105141540,18-Jul-16,996581,110.00,BATTERSEA FIELDS PRACTICE,SP0000844
WANDSWORTH COUNCIL,PH,,HEALTH,Revenue,GP CHLAMYDIA SCREENING LCS,105141540,18-Jul-16,996572,190.00,BALHAM PARK SURGERY,SP0000925
WANDSWORTH COUNCIL,PH,,HEALTH,Revenue,GP CHLAMYDIA SCREENING LCS,105141540,27-Jul-16,1004224,70.00,MAYFIELD SURGERY,SP0002209
WANDSWORTH COUNCIL,PH,,HEALTH,Revenue,GP CHLAMYDIA SCREENING LCS,105141540,14-Jul-16,993996,320.00,BEDFORD HILL FAMILY PRACTICE H85009,SP0002543
WANDSWORTH COUNCIL,PH,,HEALTH,Revenue,GP CHLAMYDIA SCREENING LCS,105141540,22-Jul-16,1000538,140.00,LAVENDER HILL GROUP PRACTICE H85069,SP0003344
WANDSWORTH COUNCIL,PH,,HEALTH,Revenue,GP CHLAMYDIA SCREENING LCS,105141540,18-Jul-16,996603,100.00,LAVENDER HILL GROUP PRACTICE H85069,SP0003344
WANDSWORTH COUNCIL,PH,,HEALTH,Revenue,GP CHLAMYDIA SCREENING LCS,105141540,18-Jul-16,996577,120.00,QUEENSTOWN ROAD MEDICAL PRACTICE H85003,SP0003591
WANDSWORTH COUNCIL,PH,,HEALTH,Revenue,GP CHLAMYDIA SCREENING LCS,105141540,27-Jul-16,1004225,870.00,CARE UK CLINICAL SERVICES LTD,SP0005790
WANDSWORTH COUNCIL,PH,,HEALTH,Revenue,GP CHLAMYDIA SCREENING LCS,105141540,22-Jul-16,1000530,30.00,THE GREYSWOOD PRACTICE,SP0006936
WANDSWORTH COUNCIL,PH,,HEALTH,Revenue,GP CHLAMYDIA SCREENING LCS,105141540,22-Jul-16,1001664,45.00,PUTNEYMEAD GROUP MEDICAL PRACTICE H85012,SP0006951
WANDSWORTH COUNCIL,PH,,HEALTH,Revenue,GP CHLAMYDIA SCREENING LCS,105141540,18-Jul-16,996579,200.00,WANDSWORTH MEDICAL CENTRE,SP0007088
WANDSWORTH COUNCIL,PH,,HEALTH,Revenue,GP CHLAMYDIA SCREENING LCS,105141540,18-Jul-16,997030,90.00,BATTERSEA RISE GROUP PRACTICE H85049,SP0007572
WANDSWORTH COUNCIL,PH,,HEALTH,Revenue,GP CHLAMYDIA SCREENING LCS,105141540,18-Jul-16,996582,150.00,EARLSFIELD PRACTICE,SP0007581
WANDSWORTH COUNCIL,PH,,HEALTH,Revenue,GP CHLAMYDIA SCREENING LCS,105141540,18-Jul-16,996576,90.00,SOUTHFIELDS GROUP PRACTICE H85007,SP0007583
WANDSWORTH COUNCIL,PH,,HEALTH,Revenue,GP CHLAMYDIA SCREENING LCS,105141540,12-Jul-16,993085,260.00,THE FALCON ROAD MEDICAL CENTRE H85002,SP0007953
WANDSWORTH COUNCIL,PH,,HEALTH,Revenue,GP CHLAMYDIA SCREENING LCS,105141540,12-Jul-16,993083,60.00,ELBOROUGH STREET SURGERY H85057,SP0007971
WANDSWORTH COUNCIL,PH,,HEALTH,Revenue,GP CHLAMYDIA SCREENING LCS,105141540,14-Jul-16,993993,30.00,ST PAULS COTTAGE PRACTICE,SP0007978
WANDSWORTH COUNCIL,PH,,HEALTH,Revenue,GP CHLAMYDIA SCREENING LCS,105141540,19-Jul-16,997037,40.00,TRIANGLE SURGERY,SP0008056
WANDSWORTH COUNCIL,PH,,HEALTH,Revenue,GP CHLAMYDIA SCREENING LCS,105141540,19-Jul-16,997037,20.00,TRIANGLE SURGERY,SP0008056
WANDSWORTH COUNCIL,PH,,HEALTH,Revenue,GP CHLAMYDIA SCREENING LCS,105141540,22-Jul-16,1000529,20.00,THE ROEHAMPTON SURGERY,SP0008174
WANDSWORTH COUNCIL,PH,,HEALTH,Revenue,GP CHLAMYDIA SCREENING LCS,105141540,18-Jul-16,996604,170.00,HEATHBRIDGE PRACTICE,SP0008179
WANDSWORTH COUNCIL,PH,,HEALTH,Revenue,GP CHLAMYDIA SCREENING LCS,105141540,14-Jul-16,993793,650.00,THE OPEN DOOR SURGERY H85087,SP0008280
WANDSWORTH COUNCIL,PH,,HEALTH,Revenue,GP CHLAMYDIA SCREENING LCS,105141540,22-Jul-16,1000892,55.00,BOLINGBROKE MEDICAL CENTRE H85077,SP0008282
WANDSWORTH COUNCIL,PH,,HEALTH,Revenue,GP CHLAMYDIA SCREENING LCS,105141540,18-Jul-16,996602,40.00,THE HAIDER PRACTICE H85075,SP0008283
WANDSWORTH COUNCIL,PH,,HEALTH,Revenue,GP CHLAMYDIA SCREENING LCS,105141540,12-Jul-16,993084,335.00,TOOTING BEC SURGERY,SP0008284
WANDSWORTH COUNCIL,PH,,HEALTH,Revenue,GP CHLAMYDIA SCREENING LCS,105141540,18-Jul-16,996575,50.00,TUDOR LODGE HEALTH CENTRE H85682,SP0008309
WANDSWORTH COUNCIL,PH,,HEALTH,Revenue,HIV RAPID TESTING PILOT,105141710,18-Jul-16,996581,360.00,BATTERSEA FIELDS PRACTICE,SP0000844
WANDSWORTH COUNCIL,PH,,HEALTH,Revenue,HIV RAPID TESTING PILOT,105141710,14-Jul-16,993996,515.00,BEDFORD HILL FAMILY PRACTICE H85009,SP0002543
WANDSWORTH COUNCIL,PH,,HEALTH,Revenue,HIV RAPID TESTING PILOT,105141710,22-Jul-16,1000538,5.00,LAVENDER HILL GROUP PRACTICE H85069,SP0003344
WANDSWORTH COUNCIL,PH,,HEALTH,Revenue,HIV RAPID TESTING PILOT,105141710,18-Jul-16,996603,30.00,LAVENDER HILL GROUP PRACTICE H85069,SP0003344
WANDSWORTH COUNCIL,PH,,HEALTH,Revenue,HIV RAPID TESTING PILOT,105141710,18-Jul-16,996577,55.00,QUEENSTOWN ROAD MEDICAL PRACTICE H85003,SP0003591
WANDSWORTH COUNCIL,PH,,HEALTH,Revenue,HIV RAPID TESTING PILOT,105141710,27-Jul-16,1004225,640.00,CARE UK CLINICAL SERVICES LTD,SP0005790
WANDSWORTH COUNCIL,PH,,HEALTH,Revenue,HIV RAPID TESTING PILOT,105141710,22-Jul-16,1001664,"1,920.00",PUTNEYMEAD GROUP MEDICAL PRACTICE H85012,SP0006951
WANDSWORTH COUNCIL,PH,,HEALTH,Revenue,HIV RAPID TESTING PILOT,105141710,18-Jul-16,997030,80.00,BATTERSEA RISE GROUP PRACTICE H85049,SP0007572
WANDSWORTH COUNCIL,PH,,HEALTH,Revenue,HIV RAPID TESTING PILOT,105141710,18-Jul-16,996576,225.00,SOUTHFIELDS GROUP PRACTICE H85007,SP0007583
WANDSWORTH COUNCIL,PH,,HEALTH,Revenue,HIV RAPID TESTING PILOT,105141710,14-Jul-16,993994,40.00,BROCKLEBANK GROUP PRACTICE,SP0007967
WANDSWORTH COUNCIL,PH,,HEALTH,Revenue,HIV RAPID TESTING PILOT,105141710,14-Jul-16,993993,75.00,ST PAULS COTTAGE PRACTICE,SP0007978
WANDSWORTH COUNCIL,PH,,HEALTH,Revenue,HIV RAPID TESTING PILOT,105141710,14-Jul-16,993793,535.00,THE OPEN DOOR SURGERY H85087,SP0008280
WANDSWORTH COUNCIL,PH,,HEALTH,Revenue,HIV RAPID TESTING PILOT,105141710,22-Jul-16,1000892,160.00,BOLINGBROKE MEDICAL CENTRE H85077,SP0008282
WANDSWORTH COUNCIL,PH,,HEALTH,Revenue,HIV RAPID TESTING PILOT,105141710,18-Jul-16,996602,5.00,THE HAIDER PRACTICE H85075,SP0008283
WANDSWORTH COUNCIL,PH,,HEALTH,Revenue,CHLAMYDIA SCREENING,105141760,22-Jul-16,1000512,10.00,WANDSWORTH PHARMACY FGJ32,SP0004998
WANDSWORTH COUNCIL,PH,,HEALTH,Revenue,CHLAMYDIA SCREENING,105141760,22-Jul-16,1001669,40.00,BOOTS THE CHEMISTS LTD,SP0006952
WANDSWORTH COUNCIL,PH,,HEALTH,Revenue,CHLAMYDIA SCREENING,105141760,20-Jul-16,996569,10.00,NSK LTD,SP0007000
WANDSWORTH COUNCIL,PH,,HEALTH,Revenue,CHLAMYDIA SCREENING,105141760,27-Jul-16,1004223,20.00,CANTERBURY PHARMACIES LTD,SP0007593
WANDSWORTH COUNCIL,PH,,HEALTH,Revenue,CHLAMYDIA SCREENING,105141760,18-Jul-16,996811,60.00,OAKLON LIMITED FMC 35 T/A EAST HILL PHAR,SP0008379
WANDSWORTH COUNCIL,PH,,HEALTH,Revenue,CHLAMYDIA SCREENING,105141760,29-Jul-16,1004694,30.00,AMICHEM LIMITED FNQ61 T/A KRYSTAL PHARMA,SP0008457
WANDSWORTH COUNCIL,PH,,HEALTH,Revenue,LOCALLY ENHANCED SERVICES,105341380,14-Jul-16,994378,"3,056.26",BRIDGE LANE GROUP PRACTICE,SP0000516
WANDSWORTH COUNCIL,PH,,HEALTH,Revenue,LOCALLY ENHANCED SERVICES,105341380,18-Jul-16,996581,"1,028.84",BATTERSEA FIELDS PRACTICE,SP0000844
WANDSWORTH COUNCIL,PH,,HEALTH,Revenue,LOCALLY ENHANCED SERVICES,105341380,18-Jul-16,996572,"2,148.46",BALHAM PARK SURGERY,SP0000925
WANDSWORTH COUNCIL,PH,,HEALTH,Revenue,LOCALLY ENHANCED SERVICES,105341380,18-Jul-16,996580,998.58,DR P ILVES T/A DANEBURY SURGERY H85067,SP0002029
WANDSWORTH COUNCIL,PH,,HEALTH,Revenue,LOCALLY ENHANCED SERVICES,105341380,18-Jul-16,996580,90.78,DR P ILVES T/A DANEBURY SURGERY H85067,SP0002029
WANDSWORTH COUNCIL,PH,,HEALTH,Revenue,LOCALLY ENHANCED SERVICES,105341380,27-Jul-16,1004224,998.58,MAYFIELD SURGERY,SP0002209
WANDSWORTH COUNCIL,PH,,HEALTH,Revenue,LOCALLY ENHANCED SERVICES,105341380,27-Jul-16,1004224,81.52,MAYFIELD SURGERY,SP0002209
WANDSWORTH COUNCIL,PH,,HEALTH,Revenue,LOCALLY ENHANCED SERVICES,105341380,14-Jul-16,993996,"2,390.54",BEDFORD HILL FAMILY PRACTICE H85009,SP0002543
WANDSWORTH COUNCIL,PH,,HEALTH,Revenue,LOCALLY ENHANCED SERVICES,105341380,22-Jul-16,1000538,"1,422.22",LAVENDER HILL GROUP PRACTICE H85069,SP0003344
WANDSWORTH COUNCIL,PH,,HEALTH,Revenue,LOCALLY ENHANCED SERVICES,105341380,18-Jul-16,996603,"1,906.38",LAVENDER HILL GROUP PRACTICE H85069,SP0003344
WANDSWORTH COUNCIL,PH,,HEALTH,Revenue,LOCALLY ENHANCED SERVICES,105341380,18-Jul-16,996577,544.68,QUEENSTOWN ROAD MEDICAL PRACTICE H85003,SP0003591
WANDSWORTH COUNCIL,PH,,HEALTH,Revenue,LOCALLY ENHANCED SERVICES,105341380,18-Jul-16,996605,"6,808.50",TRINITY MEDICAL CENTRE,SP0003735
WANDSWORTH COUNCIL,PH,,HEALTH,Revenue,LOCALLY ENHANCED SERVICES,105341380,27-Jul-16,1004225,30.26,CARE UK CLINICAL SERVICES LTD,SP0005790
WANDSWORTH COUNCIL,PH,,HEALTH,Revenue,LOCALLY ENHANCED SERVICES,105341380,22-Jul-16,1000530,"1,815.60",THE GREYSWOOD PRACTICE,SP0006936
WANDSWORTH COUNCIL,PH,,HEALTH,Revenue,LOCALLY ENHANCED SERVICES,105341380,22-Jul-16,1001664,"5,322.97",PUTNEYMEAD GROUP MEDICAL PRACTICE H85012,SP0006951
WANDSWORTH COUNCIL,PH,,HEALTH,Revenue,LOCALLY ENHANCED SERVICES,105341380,22-Jul-16,1001664,"2,048.19",PUTNEYMEAD GROUP MEDICAL PRACTICE H85012,SP0006951
WANDSWORTH COUNCIL,PH,,HEALTH,Revenue,LOCALLY ENHANCED SERVICES,105341380,18-Jul-16,996579,"3,419.38",WANDSWORTH MEDICAL CENTRE,SP0007088
WANDSWORTH COUNCIL,PH,,HEALTH,Revenue,LOCALLY ENHANCED SERVICES,105341380,18-Jul-16,997030,907.80,BATTERSEA RISE GROUP PRACTICE H85049,SP0007572
WANDSWORTH COUNCIL,PH,,HEALTH,Revenue,LOCALLY ENHANCED SERVICES,105341380,18-Jul-16,996582,"3,147.04",EARLSFIELD PRACTICE,SP0007581
WANDSWORTH COUNCIL,PH,,HEALTH,Revenue,LOCALLY ENHANCED SERVICES,105341380,18-Jul-16,996576,"2,269.50",SOUTHFIELDS GROUP PRACTICE H85007,SP0007583
WANDSWORTH COUNCIL,PH,,HEALTH,Revenue,LOCALLY ENHANCED SERVICES,105341380,12-Jul-16,993085,"1,361.70",THE FALCON ROAD MEDICAL CENTRE H85002,SP0007953
WANDSWORTH COUNCIL,PH,,HEALTH,Revenue,LOCALLY ENHANCED SERVICES,105341380,14-Jul-16,993994,"2,118.20",BROCKLEBANK GROUP PRACTICE,SP0007967
WANDSWORTH COUNCIL,PH,,HEALTH,Revenue,LOCALLY ENHANCED SERVICES,105341380,12-Jul-16,993083,"2,148.46",ELBOROUGH STREET SURGERY H85057,SP0007971
WANDSWORTH COUNCIL,PH,,HEALTH,Revenue,LOCALLY ENHANCED SERVICES,105341380,14-Jul-16,993993,"1,543.26",ST PAULS COTTAGE PRACTICE,SP0007978
WANDSWORTH COUNCIL,PH,,HEALTH,Revenue,LOCALLY ENHANCED SERVICES,105341380,19-Jul-16,997037,777.02,TRIANGLE SURGERY,SP0008056
WANDSWORTH COUNCIL,PH,,HEALTH,Revenue,LOCALLY ENHANCED SERVICES,105341380,22-Jul-16,1000529,"4,124.66",THE ROEHAMPTON SURGERY,SP0008174
WANDSWORTH COUNCIL,PH,,HEALTH,Revenue,LOCALLY ENHANCED SERVICES,105341380,18-Jul-16,996604,"4,750.82",HEATHBRIDGE PRACTICE,SP0008179
WANDSWORTH COUNCIL,PH,,HEALTH,Revenue,LOCALLY ENHANCED SERVICES,105341380,14-Jul-16,993793,"3,540.42",THE OPEN DOOR SURGERY H85087,SP0008280
WANDSWORTH COUNCIL,PH,,HEALTH,Revenue,LOCALLY ENHANCED SERVICES,105341380,22-Jul-16,1000892,"2,118.20",BOLINGBROKE MEDICAL CENTRE H85077,SP0008282
WANDSWORTH COUNCIL,PH,,HEALTH,Revenue,LOCALLY ENHANCED SERVICES,105341380,18-Jul-16,996602,756.50,THE HAIDER PRACTICE H85075,SP0008283
WANDSWORTH COUNCIL,PH,,HEALTH,Revenue,LOCALLY ENHANCED SERVICES,105341380,12-Jul-16,993084,307.34,TOOTING BEC SURGERY,SP0008284
WANDSWORTH COUNCIL,PH,,HEALTH,Revenue,LOCALLY ENHANCED SERVICES,105341380,18-Jul-16,996575,"1,028.84",TUDOR LODGE HEALTH CENTRE H85682,SP0008309
WANDSWORTH COUNCIL,PH,,HEALTH,Revenue,LOCALLY ENHANCED SERVICES,105341380,18-Jul-16,997036,"3,600.94",CHARTFIELD SURGERY Y01132,SP0008380
WANDSWORTH COUNCIL,PH,,HEALTH,Revenue,LOCALLY ENHANCED SERVICES,105341380,18-Jul-16,996574,275.13,THE ALTON PRACTICE H85065,SP0008381
WANDSWORTH COUNCIL,PH,,HEALTH,Revenue,LOCALLY ENHANCED SERVICES,105341380,18-Jul-16,996574,907.80,THE ALTON PRACTICE H85065,SP0008381
WANDSWORTH COUNCIL,PH,,HEALTH,Revenue,ADULT WEIGHT MGT SERVICE,105641230,22-Jul-16,997592,"2,000.00",THE GOOD GYM LTD,SP0010993
WANDSWORTH COUNCIL,PH,,MISC,Revenue,CONTINGENCIES,106338550,14-Jul-16,993134,"4,400.00",NORTH 51,SP0006463
WANDSWORTH COUNCIL,PH,,HEALTH,Revenue,PRESCRIBING SERVICES,106340550,29-Jul-16,1006223,32.00,PEARL CHEMIST LTD,SP0004997
WANDSWORTH COUNCIL,PH,,HEALTH,Revenue,PRESCRIBING SERVICES,106340550,29-Jul-16,1006223,510.51,PEARL CHEMIST LTD,SP0004997
WANDSWORTH COUNCIL,PH,,HEALTH,Revenue,PRESCRIBING SERVICES,106340550,07-Jul-16,987543,40.00,PEARL CHEMIST LTD,SP0004997
WANDSWORTH COUNCIL,PH,,HEALTH,Revenue,PRESCRIBING SERVICES,106340550,07-Jul-16,987543,537.30,PEARL CHEMIST LTD,SP0004997
WANDSWORTH COUNCIL,PH,,HEALTH,Revenue,PRESCRIBING SERVICES,106340550,07-Jul-16,987531,40.00,NATIONAL COOPERATIVE CHEMISTS FX183,SP0008376
WANDSWORTH COUNCIL,PH,,HEALTH,Revenue,PRESCRIBING SERVICES,106340550,07-Jul-16,987531,462.07,NATIONAL COOPERATIVE CHEMISTS FX183,SP0008376
WANDSWORTH COUNCIL,PH,,HEALTH,Revenue,PRESCRIBING SERVICES,106340550,29-Jul-16,1006218,42.00,OAKLON LIMITED FMC 35 T/A EAST HILL PHAR,SP0008379
WANDSWORTH COUNCIL,PH,,HEALTH,Revenue,PRESCRIBING SERVICES,106340550,29-Jul-16,1006218,905.08,OAKLON LIMITED FMC 35 T/A EAST HILL PHAR,SP0008379
WANDSWORTH COUNCIL,PH,,HEALTH,Revenue,PRESCRIBING SERVICES,106340550,29-Jul-16,1006226,62.00,PEARL CHEMIST LTD FDV93 T/A LORDS PHARMA,SP0008419
WANDSWORTH COUNCIL,PH,,HEALTH,Revenue,PRESCRIBING SERVICES,106340550,29-Jul-16,1006226,664.30,PEARL CHEMIST LTD FDV93 T/A LORDS PHARMA,SP0008419
WANDSWORTH COUNCIL,PH,,HEALTH,Revenue,PRESCRIBING SERVICES,106340550,11-Jul-16,989662,"1,127.68",PEARL CHEMIST LTD FDV93 T/A LORDS PHARMA,SP0008419
WANDSWORTH COUNCIL,PH,,HEALTH,Revenue,PRESCRIBING SERVICES,106340550,11-Jul-16,989662,76.00,PEARL CHEMIST LTD FDV93 T/A LORDS PHARMA,SP0008419
WANDSWORTH COUNCIL,PH,,HEALTH,Revenue,PHARMACY LCS,106341410,22-Jul-16,1001665,210.00,POLYPHARM LTD FNG23,SP0005011
WANDSWORTH COUNCIL,PH,,HEALTH,Revenue,PHARMACY LCS,106341410,27-Jul-16,1004222,280.00,MARKRISE PHARMACY,SP0006464
WANDSWORTH COUNCIL,PH,,HEALTH,Revenue,PHARMACY LCS,106341410,20-Jul-16,996569,140.00,NSK LTD,SP0007000
WANDSWORTH COUNCIL,PH,,HEALTH,Revenue,PHARMACY LCS,106341410,27-Jul-16,1004223,140.00,CANTERBURY PHARMACIES LTD,SP0007593
WANDSWORTH COUNCIL,PH,,HEALTH,Revenue,PHARMACY LCS,106341410,18-Jul-16,996811,350.00,OAKLON LIMITED FMC 35 T/A EAST HILL PHAR,SP0008379
WANDSWORTH COUNCIL,PH,,HEALTH,Revenue,PHARMACY LCS,106341410,29-Jul-16,1004694,630.00,AMICHEM LIMITED FNQ61 T/A KRYSTAL PHARMA,SP0008457
WANDSWORTH COUNCIL,PH,,HEALTH,Revenue,GP LCS CONTRACTS,106341520,14-Jul-16,994378,"2,660.00",BRIDGE LANE GROUP PRACTICE,SP0000516
WANDSWORTH COUNCIL,PH,,HEALTH,Revenue,GP LCS CONTRACTS,106341520,14-Jul-16,993996,210.00,BEDFORD HILL FAMILY PRACTICE H85009,SP0002543
WANDSWORTH COUNCIL,PH,,HEALTH,Revenue,GP LCS CONTRACTS,106341520,18-Jul-16,996577,350.00,QUEENSTOWN ROAD MEDICAL PRACTICE H85003,SP0003591
WANDSWORTH COUNCIL,PH,,HEALTH,Revenue,GP LCS CONTRACTS,106341520,27-Jul-16,1004225,70.00,CARE UK CLINICAL SERVICES LTD,SP0005790
WANDSWORTH COUNCIL,PH,,HEALTH,Revenue,GP LCS CONTRACTS,106341520,22-Jul-16,1001664,350.00,PUTNEYMEAD GROUP MEDICAL PRACTICE H85012,SP0006951
WANDSWORTH COUNCIL,PH,,HEALTH,Revenue,GP LCS CONTRACTS,106341520,18-Jul-16,996579,420.00,WANDSWORTH MEDICAL CENTRE,SP0007088
WANDSWORTH COUNCIL,PH,,HEALTH,Revenue,GP LCS CONTRACTS,106341520,18-Jul-16,996582,140.00,EARLSFIELD PRACTICE,SP0007581
WANDSWORTH COUNCIL,PH,,HEALTH,Revenue,GP LCS CONTRACTS,106341520,18-Jul-16,996576,210.00,SOUTHFIELDS GROUP PRACTICE H85007,SP0007583
WANDSWORTH COUNCIL,PH,,HEALTH,Revenue,GP LCS CONTRACTS,106341520,12-Jul-16,993085,210.00,THE FALCON ROAD MEDICAL CENTRE H85002,SP0007953
WANDSWORTH COUNCIL,PH,,HEALTH,Revenue,GP LCS CONTRACTS,106341520,18-Jul-16,996604,490.00,HEATHBRIDGE PRACTICE,SP0008179
WANDSWORTH COUNCIL,PH,,HEALTH,Revenue,GP LCS CONTRACTS,106341520,18-Jul-16,996602,280.00,THE HAIDER PRACTICE H85075,SP0008283
WANDSWORTH COUNCIL,PH,,HEALTH,Revenue,GP LCS CONTRACTS,106341520,18-Jul-16,997036,70.00,CHARTFIELD SURGERY Y01132,SP0008380
WANDSWORTH COUNCIL,PH,,COMMUNICATIONS & COMP,Revenue,I.T. EQUIPMENT & MAINTENANCE,107836210,21-Jul-16,1000899,153.75,DANWOOD GROUP LTD,SP0002739
WANDSWORTH COUNCIL,PH,,COMMUNICATIONS & COMP,Revenue,I.T. EQUIPMENT & MAINTENANCE,107836210,21-Jul-16,1000899,72.45,DANWOOD GROUP LTD,SP0002739
WANDSWORTH COUNCIL,PH,,COMMUNICATIONS & COMP,Revenue,I.T. EQUIPMENT & MAINTENANCE,107836210,21-Jul-16,1000899,307.50,DANWOOD GROUP LTD,SP0002739
WANDSWORTH COUNCIL,PH,,COMMUNICATIONS & COMP,Revenue,I.T. EQUIPMENT & MAINTENANCE,107836210,21-Jul-16,1000899,307.50,DANWOOD GROUP LTD,SP0002739
WANDSWORTH COUNCIL,PH,,COMMUNICATIONS & COMP,Revenue,I.T. EQUIPMENT & MAINTENANCE,107836210,21-Jul-16,1000902,183.42,DANWOOD GROUP LTD,SP0002739
WANDSWORTH COUNCIL,PH,,COMMUNICATIONS & COMP,Revenue,I.T. EQUIPMENT & MAINTENANCE,107836210,21-Jul-16,1000902,183.42,DANWOOD GROUP LTD,SP0002739
WANDSWORTH COUNCIL,PH,,COMMUNICATIONS & COMP,Revenue,I.T. EQUIPMENT & MAINTENANCE,107836210,21-Jul-16,1000902,36.35,DANWOOD GROUP LTD,SP0002739
WANDSWORTH COUNCIL,PH,,COMMUNICATIONS & COMP,Revenue,I.T. EQUIPMENT & MAINTENANCE,107836210,21-Jul-16,1000902,183.42,DANWOOD GROUP LTD,SP0002739
WANDSWORTH COUNCIL,PH,,SERVICES,Revenue,PROJECT WORK,108034800,19-Jul-16,996587,"1,325.00",WILLIAMS & ASSOCIATES,SP0008775
WANDSWORTH COUNCIL,PH,,SERVICES,Revenue,PROJECT WORK,108034800,14-Jul-16,993969,750.00,ENABLE LEISURE AND CULTURE,SP0010236
WANDSWORTH COUNCIL,NGF CS,,PRIVATE,Revenue,GENERAL CONTRACT WORK,111045370,27-Jul-16,994517,752.50,WINDOWFLOWERS LTD,SP0003089
WANDSWORTH COUNCIL,NGF CS,,PRIVATE,Revenue,REFUSE COLLECTN & PEST CONTROL,111045500,11-Jul-16,992235,534.79,SITA UK LTD,SP0000507
WANDSWORTH COUNCIL,NGF CS,,PRIVATE,Revenue,REFUSE COLLECTN & PEST CONTROL,111045500,11-Jul-16,992236,"1,202.69",SITA UK LTD,SP0000507
WANDSWORTH COUNCIL,NGF CS,,PRIVATE,Revenue,REFUSE COLLECTN & PEST CONTROL,112045500,08-Jul-16,990408,598.53,SITA UK LTD,SP0000507
WANDSWORTH COUNCIL,NGF CS,,PRIVATE,Revenue,REFUSE COLLECTN & PEST CONTROL,112145500,08-Jul-16,990408,92.39,SITA UK LTD,SP0000507
WANDSWORTH COUNCIL,NGF CS,,PRIVATE,Revenue,GENERAL CONTRACT WORK,112445370,11-Jul-16,992330,495.30,MR R BAKER,SP0001444
WANDSWORTH COUNCIL,NGF CS,,PRIVATE,Revenue,REFUSE COLLECTN & PEST CONTROL,112945500,08-Jul-16,990404,690.83,SITA UK LTD,SP0000507
WANDSWORTH COUNCIL,NGF CS,,CLEANING & DOMESTIC SUPPLIES,Revenue,CLEANING & DOMESTIC SUPPLIES,113813010,04-Jul-16,985022,"2,105.35",WESSEX PRODUCTS (LEASING) LTD,SP0002972
WANDSWORTH COUNCIL,NGF CS,,CLEANING & DOMESTIC SUPPLIES,Revenue,CLEANING CONTRACT,113813020,06-Jul-16,987302,"16,707.00",OCEAN INTEGRATED SERVICES LTD,SP0001062
WANDSWORTH COUNCIL,NGF CS,,CLEANING & DOMESTIC SUPPLIES,Revenue,CLEANING CONTRACT,113813020,05-Jul-16,986163,"1,673.60",PHS GROUP PLC,SP0001063
WANDSWORTH COUNCIL,NGF CS,,CLEANING & DOMESTIC SUPPLIES,Revenue,CLEANING CONTRACT,113813020,08-Jul-16,989496,537.75,PHS GROUP PLC,SP0001063
WANDSWORTH COUNCIL,NGF CS,,CLEANING & DOMESTIC SUPPLIES,Revenue,CLEANING CONTRACT,113813020,08-Jul-16,989641,537.75,PHS GROUP PLC,SP0001063
WANDSWORTH COUNCIL,NGF CS,,"EQUIPMENT, FURNITURE & MATS",Revenue,FIRE EXTINGUISHERS,114130150,08-Jul-16,990197,496.36,HOME COUNTY FIRE AND CATERHAM LTD,SP0001104
WANDSWORTH COUNCIL,NGF CS,,"EQUIPMENT, FURNITURE & MATS",Revenue,FIRE EXTINGUISHERS,114130150,08-Jul-16,990198,765.09,HOME COUNTY FIRE AND CATERHAM LTD,SP0001104
WANDSWORTH COUNCIL,NGF CS,,SERVICES,Revenue,ELECTRICAL TESTING,114134350,28-Jul-16,1006537,552.00,DH CROFTS LTD,SP0000076
WANDSWORTH COUNCIL,NGF CS,,SERVICES,Revenue,ELECTRICAL TESTING,114134350,11-Jul-16,992274,640.00,DH CROFTS LTD,SP0000076
WANDSWORTH COUNCIL,NGF CS,,SERVICES,Revenue,SERVICES - GENERAL,114134870,19-Jul-16,999231,900.00,COOLERAID LTD,SP0003654
WANDSWORTH COUNCIL,NGF CS,,SERVICES,Revenue,SERVICES - GENERAL,114134870,19-Jul-16,962696,835.00,CONDECO LIMITED,SP0007319
WANDSWORTH COUNCIL,NGF CS,,"EQUIPMENT, FURNITURE & MATS",Revenue,"EQUIPMENT, FURNITURE & MATS",115230000,28-Jul-16,1006565,"1,141.18",DH CROFTS LTD,SP0000076
WANDSWORTH COUNCIL,NGF CS,,RENTS,Revenue,RENTS,115413400,13-Jul-16,993640,"9,289.57",NETWORK RAIL,SP0002363
WANDSWORTH COUNCIL,NGF CS,,"REPAIRS, ALTERATIONS & MTCE",Revenue,"REPS, ALTS & MTCE-BUILDINGS",115610000,13-Jul-16,994291,150.00,LASER SECURITY,SP0000291
WANDSWORTH COUNCIL,NGF CS,,"REPAIRS, ALTERATIONS & MTCE",Revenue,"REPS, ALTS & MTCE-BUILDINGS",115610000,22-Jul-16,1003453,232.83,DEBA UK LTD,SP0005811
WANDSWORTH COUNCIL,NGF CS,,INDIRECT,Revenue,TRAINING - EXTERNAL COURSES,120100770,14-Jul-16,993333,600.00,MBL SEMINARS,SP0008611
WANDSWORTH COUNCIL,NGF CS,,COMMUNICATIONS & COMP,Revenue,I.T. EQUIPMENT & MAINTENANCE,120136210,11-Jul-16,990877,853.42,FATHOM,SP0004973
WANDSWORTH COUNCIL,NGF CS,,COMMUNICATIONS & COMP,Revenue,I.T. SOFTWARE,120136240,29-Jul-16,1006361,"5,200.00",ZYLPHA,SP0010982
WANDSWORTH COUNCIL,NGF CS,,COMMUNICATIONS & COMP,Revenue,I.T. SOFTWARE,120136240,29-Jul-16,1006362,"9,000.00",OD CONSULTANCY,SP0011019
WANDSWORTH COUNCIL,NGF CS,,SERVICES,Revenue,CONSULTANTS FEES,120534200,07-Jul-16,987286,"3,360.00",CAMELOT PROPERTY MANAGEMENT LTD,SP0001064
WANDSWORTH COUNCIL,NGF CS,,OTHER AGENCIES,Revenue,DISBURSEMENTS,120643250,05-Jul-16,986127,743.76,BEVERLEY F NUNNERY & CO,SP0003376
WANDSWORTH COUNCIL,NGF CS,,OTHER AGENCIES,Revenue,DISBURSEMENTS,120643250,11-Jul-16,987399,"25,055.00",SHARPE PRITCHARD LLP,SP0003677
WANDSWORTH COUNCIL,NGF CS,,OTHER AGENCIES,Revenue,DISBURSEMENTS,120643250,11-Jul-16,992222,"3,725.39",SHARPE PRITCHARD LLP,SP0003677
WANDSWORTH COUNCIL,NGF CS,,OTHER AGENCIES,Revenue,DISBURSEMENTS,120643250,11-Jul-16,992222,961.00,SHARPE PRITCHARD LLP,SP0003677
WANDSWORTH COUNCIL,NGF CS,,OTHER AGENCIES,Revenue,DISBURSEMENTS,120643250,27-Jul-16,1004543,"3,500.00",CORNERSTONE BACS,SP0004477
WANDSWORTH COUNCIL,NGF CS,,OTHER AGENCIES,Revenue,DISBURSEMENTS,120643250,21-Jul-16,1000544,900.00,4 BRICK COURT MANAGEMENT LIMITED,SP0007380
WANDSWORTH COUNCIL,NGF CS,,OTHER AGENCIES,Revenue,DISBURSEMENTS,120643250,21-Jul-16,1000838,500.00,4 BRICK COURT MANAGEMENT LIMITED,SP0007380
WANDSWORTH COUNCIL,NGF CS,,OTHER AGENCIES,Revenue,DISBURSEMENTS,120643250,21-Jul-16,1000839,670.00,4 BRICK COURT MANAGEMENT LIMITED,SP0007380
WANDSWORTH COUNCIL,NGF CS,,OTHER AGENCIES,Revenue,DISBURSEMENTS,120643250,21-Jul-16,1000841,900.00,4 BRICK COURT MANAGEMENT LIMITED,SP0007380
WANDSWORTH COUNCIL,NGF CS,,OTHER AGENCIES,Revenue,DISBURSEMENTS,120643250,21-Jul-16,1000842,550.00,4 BRICK COURT MANAGEMENT LIMITED,SP0007380
WANDSWORTH COUNCIL,NGF CS,,OTHER AGENCIES,Revenue,DISBURSEMENTS,120643250,21-Jul-16,1000843,550.00,4 BRICK COURT MANAGEMENT LIMITED,SP0007380
WANDSWORTH COUNCIL,NGF CS,,OTHER AGENCIES,Revenue,DISBURSEMENTS,120643250,21-Jul-16,1000844,500.00,4 BRICK COURT MANAGEMENT LIMITED,SP0007380
WANDSWORTH COUNCIL,NGF CS,,OTHER AGENCIES,Revenue,DISBURSEMENTS,120643250,21-Jul-16,1000845,800.00,4 BRICK COURT MANAGEMENT LIMITED,SP0007380
WANDSWORTH COUNCIL,NGF CS,,OTHER AGENCIES,Revenue,DISBURSEMENTS,120643250,27-Jul-16,1002628,"1,058.33",4 BRICK COURT MANAGEMENT LIMITED,SP0007380
WANDSWORTH COUNCIL,NGF CS,,OTHER AGENCIES,Revenue,DISBURSEMENTS,120643250,27-Jul-16,1004546,700.00,4 BRICK COURT MANAGEMENT LIMITED,SP0007380
WANDSWORTH COUNCIL,NGF CS,,OTHER AGENCIES,Revenue,DISBURSEMENTS,120643250,05-Jul-16,986086,500.00,4 BRICK COURT MANAGEMENT LIMITED,SP0007380
WANDSWORTH COUNCIL,NGF CS,,OTHER AGENCIES,Revenue,DISBURSEMENTS,120643250,05-Jul-16,986087,625.00,4 BRICK COURT MANAGEMENT LIMITED,SP0007380
WANDSWORTH COUNCIL,NGF CS,,OTHER AGENCIES,Revenue,DISBURSEMENTS,120643250,11-Jul-16,990880,"4,750.00",4 BRICK COURT MANAGEMENT LIMITED,SP0007380
WANDSWORTH COUNCIL,NGF CS,,OTHER AGENCIES,Revenue,DISBURSEMENTS,120643250,11-Jul-16,990876,"3,000.00",11 KBW LTD,SP0008673
WANDSWORTH COUNCIL,NGF CS,,OTHER AGENCIES,Revenue,DISBURSEMENTS,120643250,20-Jul-16,1000281,"1,200.00",THE CHAMBERS OF ANDREW TROLLOPE QC,SP0009051
WANDSWORTH COUNCIL,NGF CS,,OTHER AGENCIES,Revenue,DISBURSEMENTS,120643250,20-Jul-16,1000280,650.00,FIVE PAPER,SP0009057
WANDSWORTH COUNCIL,NGF CS,,OTHER AGENCIES,Revenue,DISBURSEMENTS,120643250,27-Jul-16,1003873,850.00,FIVE PAPER,SP0009057
WANDSWORTH COUNCIL,NGF CS,,OTHER AGENCIES,Revenue,DISBURSEMENTS,120643250,27-Jul-16,1004541,440.00,FIVE PAPER,SP0009057
WANDSWORTH COUNCIL,NGF CS,,OTHER AGENCIES,Revenue,DISBURSEMENTS,120643250,27-Jul-16,1004542,640.00,FIVE PAPER,SP0009057
WANDSWORTH COUNCIL,NGF CS,,OTHER AGENCIES,Revenue,DISBURSEMENTS,120643250,05-Jul-16,986139,450.00,FIVE PAPER,SP0009057
WANDSWORTH COUNCIL,NGF CS,,OTHER AGENCIES,Revenue,DISBURSEMENTS,120643250,13-Jul-16,993107,568.75,FIVE PAPER,SP0009057
WANDSWORTH COUNCIL,NGF CS,,OTHER AGENCIES,Revenue,DISBURSEMENTS,120643250,13-Jul-16,993792,750.00,FIVE PAPER,SP0009057
WANDSWORTH COUNCIL,NGF CS,,OTHER AGENCIES,Revenue,DISBURSEMENTS,120643250,21-Jul-16,1000940,500.00,1 GARDEN COURT CHAMBERS,SP0009291
WANDSWORTH COUNCIL,NGF CS,,OTHER AGENCIES,Revenue,DISBURSEMENTS,120643250,21-Jul-16,1000943,550.00,1 GARDEN COURT CHAMBERS,SP0009291
WANDSWORTH COUNCIL,NGF CS,,OTHER AGENCIES,Revenue,DISBURSEMENTS,120643250,27-Jul-16,1002630,"3,299.99",1 GARDEN COURT CHAMBERS,SP0009291
WANDSWORTH COUNCIL,NGF CS,,OTHER AGENCIES,Revenue,DISBURSEMENTS,120643250,04-Jul-16,984670,600.00,1 GARDEN COURT CHAMBERS,SP0009291
WANDSWORTH COUNCIL,NGF CS,,OTHER AGENCIES,Revenue,DISBURSEMENTS,120643250,07-Jul-16,986630,550.00,1 GARDEN COURT CHAMBERS,SP0009291
WANDSWORTH COUNCIL,NGF CS,,OTHER AGENCIES,Revenue,DISBURSEMENTS,120643250,05-Jul-16,986131,468.00,DR COSMO HALLSTROM,SP0009493
WANDSWORTH COUNCIL,NGF CS,,OTHER AGENCIES,Revenue,DISBURSEMENTS,120643250,21-Jul-16,1000836,700.00,FOURTEEN,SP0009555
WANDSWORTH COUNCIL,NGF CS,,OTHER AGENCIES,Revenue,DISBURSEMENTS,120643250,21-Jul-16,1000837,750.00,FOURTEEN,SP0009555
WANDSWORTH COUNCIL,NGF CS,,OTHER AGENCIES,Revenue,DISBURSEMENTS,120643250,21-Jul-16,1000944,720.00,FOURTEEN,SP0009555
WANDSWORTH COUNCIL,NGF CS,,OTHER AGENCIES,Revenue,DISBURSEMENTS,120643250,05-Jul-16,986083,775.00,FOURTEEN,SP0009555
WANDSWORTH COUNCIL,NGF CS,,OTHER AGENCIES,Revenue,DISBURSEMENTS,120643250,05-Jul-16,986126,"3,030.00",FOURTEEN,SP0009555
WANDSWORTH COUNCIL,NGF CS,,OTHER AGENCIES,Revenue,DISBURSEMENTS,120643250,05-Jul-16,986129,"5,100.00",FOURTEEN,SP0009555
WANDSWORTH COUNCIL,NGF CS,,OTHER AGENCIES,Revenue,DISBURSEMENTS,120643250,11-Jul-16,990879,665.00,FOURTEEN,SP0009555
WANDSWORTH COUNCIL,NGF CS,,OTHER AGENCIES,Revenue,DISBURSEMENTS,120643250,27-Jul-16,1004342,783.00,DR RODGER KENNEDY,SP0009927
WANDSWORTH COUNCIL,NGF CS,,OTHER AGENCIES,Revenue,DISBURSEMENTS,120643250,07-Jul-16,986082,684.00,DR CHRISTOPHER J B MCEVEDY,SP0010181
WANDSWORTH COUNCIL,NGF CS,,PRIVATE,Revenue,CONTRACT 7 - VNEB LEGAL,120645540,22-Jul-16,1000864,"1,613.18",WINCKWORTH SHERWOOD LLP,SP0006926
WANDSWORTH COUNCIL,NGF CS,,PRIVATE,Revenue,LOT 3 - ASSET VALUATIONS & RAT,120746200,29-Jul-16,1005978,"24,710.00",WILKS HEAD AND EVE,SP0003406
WANDSWORTH COUNCIL,NGF CS,,PRIVATE,Revenue,LOT 3 - ASSET VALUATIONS & RAT,120746200,29-Jul-16,1005979,"42,250.00",WILKS HEAD AND EVE,SP0003406
WANDSWORTH COUNCIL,NGF CS,,PRIVATE,Revenue,LOT 3 - ASSET VALUATIONS & RAT,120746200,29-Jul-16,1005980,"4,620.00",WILKS HEAD AND EVE,SP0003406
WANDSWORTH COUNCIL,NGF CS,,PRIVATE,Revenue,LOT 2 - GEN VALUATIONS,120746250,07-Jul-16,988017,"2,500.00",KNIGHT FRANK LLP,SP0004347
WANDSWORTH COUNCIL,NGF CS,,PRIVATE,Revenue,LOT 4 - STAT VALS & PROP ADVIC,120746260,12-Jul-16,990194,"6,060.00",G L HEARN LTD,SP0009602
WANDSWORTH COUNCIL,NGF CS,,DIRECT2,Revenue,AGENCY STAFF,120800510,18-Jul-16,996594,"1,189.44",COBALT CONSULTING (UK) LTD,SP0008002
WANDSWORTH COUNCIL,NGF CS,,DIRECT2,Revenue,AGENCY STAFF,120800510,18-Jul-16,996596,"1,189.44",COBALT CONSULTING (UK) LTD,SP0008002
WANDSWORTH COUNCIL,NGF CS,,COMMUNICATIONS & COMP,Revenue,I.T. SOFTWARE,121136240,04-Jul-16,985039,699.00,VIEWDATA COMPUTING LTD,SP0002721
WANDSWORTH COUNCIL,NGF CS,,COMMUNICATIONS & COMP,Revenue,I.T. SOFTWARE,121136240,19-Jul-16,994516,"3,137.95",SOFTWARE BOX LTD,SP0007589
WANDSWORTH COUNCIL,NGF CS,,PRINTING STAT & GEN OFFICE EXP,Revenue,OUTWORK - WEB OFFSET,121333580,28-Jul-16,1006833,"3,110.00",WARNERS MIDLANDS PLC,SP0007709
WANDSWORTH COUNCIL,NGF CS,,PRINTING STAT & GEN OFFICE EXP,Revenue,OUTWORK - WEB OFFSET,121333580,28-Jul-16,1006834,"2,419.00",WYNDEHAM PETERBOROUGH LTD,SP0010249
WANDSWORTH COUNCIL,NGF CS,,PRINTING STAT & GEN OFFICE EXP,Revenue,OUTWORK - WEB OFFSET,121333580,28-Jul-16,1006835,"2,419.00",WYNDEHAM PETERBOROUGH LTD,SP0010249
WANDSWORTH COUNCIL,NGF CS,,PRINTING STAT & GEN OFFICE EXP,Revenue,OUTWORK - LITHO,121333590,28-Jul-16,1006828,"4,967.42",KALL KWIK,SP0003093
WANDSWORTH COUNCIL,NGF CS,,PRINTING STAT & GEN OFFICE EXP,Revenue,OUTWORK - LITHO,121333590,12-Jul-16,993270,585.00,IMPRESS PRINT SERVICES LTD,SP0003209
WANDSWORTH COUNCIL,NGF CS,,PRINTING STAT & GEN OFFICE EXP,Revenue,URGENT PRINT CONTRACT,121333620,12-Jul-16,993295,672.36,KALL KWIK,SP0003093
WANDSWORTH COUNCIL,NGF CS,,PRINTING STAT & GEN OFFICE EXP,Revenue,URGENT PRINT CONTRACT,121333620,12-Jul-16,993298,569.35,KALL KWIK,SP0003093
WANDSWORTH COUNCIL,NGF CS,,MISC,Revenue,MISCELLANEOUS EXPENSES,121338500,12-Jul-16,993300,422.29,LONDON LETTERBOX MARKETING,SP0000546
WANDSWORTH COUNCIL,NGF CDC,,PRINTING STAT & GEN OFFICE EXP,Revenue,PUBLIC RELATIONS,12203346K9018A,07-Jul-16,987382,"8,195.00",LONDON LETTERBOX MARKETING,SP0000546
WANDSWORTH COUNCIL,NGF CDC,,PRINTING STAT & GEN OFFICE EXP,Revenue,PUBLICITY,122033470,27-Jul-16,1002583,"1,260.00",DOTMAILER LTD,SP0006264
WANDSWORTH COUNCIL,NGF CDC,,PRINTING STAT & GEN OFFICE EXP,Revenue,PUBLICITY,122033470,27-Jul-16,1002584,700.00,DOTMAILER LTD,SP0006264
WANDSWORTH COUNCIL,NGF CDC,,PRINTING STAT & GEN OFFICE EXP,Revenue,PUBLICITY,122033470,07-Jul-16,987348,649.00,DOTMAILER LTD,SP0006264
WANDSWORTH COUNCIL,NGF CS,,INDIRECT,Revenue,IN-SERVICE TRAINING-SLA,123000740,22-Jul-16,998343,600.00,TRAINING OUTSOURCE LIMITED,SP0008861
WANDSWORTH COUNCIL,NGF CS,,INDIRECT,Revenue,IN-SERVICE TRAINING-SLA,123000740,27-Jul-16,1002667,416.67,ELITE TRAINING & CONSULTANCY LTD,SP0010349
WANDSWORTH COUNCIL,NGF CS,,INDIRECT,Revenue,IN-SERVICE TRAINING-SLA,123000740,11-Jul-16,992241,"4,755.00",ELITE TRAINING & CONSULTANCY LTD,SP0010349
WANDSWORTH COUNCIL,NGF CS,,INDIRECT,Revenue,TRAINING - EXTERNAL COURSES,123000770,14-Jul-16,995329,755.00,C I P D,SP0007055
WANDSWORTH COUNCIL,NGF CS,,INDIRECT,Revenue,HEALTH CARE PROMOTIONAL,123200630,11-Jul-16,990176,"6,088.44",WORKPLACE OPTIONS,SP0005551
WANDSWORTH COUNCIL,NGF CS,,INDIRECT,Revenue,CHILDCARE VOUCHERS,123200650,27-Jul-16,1004547,117.96,COMPUTERSHARE VOUCHER SERVICES,SP0003037
WANDSWORTH COUNCIL,NGF CS,,INDIRECT,Revenue,CHILDCARE VOUCHERS,123200650,14-Jul-16,993627,708.48,COMPUTERSHARE VOUCHER SERVICES,SP0003037
WANDSWORTH COUNCIL,NGF CS,,INDIRECT,Revenue,LONG SERVICE AWARDS,123200980,12-Jul-16,986138,"4,571.07",CHEVIOT RECRUITMENT LTD,SP0005273
WANDSWORTH COUNCIL,NGF CS,,PRINTING STAT & GEN OFFICE EXP,Revenue,PHOTOCOPYING,123233380,15-Jul-16,995340,"2,850.75",RICOH UK LTD,SP0002316
WANDSWORTH COUNCIL,NGF CS,,PRINTING STAT & GEN OFFICE EXP,Revenue,PRINTING AND STATIONERY,123233420,18-Jul-16,996515,183.42,DANWOOD GROUP LTD,SP0002739
WANDSWORTH COUNCIL,NGF CS,,PRINTING STAT & GEN OFFICE EXP,Revenue,PRINTING AND STATIONERY,123233420,18-Jul-16,996515,183.42,DANWOOD GROUP LTD,SP0002739
WANDSWORTH COUNCIL,NGF CS,,PRINTING STAT & GEN OFFICE EXP,Revenue,PRINTING AND STATIONERY,123233420,18-Jul-16,996515,254.45,DANWOOD GROUP LTD,SP0002739
WANDSWORTH COUNCIL,NGF CS,,PRINTING STAT & GEN OFFICE EXP,Revenue,PRINTING AND STATIONERY,123233420,18-Jul-16,996515,183.42,DANWOOD GROUP LTD,SP0002739
WANDSWORTH COUNCIL,NGF CS,,SERVICES,Revenue,OHS SESSIONAL DOCTOR,123234690,11-Jul-16,989659,"4,930.20",HJM ASSOCIATES,SP0003667
WANDSWORTH COUNCIL,NGF CS,,SERVICES,Revenue,SERVICES - GENERAL,123234870,11-Jul-16,989658,471.22,QUEST INFORMATION SYSTEMS LTD - DICTATEN,SP0002265
WANDSWORTH COUNCIL,NGF CS,,MISC,Revenue,MISCELLANEOUS EXPENSES,123238500,07-Jul-16,987315,"1,929.75",EDENRED UK GROUP LTD,SP0000238
WANDSWORTH COUNCIL,NGF CS,,PRIVATE,Revenue,GENERAL CONTRACT WORK,123245370,05-Jul-16,986043,"2,202.00",GATENBY SANDERSON LTD,SP0009545
WANDSWORTH COUNCIL,NGF CS,,PRIVATE,Revenue,GENERAL CONTRACT WORK,123245370,22-Jul-16,999749,"4,375.00",GATENBY SANDERSON LTD,SP0009545
WANDSWORTH COUNCIL,NGF CDC,,PRIVATE,Revenue,GENERAL CONTRACT WORK,124245370,04-Jul-16,985032,"3,030.00",SOPHIA COWARD,SP0008321
WANDSWORTH COUNCIL,NGF CS,,MISC,Revenue,MISCELLANEOUS EXPENSES,124738500,14-Jul-16,993649,605.00,JT ENTERPRISES,SP0000349
WANDSWORTH COUNCIL,NGF CS,,MISC,Revenue,MISCELLANEOUS EXPENSES,124738500,28-Jul-16,1004336,"2,925.00",STORAGE ESSENTIALS LIMITED,SP0011021
WANDSWORTH COUNCIL,NGF CS,,INDIRECT,Revenue,TRAINING - EXTERNAL COURSES,126000770,21-Jul-16,997553,"2,500.00",LANDESK UK LIMITED,SP0008498
WANDSWORTH COUNCIL,NGF CS,,COMMUNICATIONS & COMP,Revenue,I.T. EQUIPMENT & MAINTENANCE,126036210,07-Jul-16,975200,"6,170.00",KODAK ALARIS LTD,SP0009592
WANDSWORTH COUNCIL,NGF CS,,GRANTS & SUBSCRIPTIONS,Revenue,SUBSCRIPTIONS,126037640,13-Jul-16,986665,"24,200.00",THE CORPORATE EXECUTIVE BOARD COMPANY,SP0009810
WANDSWORTH COUNCIL,NGF CS,,"EQUIPMENT, FURNITURE & MATS",Revenue,ADAPTATIONS - COUNCIL,126130020,27-Jul-16,1004535,"2,075.00",SUNA COMMUNICATION LTD,SP0000491
WANDSWORTH COUNCIL,NGF CS,,"EQUIPMENT, FURNITURE & MATS",Revenue,CCTV CONTROL ROOM DEVELOPMENT,126130030,25-Jul-16,1001401,"15,951.77",VIRGIN MEDIA BUSINESS,SP0003737
WANDSWORTH COUNCIL,NGF CS,,"EQUIPMENT, FURNITURE & MATS",Revenue,CCTV CONTROL ROOM DEVELOPMENT,126130030,13-Jul-16,993632,"4,508.53",VIRGIN MEDIA BUSINESS,SP0003737
WANDSWORTH COUNCIL,NGF CS,,"EQUIPMENT, FURNITURE & MATS",Revenue,CCTV FIBRE RENTALS,126130040,12-Jul-16,993078,"5,928.34",VODAFONE CORPORATE,SP0001107
WANDSWORTH COUNCIL,NGF CS,,"EQUIPMENT, FURNITURE & MATS",Revenue,CONSUMABLES,126130080,25-Jul-16,1001402,"29,368.93",BT PAYMENT SERVICES LTD,SP0001093
WANDSWORTH COUNCIL,NGF CS,,"EQUIPMENT, FURNITURE & MATS",Revenue,CONSUMABLES,126130080,25-Jul-16,1001403,"14,519.00",BT PAYMENT SERVICES LTD,SP0001093
WANDSWORTH COUNCIL,NGF CS,,"EQUIPMENT, FURNITURE & MATS",Revenue,CONSUMABLES,126130080,25-Jul-16,1001404,"4,566.57",BT PAYMENT SERVICES LTD,SP0001093
WANDSWORTH COUNCIL,NGF CS,,"EQUIPMENT, FURNITURE & MATS",Revenue,"EQUIPMENT, FURNITURE & MATS",126530000,01-Jul-16,985033,393.77,DATA PROTECT UK,SP0002318
WANDSWORTH COUNCIL,NGF CS,,"EQUIPMENT, FURNITURE & MATS",Revenue,"EQUIPMENT, FURNITURE & MATS",126530000,01-Jul-16,985033,402.74,DATA PROTECT UK,SP0002318
WANDSWORTH COUNCIL,NGF CS,,"EQUIPMENT, FURNITURE & MATS",Revenue,"EQUIPMENT, FURNITURE & MATS",126530000,01-Jul-16,985033,190.00,DATA PROTECT UK,SP0002318
WANDSWORTH COUNCIL,NGF CS,,"EQUIPMENT, FURNITURE & MATS",Revenue,"EQUIPMENT, FURNITURE & MATS",126530000,01-Jul-16,985033,10.00,DATA PROTECT UK,SP0002318
WANDSWORTH COUNCIL,NGF CS,,"EQUIPMENT, FURNITURE & MATS",Revenue,"EQUIPMENT, FURNITURE & MATS",126530000,01-Jul-16,985033,700.00,DATA PROTECT UK,SP0002318
WANDSWORTH COUNCIL,NGF CS,,"EQUIPMENT, FURNITURE & MATS",Revenue,"EQUIPMENT, FURNITURE & MATS",126530000,01-Jul-16,985034,402.74,DATA PROTECT UK,SP0002318
WANDSWORTH COUNCIL,NGF CS,,"EQUIPMENT, FURNITURE & MATS",Revenue,"EQUIPMENT, FURNITURE & MATS",126530000,01-Jul-16,985034,10.53,DATA PROTECT UK,SP0002318
WANDSWORTH COUNCIL,NGF CS,,"EQUIPMENT, FURNITURE & MATS",Revenue,"EQUIPMENT, FURNITURE & MATS",126530000,01-Jul-16,985034,199.50,DATA PROTECT UK,SP0002318
WANDSWORTH COUNCIL,NGF CS,,"EQUIPMENT, FURNITURE & MATS",Revenue,"EQUIPMENT, FURNITURE & MATS",126530000,01-Jul-16,985034,10.00,DATA PROTECT UK,SP0002318
WANDSWORTH COUNCIL,NGF CS,,"EQUIPMENT, FURNITURE & MATS",Revenue,"EQUIPMENT, FURNITURE & MATS",126530000,01-Jul-16,985035,10.00,DATA PROTECT UK,SP0002318
WANDSWORTH COUNCIL,NGF CS,,"EQUIPMENT, FURNITURE & MATS",Revenue,"EQUIPMENT, FURNITURE & MATS",126530000,01-Jul-16,985035,139.36,DATA PROTECT UK,SP0002318
WANDSWORTH COUNCIL,NGF CS,,"EQUIPMENT, FURNITURE & MATS",Revenue,"EQUIPMENT, FURNITURE & MATS",126530000,01-Jul-16,985035,209.00,DATA PROTECT UK,SP0002318
WANDSWORTH COUNCIL,NGF CS,,"EQUIPMENT, FURNITURE & MATS",Revenue,"EQUIPMENT, FURNITURE & MATS",126530000,01-Jul-16,985035,192.14,DATA PROTECT UK,SP0002318
WANDSWORTH COUNCIL,NGF CS,,"EQUIPMENT, FURNITURE & MATS",Revenue,"EQUIPMENT, FURNITURE & MATS",126530000,01-Jul-16,985036,10.00,DATA PROTECT UK,SP0002318
WANDSWORTH COUNCIL,NGF CS,,"EQUIPMENT, FURNITURE & MATS",Revenue,"EQUIPMENT, FURNITURE & MATS",126530000,01-Jul-16,985036,209.00,DATA PROTECT UK,SP0002318
WANDSWORTH COUNCIL,NGF CS,,"EQUIPMENT, FURNITURE & MATS",Revenue,"EQUIPMENT, FURNITURE & MATS",126530000,01-Jul-16,985036,228.54,DATA PROTECT UK,SP0002318
WANDSWORTH COUNCIL,NGF CS,,"EQUIPMENT, FURNITURE & MATS",Revenue,"EQUIPMENT, FURNITURE & MATS",126530000,01-Jul-16,985036,109.07,DATA PROTECT UK,SP0002318
WANDSWORTH COUNCIL,NGF CS,,"EQUIPMENT, FURNITURE & MATS",Revenue,"EQUIPMENT, FURNITURE & MATS",126530000,28-Jul-16,1005530,"3,000.00",AGILISYS LIMITED,SP0010689
WANDSWORTH COUNCIL,NGF CS,,"EQUIPMENT, FURNITURE & MATS",Revenue,"EQUIPMENT, FURNITURE & MATS",126530000,18-Jul-16,997039,"2,000.00",AGILISYS LIMITED,SP0010689
WANDSWORTH COUNCIL,NGF CS,,"EQUIPMENT, FURNITURE & MATS",Revenue,"EQUIPMENT, FURNITURE & MATS",126530000,18-Jul-16,997039,"2,000.00",AGILISYS LIMITED,SP0010689
WANDSWORTH COUNCIL,NGF CS,,SERVICES,Revenue,SERVICES - GENERAL,126534870,26-Jul-16,997581,"10,264.39",RETAIL ASSIST LTD,SP0007725
WANDSWORTH COUNCIL,NGF CS,,COMMUNICATIONS & COMP,Revenue,I.T. EQUIPMENT & MAINTENANCE,126536210,11-Jul-16,943298,"1,605.84",TENEO LIMITED,SP0006844
WANDSWORTH COUNCIL,NGF CS,,COMMUNICATIONS & COMP,Revenue,I.T. EQUIPMENT & MAINTENANCE,126536210,11-Jul-16,943298,"1,746.85",TENEO LIMITED,SP0006844
WANDSWORTH COUNCIL,NGF CS,,COMMUNICATIONS & COMP,Revenue,I.T. EQUIPMENT & MAINTENANCE,126536210,11-Jul-16,943298,"1,746.85",TENEO LIMITED,SP0006844
WANDSWORTH COUNCIL,NGF CS,,COMMUNICATIONS & COMP,Revenue,I.T. EQUIPMENT & MAINTENANCE,126536210,11-Jul-16,943298,"1,746.85",TENEO LIMITED,SP0006844
WANDSWORTH COUNCIL,NGF CS,,COMMUNICATIONS & COMP,Revenue,I.T. EQUIPMENT & MAINTENANCE,126536210,11-Jul-16,943298,"1,746.85",TENEO LIMITED,SP0006844
WANDSWORTH COUNCIL,NGF CS,,COMMUNICATIONS & COMP,Revenue,I.T. EQUIPMENT & MAINTENANCE,126536210,11-Jul-16,943298,"1,966.67",TENEO LIMITED,SP0006844
WANDSWORTH COUNCIL,NGF CS,,COMMUNICATIONS & COMP,Revenue,I.T. EQUIPMENT & MAINTENANCE,126536210,11-Jul-16,943298,"1,472.00",TENEO LIMITED,SP0006844
WANDSWORTH COUNCIL,NGF CS,,COMMUNICATIONS & COMP,Revenue,I.T. EQUIPMENT & MAINTENANCE,126536210,11-Jul-16,943298,"1,472.00",TENEO LIMITED,SP0006844
WANDSWORTH COUNCIL,NGF CS,,COMMUNICATIONS & COMP,Revenue,I.T. EQUIPMENT & MAINTENANCE,126536210,11-Jul-16,943298,"1,966.67",TENEO LIMITED,SP0006844
WANDSWORTH COUNCIL,NGF CS,,COMMUNICATIONS & COMP,Revenue,I.T. SOFTWARE,126536240,13-Jul-16,992221,"4,950.00",BLUESOURCE INFORMATION LTD,SP0007862
WANDSWORTH COUNCIL,NGF CS,,COMMUNICATIONS & COMP,Revenue,I.T. SOFTWARE,126536240,13-Jul-16,992221,400.00,BLUESOURCE INFORMATION LTD,SP0007862
WANDSWORTH COUNCIL,NGF CS,,COMMUNICATIONS & COMP,Revenue,I.T. SOFTWARE,126536240,27-Jul-16,1005541,"11,508.91",LANDESK UK LIMITED,SP0008498
WANDSWORTH COUNCIL,NGF CS,,COMMUNICATIONS & COMP,Revenue,IT SUPPORT SERVICES SLA,126736360,25-Jul-16,1003870,686.62,CIVICA UK LTD,SP0000394
WANDSWORTH COUNCIL,NGF CS,,COMMUNICATIONS & COMP,Revenue,IT SUPPORT SERVICES SLA,126736360,08-Jul-16,969871,"1,554.35",CIVICA UK LTD,SP0000394
WANDSWORTH COUNCIL,NGF CS,,COMMUNICATIONS & COMP,Revenue,IT SUPPORT SERVICES SLA,126736360,08-Jul-16,969871,"2,570.00",CIVICA UK LTD,SP0000394
WANDSWORTH COUNCIL,NGF CS,,COMMUNICATIONS & COMP,Revenue,I.T. - SAFFRON,126836260,07-Jul-16,986631,289.61,BANNER MANAGED COMMUNICATION,SP0003555
WANDSWORTH COUNCIL,NGF CS,,COMMUNICATIONS & COMP,Revenue,I.T. - SYSTEMS DEVELOPMENT,126836270,15-Jul-16,987319,"15,750.00",EBASE TECHNOLOGY LTD,SP0006389
WANDSWORTH COUNCIL,CS,,DIRECT2,Revenue,AGENCY STAFF,128000510,22-Jul-16,1001692,"22,272.53",MATRIX SCM LIMITED,SP0004572
WANDSWORTH COUNCIL,CS,,DIRECT2,Revenue,AGENCY STAFF,128000510,29-Jul-16,1006350,"34,680.56",MATRIX SCM LIMITED,SP0004572
WANDSWORTH COUNCIL,CS,,DIRECT2,Revenue,AGENCY STAFF,128000510,11-Jul-16,990164,"30,506.17",MATRIX SCM LIMITED,SP0004572
WANDSWORTH COUNCIL,CS,,DIRECT2,Revenue,AGENCY STAFF,128000510,15-Jul-16,995317,"23,840.46",MATRIX SCM LIMITED,SP0004572
WANDSWORTH COUNCIL,CS,,INDIRECT,Revenue,STAFF ADVERTISING - VACANCIES,128000960,27-Jul-16,1002586,"1,952.75",PENNA PLC,SP0006290
WANDSWORTH COUNCIL,CS,,INDIRECT,Revenue,STAFF ADVERTISING - VACANCIES,128000960,14-Jul-16,993102,917.75,PENNA PLC,SP0006290
WANDSWORTH COUNCIL,CS,,INDIRECT,Revenue,STAFF ADVERTISING - VACANCIES,128000960,14-Jul-16,993126,"2,330.75",PENNA PLC,SP0006290
WANDSWORTH COUNCIL,CS,,INDIRECT,Revenue,STAFF ADVERTISING - VACANCIES,128000960,14-Jul-16,993127,"1,698.20",PENNA PLC,SP0006290
WANDSWORTH COUNCIL,ASC,SOCIAL SERVICES,PRIVATE,Revenue,EXTERNAL RESIDENTIAL CARE,130045330,21-Jul-16,1001529,"7,959.12",CHATSWORTH CARE,SP0000831
WANDSWORTH COUNCIL,ASC,SOCIAL SERVICES,CUSTOMER & CLIENT RECPTS - EXT,Revenue,CL CONT EXTERNAL RESIDENTIAL,130080720,27-Jul-16,1005461,(578.81),BIRCC,SP0000584
WANDSWORTH COUNCIL,ASC,SOCIAL SERVICES,HIRE,Revenue,HIRE - TRANSPORT,130220410,26-Jul-16,1004494,433.56,BECKETT CORPORATION LTD T/A TINAS CARS,SP0000729
WANDSWORTH COUNCIL,ASC,SOCIAL SERVICES,HIRE,Revenue,HIRE - TRANSPORT,130220410,26-Jul-16,1004495,756.96,BECKETT CORPORATION LTD T/A TINAS CARS,SP0000729
WANDSWORTH COUNCIL,ASC,SOCIAL SERVICES,HIRE,Revenue,HIRE - TRANSPORT,130220410,26-Jul-16,1004496,"1,879.20",BECKETT CORPORATION LTD T/A TINAS CARS,SP0000729
WANDSWORTH COUNCIL,ASC,SOCIAL SERVICES,HIRE,Revenue,HIRE - TRANSPORT,130220410,26-Jul-16,1004498,449.16,BECKETT CORPORATION LTD T/A TINAS CARS,SP0000729
WANDSWORTH COUNCIL,ASC,SOCIAL SERVICES,HIRE,Revenue,HIRE - TRANSPORT,130220410,26-Jul-16,1004499,500.68,BECKETT CORPORATION LTD T/A TINAS CARS,SP0000729
WANDSWORTH COUNCIL,ASC,SOCIAL SERVICES,HIRE,Revenue,HIRE - TRANSPORT,130220410,26-Jul-16,1004500,425.52,BECKETT CORPORATION LTD T/A TINAS CARS,SP0000729
WANDSWORTH COUNCIL,ASC,SOCIAL SERVICES,HIRE,Revenue,HIRE - TRANSPORT,130220410,26-Jul-16,1004501,"1,210.00",BECKETT CORPORATION LTD T/A TINAS CARS,SP0000729
WANDSWORTH COUNCIL,ASC,SOCIAL SERVICES,HIRE,Revenue,HIRE - TRANSPORT,130220410,26-Jul-16,1004502,864.00,BECKETT CORPORATION LTD T/A TINAS CARS,SP0000729
WANDSWORTH COUNCIL,ASC,SOCIAL SERVICES,HIRE,Revenue,HIRE - TRANSPORT,130220410,26-Jul-16,1004503,468.00,BECKETT CORPORATION LTD T/A TINAS CARS,SP0000729
WANDSWORTH COUNCIL,ASC,SOCIAL SERVICES,HIRE,Revenue,HIRE - TRANSPORT,130220410,26-Jul-16,1004505,600.00,BECKETT CORPORATION LTD T/A TINAS CARS,SP0000729
WANDSWORTH COUNCIL,ASC,SOCIAL SERVICES,HIRE,Revenue,HIRE - TRANSPORT,130220410,26-Jul-16,1004506,"1,058.82",BECKETT CORPORATION LTD T/A TINAS CARS,SP0000729
WANDSWORTH COUNCIL,ASC,SOCIAL SERVICES,HIRE,Revenue,HIRE - TRANSPORT,130220410,26-Jul-16,1004507,442.43,BECKETT CORPORATION LTD T/A TINAS CARS,SP0000729
WANDSWORTH COUNCIL,ASC,SOCIAL SERVICES,HIRE,Revenue,HIRE - TRANSPORT,130220410,26-Jul-16,1004508,538.59,BECKETT CORPORATION LTD T/A TINAS CARS,SP0000729
WANDSWORTH COUNCIL,ASC,SOCIAL SERVICES,HIRE,Revenue,HIRE - TRANSPORT,130220410,26-Jul-16,1004509,"1,720.00",BECKETT CORPORATION LTD T/A TINAS CARS,SP0000729
WANDSWORTH COUNCIL,ASC,SOCIAL SERVICES,HIRE,Revenue,HIRE - TRANSPORT,130220410,26-Jul-16,1004510,"1,810.00",BECKETT CORPORATION LTD T/A TINAS CARS,SP0000729
WANDSWORTH COUNCIL,ASC,SOCIAL SERVICES,HIRE,Revenue,HIRE - TRANSPORT,130220410,26-Jul-16,1004511,858.00,BECKETT CORPORATION LTD T/A TINAS CARS,SP0000729
WANDSWORTH COUNCIL,ASC,SOCIAL SERVICES,HIRE,Revenue,HIRE - TRANSPORT,130220410,26-Jul-16,1004512,"1,900.00",BECKETT CORPORATION LTD T/A TINAS CARS,SP0000729
WANDSWORTH COUNCIL,ASC,SOCIAL SERVICES,HIRE,Revenue,HIRE - TRANSPORT,130220410,26-Jul-16,1004513,"1,595.00",BECKETT CORPORATION LTD T/A TINAS CARS,SP0000729
WANDSWORTH COUNCIL,ASC,SOCIAL SERVICES,HIRE,Revenue,HIRE - TRANSPORT,130220410,26-Jul-16,1004517,500.00,BECKETT CORPORATION LTD T/A TINAS CARS,SP0000729
WANDSWORTH COUNCIL,ASC,SOCIAL SERVICES,HIRE,Revenue,HIRE - TRANSPORT,130220410,11-Jul-16,992653,"1,980.00",BECKETT CORPORATION LTD T/A TINAS CARS,SP0000729
WANDSWORTH COUNCIL,ASC,SOCIAL SERVICES,HIRE,Revenue,HIRE - TRANSPORT,130220410,11-Jul-16,992657,576.00,BECKETT CORPORATION LTD T/A TINAS CARS,SP0000729
WANDSWORTH COUNCIL,ASC,SOCIAL SERVICES,HIRE,Revenue,HIRE - TRANSPORT,130220410,11-Jul-16,992658,"1,740.00",BECKETT CORPORATION LTD T/A TINAS CARS,SP0000729
WANDSWORTH COUNCIL,ASC,SOCIAL SERVICES,HIRE,Revenue,HIRE - TRANSPORT,130220410,11-Jul-16,992660,"1,320.00",BECKETT CORPORATION LTD T/A TINAS CARS,SP0000729
WANDSWORTH COUNCIL,ASC,SOCIAL SERVICES,HIRE,Revenue,HIRE - TRANSPORT,130220410,11-Jul-16,992661,"1,320.00",BECKETT CORPORATION LTD T/A TINAS CARS,SP0000729
WANDSWORTH COUNCIL,ASC,SOCIAL SERVICES,HIRE,Revenue,HIRE - TRANSPORT,130220410,11-Jul-16,992663,990.00,BECKETT CORPORATION LTD T/A TINAS CARS,SP0000729
WANDSWORTH COUNCIL,ASC,SOCIAL SERVICES,HIRE,Revenue,HIRE - TRANSPORT,130220410,11-Jul-16,992664,"1,210.00",BECKETT CORPORATION LTD T/A TINAS CARS,SP0000729
WANDSWORTH COUNCIL,ASC,SOCIAL SERVICES,HIRE,Revenue,HIRE - TRANSPORT,130220410,15-Jul-16,996715,600.00,BECKETT CORPORATION LTD T/A TINAS CARS,SP0000729
WANDSWORTH COUNCIL,ASC,SOCIAL SERVICES,HIRE,Revenue,HIRE - TRANSPORT,130220410,15-Jul-16,996718,434.96,BECKETT CORPORATION LTD T/A TINAS CARS,SP0000729
WANDSWORTH COUNCIL,ASC,SOCIAL SERVICES,HIRE,Revenue,HIRE - TRANSPORT,130220410,15-Jul-16,996719,480.36,BECKETT CORPORATION LTD T/A TINAS CARS,SP0000729
WANDSWORTH COUNCIL,ASC,SOCIAL SERVICES,HIRE,Revenue,HIRE - TRANSPORT,130220410,15-Jul-16,996720,432.00,BECKETT CORPORATION LTD T/A TINAS CARS,SP0000729
WANDSWORTH COUNCIL,ASC,SOCIAL SERVICES,HIRE,Revenue,HIRE - TRANSPORT,130220410,15-Jul-16,996726,406.32,BECKETT CORPORATION LTD T/A TINAS CARS,SP0000729
WANDSWORTH COUNCIL,ASC,SOCIAL SERVICES,HIRE,Revenue,HIRE - TRANSPORT,130220410,15-Jul-16,996730,270.88,BECKETT CORPORATION LTD T/A TINAS CARS,SP0000729
WANDSWORTH COUNCIL,ASC,SOCIAL SERVICES,HIRE,Revenue,HIRE - TRANSPORT,130220410,15-Jul-16,996734,270.88,BECKETT CORPORATION LTD T/A TINAS CARS,SP0000729
WANDSWORTH COUNCIL,ASC,SOCIAL SERVICES,HIRE,Revenue,HIRE - TRANSPORT,130220410,25-Jul-16,1004067,546.00,A STAR TRANSPORT LTD,SP0000866
WANDSWORTH COUNCIL,ASC,SOCIAL SERVICES,HIRE,Revenue,HIRE - TRANSPORT,130220410,11-Jul-16,992712,748.50,A STAR TRANSPORT LTD,SP0000866
WANDSWORTH COUNCIL,ASC,SOCIAL SERVICES,HIRE,Revenue,HIRE - TRANSPORT,130220410,11-Jul-16,992713,598.50,A STAR TRANSPORT LTD,SP0000866
WANDSWORTH COUNCIL,ASC,SOCIAL SERVICES,HIRE,Revenue,HIRE - TRANSPORT,130220410,11-Jul-16,992714,504.00,A STAR TRANSPORT LTD,SP0000866
WANDSWORTH COUNCIL,ASC,SOCIAL SERVICES,HIRE,Revenue,HIRE - TRANSPORT,130220410,11-Jul-16,992717,531.00,A STAR TRANSPORT LTD,SP0000866
WANDSWORTH COUNCIL,ASC,SOCIAL SERVICES,HIRE,Revenue,HIRE - TRANSPORT,130220410,11-Jul-16,992718,518.00,A STAR TRANSPORT LTD,SP0000866
WANDSWORTH COUNCIL,ASC,SOCIAL SERVICES,HIRE,Revenue,HIRE - TRANSPORT,130220410,11-Jul-16,992719,836.00,A STAR TRANSPORT LTD,SP0000866
WANDSWORTH COUNCIL,ASC,SOCIAL SERVICES,HIRE,Revenue,HIRE - TRANSPORT,130220410,11-Jul-16,992721,"1,190.00",A STAR TRANSPORT LTD,SP0000866
WANDSWORTH COUNCIL,ASC,SOCIAL SERVICES,HIRE,Revenue,HIRE - TRANSPORT,130220410,11-Jul-16,992722,"1,216.00",A STAR TRANSPORT LTD,SP0000866
WANDSWORTH COUNCIL,ASC,SOCIAL SERVICES,HIRE,Revenue,HIRE - TRANSPORT,130220410,11-Jul-16,992724,509.22,A STAR TRANSPORT LTD,SP0000866
WANDSWORTH COUNCIL,ASC,SOCIAL SERVICES,HIRE,Revenue,HIRE - TRANSPORT,130220410,11-Jul-16,992725,950.00,A STAR TRANSPORT LTD,SP0000866
WANDSWORTH COUNCIL,ASC,SOCIAL SERVICES,HIRE,Revenue,HIRE - TRANSPORT,130220410,11-Jul-16,992726,950.00,A STAR TRANSPORT LTD,SP0000866
WANDSWORTH COUNCIL,ASC,SOCIAL SERVICES,HIRE,Revenue,HIRE - TRANSPORT,130220410,11-Jul-16,992728,588.00,A STAR TRANSPORT LTD,SP0000866
WANDSWORTH COUNCIL,ASC,SOCIAL SERVICES,HIRE,Revenue,HIRE - TRANSPORT,130220410,11-Jul-16,992729,588.00,A STAR TRANSPORT LTD,SP0000866
WANDSWORTH COUNCIL,ASC,SOCIAL SERVICES,HIRE,Revenue,HIRE - TRANSPORT,130220410,11-Jul-16,992730,800.00,A STAR TRANSPORT LTD,SP0000866
WANDSWORTH COUNCIL,ASC,SOCIAL SERVICES,HIRE,Revenue,HIRE - TRANSPORT,130220410,11-Jul-16,992731,648.00,A STAR TRANSPORT LTD,SP0000866
WANDSWORTH COUNCIL,ASC,SOCIAL SERVICES,HIRE,Revenue,HIRE - TRANSPORT,130220410,11-Jul-16,992735,745.00,A STAR TRANSPORT LTD,SP0000866
WANDSWORTH COUNCIL,ASC,SOCIAL SERVICES,HIRE,Revenue,HIRE - TRANSPORT,130220410,11-Jul-16,992736,441.00,A STAR TRANSPORT LTD,SP0000866
WANDSWORTH COUNCIL,ASC,SOCIAL SERVICES,HIRE,Revenue,HIRE - TRANSPORT,130220410,11-Jul-16,992742,981.67,A STAR TRANSPORT LTD,SP0000866
WANDSWORTH COUNCIL,ASC,SOCIAL SERVICES,HIRE,Revenue,HIRE - TRANSPORT,130220410,11-Jul-16,992743,"1,386.67",A STAR TRANSPORT LTD,SP0000866
WANDSWORTH COUNCIL,ASC,SOCIAL SERVICES,HIRE,Revenue,HIRE - TRANSPORT,130220410,11-Jul-16,992745,"1,890.00",A STAR TRANSPORT LTD,SP0000866
WANDSWORTH COUNCIL,ASC,SOCIAL SERVICES,HIRE,Revenue,HIRE - TRANSPORT,130220410,11-Jul-16,992746,831.00,A STAR TRANSPORT LTD,SP0000866
WANDSWORTH COUNCIL,ASC,SOCIAL SERVICES,HIRE,Revenue,HIRE - TRANSPORT,130220410,11-Jul-16,992747,"1,064.00",A STAR TRANSPORT LTD,SP0000866
WANDSWORTH COUNCIL,ASC,SOCIAL SERVICES,HIRE,Revenue,HIRE - TRANSPORT,130220410,11-Jul-16,992748,719.52,A STAR TRANSPORT LTD,SP0000866
WANDSWORTH COUNCIL,ASC,SOCIAL SERVICES,HIRE,Revenue,HIRE - TRANSPORT,130220410,11-Jul-16,992750,930.00,A STAR TRANSPORT LTD,SP0000866
WANDSWORTH COUNCIL,ASC,SOCIAL SERVICES,HIRE,Revenue,HIRE - TRANSPORT,130220410,11-Jul-16,992751,984.00,A STAR TRANSPORT LTD,SP0000866
WANDSWORTH COUNCIL,ASC,SOCIAL SERVICES,HIRE,Revenue,HIRE - TRANSPORT,130220410,11-Jul-16,992752,"1,320.00",A STAR TRANSPORT LTD,SP0000866
WANDSWORTH COUNCIL,ASC,SOCIAL SERVICES,HIRE,Revenue,HIRE - TRANSPORT,130220410,11-Jul-16,992753,"1,350.00",A STAR TRANSPORT LTD,SP0000866
WANDSWORTH COUNCIL,ASC,SOCIAL SERVICES,HIRE,Revenue,HIRE - TRANSPORT,130220410,11-Jul-16,992754,588.26,A STAR TRANSPORT LTD,SP0000866
WANDSWORTH COUNCIL,ASC,SOCIAL SERVICES,HIRE,Revenue,HIRE - TRANSPORT,130220410,11-Jul-16,992757,528.00,A STAR TRANSPORT LTD,SP0000866
WANDSWORTH COUNCIL,ASC,SOCIAL SERVICES,HIRE,Revenue,HIRE - TRANSPORT,130220410,11-Jul-16,992760,"1,976.00",A STAR TRANSPORT LTD,SP0000866
WANDSWORTH COUNCIL,ASC,SOCIAL SERVICES,HIRE,Revenue,HIRE - TRANSPORT,130220410,11-Jul-16,992762,"1,102.00",A STAR TRANSPORT LTD,SP0000866
WANDSWORTH COUNCIL,ASC,SOCIAL SERVICES,HIRE,Revenue,HIRE - TRANSPORT,130220410,11-Jul-16,992763,630.00,A STAR TRANSPORT LTD,SP0000866
WANDSWORTH COUNCIL,ASC,SOCIAL SERVICES,HIRE,Revenue,HIRE - TRANSPORT,130220410,11-Jul-16,992764,630.00,A STAR TRANSPORT LTD,SP0000866
WANDSWORTH COUNCIL,ASC,SOCIAL SERVICES,HIRE,Revenue,HIRE - TRANSPORT,130220410,11-Jul-16,992765,"1,014.00",A STAR TRANSPORT LTD,SP0000866
WANDSWORTH COUNCIL,ASC,SOCIAL SERVICES,HIRE,Revenue,HIRE - TRANSPORT,130220410,11-Jul-16,992769,575.60,A STAR TRANSPORT LTD,SP0000866
WANDSWORTH COUNCIL,ASC,SOCIAL SERVICES,HIRE,Revenue,HIRE - TRANSPORT,130220410,11-Jul-16,992778,516.00,A STAR TRANSPORT LTD,SP0000866
WANDSWORTH COUNCIL,ASC,SOCIAL SERVICES,HIRE,Revenue,HIRE - TRANSPORT,130220410,15-Jul-16,996695,687.86,ADDISON LEE LTD,SP0003268
WANDSWORTH COUNCIL,ASC,SOCIAL SERVICES,HIRE,Revenue,HIRE - TRANSPORT,130220410,15-Jul-16,996696,803.15,ADDISON LEE LTD,SP0003268
WANDSWORTH COUNCIL,ASC,SOCIAL SERVICES,HIRE,Revenue,HIRE - TRANSPORT,130220410,15-Jul-16,996698,508.80,ADDISON LEE LTD,SP0003268
WANDSWORTH COUNCIL,ASC,SOCIAL SERVICES,HIRE,Revenue,HIRE - TRANSPORT,130220410,15-Jul-16,996699,825.79,ADDISON LEE LTD,SP0003268
WANDSWORTH COUNCIL,ASC,SOCIAL SERVICES,HIRE,Revenue,HIRE - TRANSPORT,130220410,15-Jul-16,996703,549.31,ADDISON LEE LTD,SP0003268
WANDSWORTH COUNCIL,ASC,SOCIAL SERVICES,HIRE,Revenue,HIRE - TRANSPORT,130220410,15-Jul-16,996705,420.70,ADDISON LEE LTD,SP0003268
WANDSWORTH COUNCIL,ASC,SOCIAL SERVICES,HIRE,Revenue,HIRE - TRANSPORT,130220410,15-Jul-16,996709,722.08,ADDISON LEE LTD,SP0003268
WANDSWORTH COUNCIL,ASC,SOCIAL SERVICES,HIRE,Revenue,HIRE - TRANSPORT,130220410,28-Jul-16,1006483,988.00,PARKER CARS LIMITED,SP0005826
WANDSWORTH COUNCIL,ASC,SOCIAL SERVICES,HIRE,Revenue,HIRE - TRANSPORT,130220410,28-Jul-16,1006487,541.50,PARKER CARS LIMITED,SP0005826
WANDSWORTH COUNCIL,ASC,SOCIAL SERVICES,HIRE,Revenue,HIRE - TRANSPORT,130220410,05-Jul-16,987467,798.00,PARKER CARS LIMITED,SP0005826
WANDSWORTH COUNCIL,ASC,SOCIAL SERVICES,HIRE,Revenue,HIRE - TRANSPORT,130220410,05-Jul-16,987470,486.00,PARKER CARS LIMITED,SP0005826
WANDSWORTH COUNCIL,ASC,SOCIAL SERVICES,HIRE,Revenue,HIRE - TRANSPORT,130220410,05-Jul-16,987471,462.00,247 TRANSPORT SOLUTIONS LTD,SP0010959
WANDSWORTH COUNCIL,ASC,SOCIAL SERVICES,HIRE,Revenue,NEW TRANSPORT CONTRACT,130220430,26-Jul-16,1004497,"1,879.20",BECKETT CORPORATION LTD T/A TINAS CARS,SP0000729
WANDSWORTH COUNCIL,ASC,SOCIAL SERVICES,HIRE,Revenue,NEW TRANSPORT CONTRACT,130220430,15-Jul-16,996726,129.86,BECKETT CORPORATION LTD T/A TINAS CARS,SP0000729
WANDSWORTH COUNCIL,ASC,SOCIAL SERVICES,HIRE,Revenue,NEW TRANSPORT CONTRACT,130220430,15-Jul-16,996730,186.45,BECKETT CORPORATION LTD T/A TINAS CARS,SP0000729
WANDSWORTH COUNCIL,ASC,SOCIAL SERVICES,HIRE,Revenue,NEW TRANSPORT CONTRACT,130220430,15-Jul-16,996734,202.22,BECKETT CORPORATION LTD T/A TINAS CARS,SP0000729
WANDSWORTH COUNCIL,ASC,SOCIAL SERVICES,"EQUIPMENT, FURNITURE & MATS",Revenue,PURCHASE OF HOUSEHOLD EQUIP,130230360,20-Jul-16,1001008,450.00,REMOVAL STORAGE LTD,SP0010725
WANDSWORTH COUNCIL,ASC,SOCIAL SERVICES,HEALTH,Revenue,EXT RES S28A 100% OLD LONGSTAY,130241010,20-Jul-16,1000592,"3,882.88",PARKGATE MANOR,SP0000521
WANDSWORTH COUNCIL,ASC,SOCIAL SERVICES,HEALTH,Revenue,EXT RES S28A 100% OLD LONGSTAY,130241010,04-Jul-16,986199,"3,882.88",PARKGATE MANOR,SP0000521
WANDSWORTH COUNCIL,ASC,SOCIAL SERVICES,HEALTH,Revenue,EXT RES S28A 100% OLD LONGSTAY,130241010,04-Jul-16,986200,"3,757.63",PARKGATE MANOR,SP0000521
WANDSWORTH COUNCIL,ASC,SOCIAL SERVICES,HEALTH,Revenue,EXTERNAL RESIDENTIAL CARE S28A,130241080,21-Jul-16,1001548,"7,266.40",PROGRESS HOUSING LULWORTH,SP0000921
WANDSWORTH COUNCIL,ASC,SOCIAL SERVICES,HEALTH,Revenue,EXT RES CARE S28A 100%,130241090,15-Jul-16,996222,(765.94),LOVING CARE LTD,SP0000670
WANDSWORTH COUNCIL,ASC,SOCIAL SERVICES,HEALTH,Revenue,EXT RES CARE S28A 100%,130241090,21-Jul-16,1001553,"6,793.25",HOME FROM HOME CARE LIMITED,SP0001373
WANDSWORTH COUNCIL,ASC,SOCIAL SERVICES,HEALTH,Revenue,EXT RES S28A OLD LONG STAY,130241110,21-Jul-16,1001514,"4,513.01",THE COMMUNITY CARE COMPANY UK LTD,SP0000576
WANDSWORTH COUNCIL,ASC,SOCIAL SERVICES,HEALTH,Revenue,EXT RES S28A OLD LONG STAY,130241110,22-Jul-16,1002694,"4,756.88",METROPOLITAN HOUSING TRUST,SP0000626
WANDSWORTH COUNCIL,ASC,SOCIAL SERVICES,HEALTH,Revenue,EXT RES S28A OLD LONG STAY,130241110,21-Jul-16,1001540,"2,709.00",ASHTON CARE,SP0000695
WANDSWORTH COUNCIL,ASC,,INDEPENDENT UNITS,Revenue,DAY CARE MUTUAL,130242040,21-Jul-16,999721,"25,197.67",ONE TRUST,SP0010206
WANDSWORTH COUNCIL,ASC,,INDEPENDENT UNITS,Revenue,DAY CARE MUTUAL,130242040,21-Jul-16,999722,"35,337.86",ONE TRUST,SP0010206
WANDSWORTH COUNCIL,ASC,SOCIAL SERVICES,OTHER AGENCIES,Revenue,EXTERNAL OUTREACH,130243330,29-Jul-16,1008322,547.15,RAINBOW MEDICAL SERVICES,SP0000037
WANDSWORTH COUNCIL,ASC,SOCIAL SERVICES,OTHER AGENCIES,Revenue,EXTERNAL OUTREACH,130243330,29-Jul-16,1008335,576.50,RAINBOW MEDICAL SERVICES,SP0000037
WANDSWORTH COUNCIL,ASC,SOCIAL SERVICES,OTHER AGENCIES,Revenue,EXTERNAL OUTREACH,130243330,07-Jul-16,990354,456.32,RAINBOW MEDICAL SERVICES,SP0000037
WANDSWORTH COUNCIL,ASC,SOCIAL SERVICES,OTHER AGENCIES,Revenue,EXTERNAL OUTREACH,130243330,07-Jul-16,990356,"1,754.38",RAINBOW MEDICAL SERVICES,SP0000037
WANDSWORTH COUNCIL,ASC,SOCIAL SERVICES,OTHER AGENCIES,Revenue,EXTERNAL OUTREACH,130243330,25-Jul-16,1004069,950.00,PROTOCOL EDUCATION  LTD,SP0000171
WANDSWORTH COUNCIL,ASC,SOCIAL SERVICES,OTHER AGENCIES,Revenue,EXTERNAL OUTREACH,130243330,28-Jul-16,1006481,931.00,PROTOCOL EDUCATION  LTD,SP0000171
WANDSWORTH COUNCIL,ASC,SOCIAL SERVICES,OTHER AGENCIES,Revenue,EXTERNAL OUTREACH,130243330,01-Jul-16,985319,950.00,PROTOCOL EDUCATION  LTD,SP0000171
WANDSWORTH COUNCIL,ASC,SOCIAL SERVICES,OTHER AGENCIES,Revenue,EXTERNAL OUTREACH,130243330,08-Jul-16,991414,950.00,PROTOCOL EDUCATION  LTD,SP0000171
WANDSWORTH COUNCIL,ASC,SOCIAL SERVICES,OTHER AGENCIES,Revenue,EXTERNAL OUTREACH,130243330,15-Jul-16,996712,950.00,PROTOCOL EDUCATION  LTD,SP0000171
WANDSWORTH COUNCIL,ASC,SOCIAL SERVICES,OTHER AGENCIES,Revenue,EXTERNAL OUTREACH,130243330,25-Jul-16,1004072,897.93,REED,SP0000295
WANDSWORTH COUNCIL,ASC,SOCIAL SERVICES,OTHER AGENCIES,Revenue,EXTERNAL OUTREACH,130243330,28-Jul-16,1006475,"2,185.32",C M CARE LTD,SP0000455
WANDSWORTH COUNCIL,ASC,SOCIAL SERVICES,OTHER AGENCIES,Revenue,EXTERNAL OUTREACH,130243330,28-Jul-16,1006477,"1,287.20",C M CARE LTD,SP0000455
WANDSWORTH COUNCIL,ASC,SOCIAL SERVICES,OTHER AGENCIES,Revenue,EXTERNAL OUTREACH,130243330,28-Jul-16,1006478,576.00,C M CARE LTD,SP0000455
WANDSWORTH COUNCIL,ASC,SOCIAL SERVICES,OTHER AGENCIES,Revenue,EXTERNAL OUTREACH,130243330,28-Jul-16,1006479,"1,540.00",C M CARE LTD,SP0000455
WANDSWORTH COUNCIL,ASC,SOCIAL SERVICES,OTHER AGENCIES,Revenue,EXTERNAL OUTREACH,130243330,22-Jul-16,1002863,535.00,GENERATE OPPORTUNITIES LTD,SP0000503
WANDSWORTH COUNCIL,ASC,SOCIAL SERVICES,OTHER AGENCIES,Revenue,EXTERNAL OUTREACH,130243330,22-Jul-16,1002864,997.00,GENERATE OPPORTUNITIES LTD,SP0000503
WANDSWORTH COUNCIL,ASC,SOCIAL SERVICES,OTHER AGENCIES,Revenue,EXTERNAL OUTREACH,130243330,22-Jul-16,1002877,"1,196.40",GENERATE OPPORTUNITIES LTD,SP0000503
WANDSWORTH COUNCIL,ASC,SOCIAL SERVICES,OTHER AGENCIES,Revenue,EXTERNAL OUTREACH,130243330,22-Jul-16,1002884,797.60,GENERATE OPPORTUNITIES LTD,SP0000503
WANDSWORTH COUNCIL,ASC,SOCIAL SERVICES,OTHER AGENCIES,Revenue,EXTERNAL OUTREACH,130243330,22-Jul-16,1002886,"1,495.50",GENERATE OPPORTUNITIES LTD,SP0000503
WANDSWORTH COUNCIL,ASC,SOCIAL SERVICES,OTHER AGENCIES,Revenue,EXTERNAL OUTREACH,130243330,22-Jul-16,1002892,"2,485.52",GENERATE OPPORTUNITIES LTD,SP0000503
WANDSWORTH COUNCIL,ASC,SOCIAL SERVICES,OTHER AGENCIES,Revenue,EXTERNAL OUTREACH,130243330,26-Jul-16,1004526,"9,720.00",METROPOLITAN HOUSING TRUST,SP0000626
WANDSWORTH COUNCIL,ASC,SOCIAL SERVICES,OTHER AGENCIES,Revenue,EXTERNAL OUTREACH,130243330,07-Jul-16,990367,"1,080.00",METROPOLITAN HOUSING TRUST,SP0000626
WANDSWORTH COUNCIL,ASC,SOCIAL SERVICES,OTHER AGENCIES,Revenue,EXTERNAL OUTREACH,130243330,11-Jul-16,992644,543.18,SOUTHSIDE PARTNERSHIP,SP0000692
WANDSWORTH COUNCIL,ASC,SOCIAL SERVICES,OTHER AGENCIES,Revenue,EXTERNAL OUTREACH,130243330,12-Jul-16,993741,"1,230.00",ROYAL ASSOCIATION FOR DEAF PEOPLE,SP0001251
WANDSWORTH COUNCIL,ASC,SOCIAL SERVICES,OTHER AGENCIES,Revenue,EXTERNAL OUTREACH,130243330,01-Jul-16,985316,"7,497.00",THE BRANDON TRUST,SP0005337
WANDSWORTH COUNCIL,ASC,SOCIAL SERVICES,OTHER AGENCIES,Revenue,EXTERNAL OUTREACH,130243330,14-Jul-16,995397,331.20,THE BRANDON TRUST,SP0005337
WANDSWORTH COUNCIL,ASC,SOCIAL SERVICES,OTHER AGENCIES,Revenue,EXTERNAL OUTREACH,130243330,14-Jul-16,995411,757.92,THE BRANDON TRUST,SP0005337
WANDSWORTH COUNCIL,ASC,SOCIAL SERVICES,OTHER AGENCIES,Revenue,EXTERNAL OUTREACH,130243330,14-Jul-16,995422,733.04,THE BRANDON TRUST,SP0005337
WANDSWORTH COUNCIL,ASC,SOCIAL SERVICES,OTHER AGENCIES,Revenue,EXTERNAL OUTREACH,130243330,14-Jul-16,995423,886.31,THE BRANDON TRUST,SP0005337
WANDSWORTH COUNCIL,ASC,SOCIAL SERVICES,OTHER AGENCIES,Revenue,EXTERNAL OUTREACH,130243330,14-Jul-16,995424,533.12,THE BRANDON TRUST,SP0005337
WANDSWORTH COUNCIL,ASC,SOCIAL SERVICES,OTHER AGENCIES,Revenue,EXTERNAL OUTREACH,130243330,14-Jul-16,995425,599.76,THE BRANDON TRUST,SP0005337
WANDSWORTH COUNCIL,ASC,SOCIAL SERVICES,OTHER AGENCIES,Revenue,EXTERNAL OUTREACH,130243330,14-Jul-16,995430,"1,199.52",THE BRANDON TRUST,SP0005337
WANDSWORTH COUNCIL,ASC,SOCIAL SERVICES,OTHER AGENCIES,Revenue,EXTERNAL OUTREACH,130243330,14-Jul-16,995463,631.60,THE BRANDON TRUST,SP0005337
WANDSWORTH COUNCIL,ASC,SOCIAL SERVICES,OTHER AGENCIES,Revenue,EXTERNAL OUTREACH,130243330,14-Jul-16,995464,252.24,THE BRANDON TRUST,SP0005337
WANDSWORTH COUNCIL,ASC,SOCIAL SERVICES,OTHER AGENCIES,Revenue,EXTERNAL OUTREACH,130243330,14-Jul-16,995468,591.04,THE BRANDON TRUST,SP0005337
WANDSWORTH COUNCIL,ASC,SOCIAL SERVICES,OTHER AGENCIES,Revenue,EXTERNAL OUTREACH,130243330,14-Jul-16,995469,947.40,THE BRANDON TRUST,SP0005337
WANDSWORTH COUNCIL,ASC,SOCIAL SERVICES,OTHER AGENCIES,Revenue,EXTERNAL OUTREACH,130243330,14-Jul-16,995470,"1,170.80",THE BRANDON TRUST,SP0005337
WANDSWORTH COUNCIL,ASC,SOCIAL SERVICES,OTHER AGENCIES,Revenue,EXTERNAL OUTREACH,130243330,14-Jul-16,995486,189.48,THE BRANDON TRUST,SP0005337
WANDSWORTH COUNCIL,ASC,SOCIAL SERVICES,OTHER AGENCIES,Revenue,EXTERNAL OUTREACH,130243330,14-Jul-16,995497,694.76,THE BRANDON TRUST,SP0005337
WANDSWORTH COUNCIL,ASC,SOCIAL SERVICES,OTHER AGENCIES,Revenue,EXTERNAL OUTREACH,130243330,14-Jul-16,995693,947.40,THE BRANDON TRUST,SP0005337
WANDSWORTH COUNCIL,ASC,SOCIAL SERVICES,OTHER AGENCIES,Revenue,EXTERNAL OUTREACH,130243330,14-Jul-16,995694,947.40,THE BRANDON TRUST,SP0005337
WANDSWORTH COUNCIL,ASC,SOCIAL SERVICES,OTHER AGENCIES,Revenue,EXTERNAL OUTREACH,130243330,14-Jul-16,995697,947.40,THE BRANDON TRUST,SP0005337
WANDSWORTH COUNCIL,ASC,,OTHER AGENCIES,Revenue,APS SHARED LIVES SCHEME,130243820,20-Jul-16,1000276,"15,619.00",SOUTHSIDE PARTNERSHIP,SP0000692
WANDSWORTH COUNCIL,ASC,,OTHER AGENCIES,Revenue,APS SHARED LIVES SCHEME,130243820,20-Jul-16,999943,"2,373.62",SOUTHSIDE PARTNERSHIP,SP0000692
WANDSWORTH COUNCIL,ASC,SOCIAL SERVICES,PRIVATE,Revenue,EXTERNAL DAYCARE,130245290,20-Jul-16,1000960,"1,213.76",RESIDENTIAL CARE SERVICES T/A FRANKLYN L,SP0000147
WANDSWORTH COUNCIL,ASC,SOCIAL SERVICES,PRIVATE,Revenue,EXTERNAL DAYCARE,130245290,07-Jul-16,989605,878.48,ORCHARD VALE TRUST,SP0000214
WANDSWORTH COUNCIL,ASC,SOCIAL SERVICES,PRIVATE,Revenue,EXTERNAL DAYCARE,130245290,21-Jul-16,1001642,"1,748.96",ST MARYS RESIDENTIAL HOME,SP0000215
WANDSWORTH COUNCIL,ASC,SOCIAL SERVICES,PRIVATE,Revenue,EXTERNAL DAYCARE,130245290,21-Jul-16,1001644,713.44,ST MARYS RESIDENTIAL HOME,SP0000215
WANDSWORTH COUNCIL,ASC,SOCIAL SERVICES,PRIVATE,Revenue,EXTERNAL DAYCARE,130245290,21-Jul-16,1001647,963.36,ST MARYS RESIDENTIAL HOME,SP0000215
WANDSWORTH COUNCIL,ASC,SOCIAL SERVICES,PRIVATE,Revenue,EXTERNAL DAYCARE,130245290,21-Jul-16,1001650,538.00,ST MARYS RESIDENTIAL HOME,SP0000215
WANDSWORTH COUNCIL,ASC,SOCIAL SERVICES,PRIVATE,Revenue,EXTERNAL DAYCARE,130245290,14-Jul-16,995667,503.50,ST MARYS RESIDENTIAL HOME,SP0000215
WANDSWORTH COUNCIL,ASC,SOCIAL SERVICES,PRIVATE,Revenue,EXTERNAL DAYCARE,130245290,14-Jul-16,995668,"2,186.20",ST MARYS RESIDENTIAL HOME,SP0000215
WANDSWORTH COUNCIL,ASC,SOCIAL SERVICES,PRIVATE,Revenue,EXTERNAL DAYCARE,130245290,14-Jul-16,995669,891.80,ST MARYS RESIDENTIAL HOME,SP0000215
WANDSWORTH COUNCIL,ASC,SOCIAL SERVICES,PRIVATE,Revenue,EXTERNAL DAYCARE,130245290,14-Jul-16,995670,519.70,ST MARYS RESIDENTIAL HOME,SP0000215
WANDSWORTH COUNCIL,ASC,SOCIAL SERVICES,PRIVATE,Revenue,EXTERNAL DAYCARE,130245290,14-Jul-16,995671,520.10,ST MARYS RESIDENTIAL HOME,SP0000215
WANDSWORTH COUNCIL,ASC,SOCIAL SERVICES,PRIVATE,Revenue,EXTERNAL DAYCARE,130245290,14-Jul-16,995672,"1,204.20",ST MARYS RESIDENTIAL HOME,SP0000215
WANDSWORTH COUNCIL,ASC,SOCIAL SERVICES,PRIVATE,Revenue,EXTERNAL DAYCARE,130245290,14-Jul-16,995673,519.70,ST MARYS RESIDENTIAL HOME,SP0000215
WANDSWORTH COUNCIL,ASC,SOCIAL SERVICES,PRIVATE,Revenue,EXTERNAL DAYCARE,130245290,14-Jul-16,995676,672.50,ST MARYS RESIDENTIAL HOME,SP0000215
WANDSWORTH COUNCIL,ASC,SOCIAL SERVICES,PRIVATE,Revenue,EXTERNAL DAYCARE,130245290,26-Jul-16,1004271,"2,331.00",NAS SERVICES LIMITED,SP0000217
WANDSWORTH COUNCIL,ASC,SOCIAL SERVICES,PRIVATE,Revenue,EXTERNAL DAYCARE,130245290,07-Jul-16,989622,518.70,PARCHMENT TRUST LTD,SP0000255
WANDSWORTH COUNCIL,ASC,SOCIAL SERVICES,PRIVATE,Revenue,EXTERNAL DAYCARE,130245290,07-Jul-16,990352,714.00,ESSEX COUNTY COUNCIL,SP0000269
WANDSWORTH COUNCIL,ASC,SOCIAL SERVICES,PRIVATE,Revenue,EXTERNAL DAYCARE,130245290,22-Jul-16,1002894,718.12,SHARE COMMUNITY,SP0000329
WANDSWORTH COUNCIL,ASC,SOCIAL SERVICES,PRIVATE,Revenue,EXTERNAL DAYCARE,130245290,01-Jul-16,985305,973.60,DOLPHIN HOMES LTD,SP0000331
WANDSWORTH COUNCIL,ASC,SOCIAL SERVICES,PRIVATE,Revenue,EXTERNAL DAYCARE,130245290,28-Jul-16,1006469,"2,014.16",NORWOOD SCHOOLS LTD,SP0000332
WANDSWORTH COUNCIL,ASC,SOCIAL SERVICES,PRIVATE,Revenue,EXTERNAL DAYCARE,130245290,28-Jul-16,1006470,"2,070.04",NORWOOD SCHOOLS LTD,SP0000332
WANDSWORTH COUNCIL,ASC,SOCIAL SERVICES,PRIVATE,Revenue,EXTERNAL DAYCARE,130245290,14-Jul-16,995665,"2,014.16",NORWOOD SCHOOLS LTD,SP0000332
WANDSWORTH COUNCIL,ASC,SOCIAL SERVICES,PRIVATE,Revenue,EXTERNAL DAYCARE,130245290,14-Jul-16,995666,"2,070.04",NORWOOD SCHOOLS LTD,SP0000332
WANDSWORTH COUNCIL,ASC,SOCIAL SERVICES,PRIVATE,Revenue,EXTERNAL DAYCARE,130245290,15-Jul-16,996688,"1,654.08",VOYAGE CARE LTD,SP0000366
WANDSWORTH COUNCIL,ASC,SOCIAL SERVICES,PRIVATE,Revenue,EXTERNAL DAYCARE,130245290,14-Jul-16,995677,"1,057.00",ST DAVIDS CARE IN THE COMMUNITY,SP0000379
WANDSWORTH COUNCIL,ASC,SOCIAL SERVICES,PRIVATE,Revenue,EXTERNAL DAYCARE,130245290,14-Jul-16,995678,"1,057.00",ST DAVIDS CARE IN THE COMMUNITY,SP0000379
WANDSWORTH COUNCIL,ASC,SOCIAL SERVICES,PRIVATE,Revenue,EXTERNAL DAYCARE,130245290,14-Jul-16,995679,"1,057.00",ST DAVIDS CARE IN THE COMMUNITY,SP0000379
WANDSWORTH COUNCIL,ASC,SOCIAL SERVICES,PRIVATE,Revenue,EXTERNAL DAYCARE,130245290,26-Jul-16,1004439,525.70,O A ROWE,SP0000431
WANDSWORTH COUNCIL,ASC,SOCIAL SERVICES,PRIVATE,Revenue,EXTERNAL DAYCARE,130245290,26-Jul-16,1004440,525.70,O A ROWE,SP0000431
WANDSWORTH COUNCIL,ASC,SOCIAL SERVICES,PRIVATE,Revenue,EXTERNAL DAYCARE,130245290,05-Jul-16,987459,"1,069.47",SURREY & BORDERS PARTNERSHIP NHS TRUST,SP0000501
WANDSWORTH COUNCIL,ASC,SOCIAL SERVICES,PRIVATE,Revenue,EXTERNAL DAYCARE,130245290,22-Jul-16,1002859,680.00,GENERATE OPPORTUNITIES LTD,SP0000503
WANDSWORTH COUNCIL,ASC,SOCIAL SERVICES,PRIVATE,Revenue,EXTERNAL DAYCARE,130245290,22-Jul-16,1002861,600.00,GENERATE OPPORTUNITIES LTD,SP0000503
WANDSWORTH COUNCIL,ASC,SOCIAL SERVICES,PRIVATE,Revenue,EXTERNAL DAYCARE,130245290,22-Jul-16,1002862,600.00,GENERATE OPPORTUNITIES LTD,SP0000503
WANDSWORTH COUNCIL,ASC,SOCIAL SERVICES,PRIVATE,Revenue,EXTERNAL DAYCARE,130245290,22-Jul-16,1002863,185.00,GENERATE OPPORTUNITIES LTD,SP0000503
WANDSWORTH COUNCIL,ASC,SOCIAL SERVICES,PRIVATE,Revenue,EXTERNAL DAYCARE,130245290,22-Jul-16,1002873,720.00,GENERATE OPPORTUNITIES LTD,SP0000503
WANDSWORTH COUNCIL,ASC,SOCIAL SERVICES,PRIVATE,Revenue,EXTERNAL DAYCARE,130245290,22-Jul-16,1002882,720.00,GENERATE OPPORTUNITIES LTD,SP0000503
WANDSWORTH COUNCIL,ASC,SOCIAL SERVICES,PRIVATE,Revenue,EXTERNAL DAYCARE,130245290,22-Jul-16,1002883,720.00,GENERATE OPPORTUNITIES LTD,SP0000503
WANDSWORTH COUNCIL,ASC,SOCIAL SERVICES,PRIVATE,Revenue,EXTERNAL DAYCARE,130245290,22-Jul-16,1002892,608.23,GENERATE OPPORTUNITIES LTD,SP0000503
WANDSWORTH COUNCIL,ASC,SOCIAL SERVICES,PRIVATE,Revenue,EXTERNAL DAYCARE,130245290,22-Jul-16,1002905,840.00,GENERATE OPPORTUNITIES LTD,SP0000503
WANDSWORTH COUNCIL,ASC,SOCIAL SERVICES,PRIVATE,Revenue,EXTERNAL DAYCARE,130245290,21-Jul-16,1001514,452.94,THE COMMUNITY CARE COMPANY UK LTD,SP0000576
WANDSWORTH COUNCIL,ASC,SOCIAL SERVICES,PRIVATE,Revenue,EXTERNAL DAYCARE,130245290,21-Jul-16,1001561,"1,398.90",THE REGARD PARTNERSHIP,SP0000588
WANDSWORTH COUNCIL,ASC,SOCIAL SERVICES,PRIVATE,Revenue,EXTERNAL DAYCARE,130245290,01-Jul-16,985308,"1,416.61",THE REGARD PARTNERSHIP,SP0000588
WANDSWORTH COUNCIL,ASC,SOCIAL SERVICES,PRIVATE,Revenue,EXTERNAL DAYCARE,130245290,01-Jul-16,985309,"1,353.77",THE REGARD PARTNERSHIP,SP0000588
WANDSWORTH COUNCIL,ASC,SOCIAL SERVICES,PRIVATE,Revenue,EXTERNAL DAYCARE,130245290,21-Jul-16,1001596,976.80,ASHFIELD CARE HOMES LTD,SP0000590
WANDSWORTH COUNCIL,ASC,SOCIAL SERVICES,PRIVATE,Revenue,EXTERNAL DAYCARE,130245290,20-Jul-16,1000959,945.00,DORSET SCOPE,SP0000591
WANDSWORTH COUNCIL,ASC,SOCIAL SERVICES,PRIVATE,Revenue,EXTERNAL DAYCARE,130245290,29-Jul-16,1008286,528.00,THRIVE,SP0000601
WANDSWORTH COUNCIL,ASC,SOCIAL SERVICES,PRIVATE,Revenue,EXTERNAL DAYCARE,130245290,29-Jul-16,1008297,534.96,THRIVE,SP0000601
WANDSWORTH COUNCIL,ASC,SOCIAL SERVICES,PRIVATE,Revenue,EXTERNAL DAYCARE,130245290,12-Jul-16,993737,602.56,HIGH HURLANDS HOMES,SP0000668
WANDSWORTH COUNCIL,ASC,SOCIAL SERVICES,PRIVATE,Revenue,EXTERNAL DAYCARE,130245290,01-Jul-16,985301,974.40,CREST COOPERATIVE LTD,SP0000683
WANDSWORTH COUNCIL,ASC,SOCIAL SERVICES,PRIVATE,Revenue,EXTERNAL DAYCARE,130245290,21-Jul-16,1001600,"1,110.06",THE MANOR HOUSE,SP0000728
WANDSWORTH COUNCIL,ASC,SOCIAL SERVICES,PRIVATE,Revenue,EXTERNAL DAYCARE,130245290,07-Jul-16,990183,531.04,UNITED RESPONSE,SP0000797
WANDSWORTH COUNCIL,ASC,SOCIAL SERVICES,PRIVATE,Revenue,EXTERNAL DAYCARE,130245290,07-Jul-16,990188,540.00,PROSPECTS,SP0000800
WANDSWORTH COUNCIL,ASC,SOCIAL SERVICES,PRIVATE,Revenue,EXTERNAL DAYCARE,130245290,21-Jul-16,1001651,942.23,CHATSWORTH CARE,SP0000831
WANDSWORTH COUNCIL,ASC,SOCIAL SERVICES,PRIVATE,Revenue,EXTERNAL DAYCARE,130245290,26-Jul-16,1004484,515.52,MENCAP OPEN DOOR,SP0000832
WANDSWORTH COUNCIL,ASC,SOCIAL SERVICES,PRIVATE,Revenue,EXTERNAL DAYCARE,130245290,26-Jul-16,1004521,611.80,MENCAP OPEN DOOR,SP0000832
WANDSWORTH COUNCIL,ASC,SOCIAL SERVICES,PRIVATE,Revenue,EXTERNAL DAYCARE,130245290,26-Jul-16,1004522,515.20,MENCAP OPEN DOOR,SP0000832
WANDSWORTH COUNCIL,ASC,SOCIAL SERVICES,PRIVATE,Revenue,EXTERNAL DAYCARE,130245290,07-Jul-16,990187,848.00,SCOPE,SP0000852
WANDSWORTH COUNCIL,ASC,SOCIAL SERVICES,PRIVATE,Revenue,EXTERNAL DAYCARE,130245290,15-Jul-16,996687,848.00,SCOPE,SP0000852
WANDSWORTH COUNCIL,ASC,SOCIAL SERVICES,PRIVATE,Revenue,EXTERNAL DAYCARE,130245290,21-Jul-16,1001564,743.84,ACT TOO LTD,SP0000855
WANDSWORTH COUNCIL,ASC,SOCIAL SERVICES,PRIVATE,Revenue,EXTERNAL DAYCARE,130245290,21-Jul-16,1001565,"1,115.76",ACT TOO LTD,SP0000855
WANDSWORTH COUNCIL,ASC,SOCIAL SERVICES,PRIVATE,Revenue,EXTERNAL DAYCARE,130245290,21-Jul-16,1001568,557.88,ACT TOO LTD,SP0000855
WANDSWORTH COUNCIL,ASC,SOCIAL SERVICES,PRIVATE,Revenue,EXTERNAL DAYCARE,130245290,21-Jul-16,1001569,743.84,ACT TOO LTD,SP0000855
WANDSWORTH COUNCIL,ASC,SOCIAL SERVICES,PRIVATE,Revenue,EXTERNAL DAYCARE,130245290,21-Jul-16,1001574,929.80,ACT TOO LTD,SP0000855
WANDSWORTH COUNCIL,ASC,SOCIAL SERVICES,PRIVATE,Revenue,EXTERNAL DAYCARE,130245290,21-Jul-16,1001577,743.84,ACT TOO LTD,SP0000855
WANDSWORTH COUNCIL,ASC,SOCIAL SERVICES,PRIVATE,Revenue,EXTERNAL DAYCARE,130245290,21-Jul-16,1001578,743.84,ACT TOO LTD,SP0000855
WANDSWORTH COUNCIL,ASC,SOCIAL SERVICES,PRIVATE,Revenue,EXTERNAL DAYCARE,130245290,21-Jul-16,1001579,743.84,ACT TOO LTD,SP0000855
WANDSWORTH COUNCIL,ASC,SOCIAL SERVICES,PRIVATE,Revenue,EXTERNAL DAYCARE,130245290,21-Jul-16,1001583,557.88,ACT TOO LTD,SP0000855
WANDSWORTH COUNCIL,ASC,SOCIAL SERVICES,PRIVATE,Revenue,EXTERNAL DAYCARE,130245290,21-Jul-16,1001584,557.88,ACT TOO LTD,SP0000855
WANDSWORTH COUNCIL,ASC,SOCIAL SERVICES,PRIVATE,Revenue,EXTERNAL DAYCARE,130245290,21-Jul-16,1001586,557.88,ACT TOO LTD,SP0000855
WANDSWORTH COUNCIL,ASC,SOCIAL SERVICES,PRIVATE,Revenue,EXTERNAL DAYCARE,130245290,21-Jul-16,1001588,743.84,ACT TOO LTD,SP0000855
WANDSWORTH COUNCIL,ASC,SOCIAL SERVICES,PRIVATE,Revenue,EXTERNAL DAYCARE,130245290,21-Jul-16,1001589,743.84,ACT TOO LTD,SP0000855
WANDSWORTH COUNCIL,ASC,SOCIAL SERVICES,PRIVATE,Revenue,EXTERNAL DAYCARE,130245290,21-Jul-16,1001590,557.88,ACT TOO LTD,SP0000855
WANDSWORTH COUNCIL,ASC,SOCIAL SERVICES,PRIVATE,Revenue,EXTERNAL DAYCARE,130245290,21-Jul-16,1001595,557.88,ACT TOO LTD,SP0000855
WANDSWORTH COUNCIL,ASC,SOCIAL SERVICES,PRIVATE,Revenue,EXTERNAL DAYCARE,130245290,21-Jul-16,1001598,557.88,ACT TOO LTD,SP0000855
WANDSWORTH COUNCIL,ASC,SOCIAL SERVICES,PRIVATE,Revenue,EXTERNAL DAYCARE,130245290,21-Jul-16,1001602,557.88,ACT TOO LTD,SP0000855
WANDSWORTH COUNCIL,ASC,SOCIAL SERVICES,PRIVATE,Revenue,EXTERNAL DAYCARE,130245290,21-Jul-16,1001603,557.88,ACT TOO LTD,SP0000855
WANDSWORTH COUNCIL,ASC,SOCIAL SERVICES,PRIVATE,Revenue,EXTERNAL DAYCARE,130245290,21-Jul-16,1001604,557.88,ACT TOO LTD,SP0000855
WANDSWORTH COUNCIL,ASC,SOCIAL SERVICES,PRIVATE,Revenue,EXTERNAL DAYCARE,130245290,21-Jul-16,1001605,557.88,ACT TOO LTD,SP0000855
WANDSWORTH COUNCIL,ASC,SOCIAL SERVICES,PRIVATE,Revenue,EXTERNAL DAYCARE,130245290,21-Jul-16,1001606,929.80,ACT TOO LTD,SP0000855
WANDSWORTH COUNCIL,ASC,SOCIAL SERVICES,PRIVATE,Revenue,EXTERNAL DAYCARE,130245290,21-Jul-16,1001607,557.88,ACT TOO LTD,SP0000855
WANDSWORTH COUNCIL,ASC,SOCIAL SERVICES,PRIVATE,Revenue,EXTERNAL DAYCARE,130245290,21-Jul-16,1001616,929.80,ACT TOO LTD,SP0000855
WANDSWORTH COUNCIL,ASC,SOCIAL SERVICES,PRIVATE,Revenue,EXTERNAL DAYCARE,130245290,21-Jul-16,1001621,929.80,ACT TOO LTD,SP0000855
WANDSWORTH COUNCIL,ASC,SOCIAL SERVICES,PRIVATE,Revenue,EXTERNAL DAYCARE,130245290,21-Jul-16,1001622,557.88,ACT TOO LTD,SP0000855
WANDSWORTH COUNCIL,ASC,SOCIAL SERVICES,PRIVATE,Revenue,EXTERNAL DAYCARE,130245290,21-Jul-16,1001623,"1,115.76",ACT TOO LTD,SP0000855
WANDSWORTH COUNCIL,ASC,SOCIAL SERVICES,PRIVATE,Revenue,EXTERNAL DAYCARE,130245290,21-Jul-16,1001624,743.84,ACT TOO LTD,SP0000855
WANDSWORTH COUNCIL,ASC,SOCIAL SERVICES,PRIVATE,Revenue,EXTERNAL DAYCARE,130245290,21-Jul-16,1001627,557.88,ACT TOO LTD,SP0000855
WANDSWORTH COUNCIL,ASC,SOCIAL SERVICES,PRIVATE,Revenue,EXTERNAL DAYCARE,130245290,21-Jul-16,1001628,557.88,ACT TOO LTD,SP0000855
WANDSWORTH COUNCIL,ASC,SOCIAL SERVICES,PRIVATE,Revenue,EXTERNAL DAYCARE,130245290,21-Jul-16,1001634,557.88,ACT TOO LTD,SP0000855
WANDSWORTH COUNCIL,ASC,SOCIAL SERVICES,PRIVATE,Revenue,EXTERNAL DAYCARE,130245290,26-Jul-16,1004485,844.38,ORIONE CARE,SP0000961
WANDSWORTH COUNCIL,ASC,SOCIAL SERVICES,PRIVATE,Revenue,EXTERNAL DAYCARE,130245290,26-Jul-16,1004487,656.74,ORIONE CARE,SP0000961
WANDSWORTH COUNCIL,ASC,SOCIAL SERVICES,PRIVATE,Revenue,EXTERNAL DAYCARE,130245290,28-Jul-16,1006388,30.00,RIDGEWOOD CARE SERVICES LTD,SP0000969
WANDSWORTH COUNCIL,ASC,SOCIAL SERVICES,PRIVATE,Revenue,EXTERNAL DAYCARE,130245290,01-Jul-16,985090,540.00,RIDGEWOOD CARE SERVICES LTD,SP0000969
WANDSWORTH COUNCIL,ASC,SOCIAL SERVICES,PRIVATE,Revenue,EXTERNAL DAYCARE,130245290,01-Jul-16,985091,240.00,RIDGEWOOD CARE SERVICES LTD,SP0000969
WANDSWORTH COUNCIL,ASC,SOCIAL SERVICES,PRIVATE,Revenue,EXTERNAL DAYCARE,130245290,01-Jul-16,985094,930.00,RIDGEWOOD CARE SERVICES LTD,SP0000969
WANDSWORTH COUNCIL,ASC,SOCIAL SERVICES,PRIVATE,Revenue,EXTERNAL DAYCARE,130245290,01-Jul-16,985095,251.80,RIDGEWOOD CARE SERVICES LTD,SP0000969
WANDSWORTH COUNCIL,ASC,SOCIAL SERVICES,PRIVATE,Revenue,EXTERNAL DAYCARE,130245290,01-Jul-16,985303,"1,175.35",RIDGEWOOD CARE SERVICES LTD,SP0000969
WANDSWORTH COUNCIL,ASC,SOCIAL SERVICES,PRIVATE,Revenue,EXTERNAL DAYCARE,130245290,01-Jul-16,985304,"1,177.40",RIDGEWOOD CARE SERVICES LTD,SP0000969
WANDSWORTH COUNCIL,ASC,SOCIAL SERVICES,PRIVATE,Revenue,EXTERNAL DAYCARE,130245290,14-Jul-16,995390,"1,177.40",RIDGEWOOD CARE SERVICES LTD,SP0000969
WANDSWORTH COUNCIL,ASC,SOCIAL SERVICES,PRIVATE,Revenue,EXTERNAL DAYCARE,130245290,21-Jul-16,1001562,969.80,SCOPE,SP0000991
WANDSWORTH COUNCIL,ASC,SOCIAL SERVICES,PRIVATE,Revenue,EXTERNAL DAYCARE,130245290,21-Jul-16,1001640,671.40,SCOPE,SP0000991
WANDSWORTH COUNCIL,ASC,SOCIAL SERVICES,PRIVATE,Revenue,EXTERNAL DAYCARE,130245290,27-Jul-16,1005547,"1,501.20",LONDON CARE PARTNERSHIP LTD,SP0001138
WANDSWORTH COUNCIL,ASC,SOCIAL SERVICES,PRIVATE,Revenue,EXTERNAL DAYCARE,130245290,08-Jul-16,991412,819.52,HARROW MENCAP,SP0001347
WANDSWORTH COUNCIL,ASC,SOCIAL SERVICES,PRIVATE,Revenue,EXTERNAL DAYCARE,130245290,08-Jul-16,991413,693.44,HARROW MENCAP,SP0001347
WANDSWORTH COUNCIL,ASC,SOCIAL SERVICES,PRIVATE,Revenue,EXTERNAL DAYCARE,130245290,26-Jul-16,1004441,992.32,WORKSHOP 305,SP0001403
WANDSWORTH COUNCIL,ASC,SOCIAL SERVICES,PRIVATE,Revenue,EXTERNAL DAYCARE,130245290,26-Jul-16,1004448,848.40,WORKSHOP 305,SP0001403
WANDSWORTH COUNCIL,ASC,SOCIAL SERVICES,PRIVATE,Revenue,EXTERNAL DAYCARE,130245290,26-Jul-16,1004454,606.00,WORKSHOP 305,SP0001403
WANDSWORTH COUNCIL,ASC,SOCIAL SERVICES,PRIVATE,Revenue,EXTERNAL DAYCARE,130245290,26-Jul-16,1004461,779.68,WORKSHOP 305,SP0001403
WANDSWORTH COUNCIL,ASC,SOCIAL SERVICES,PRIVATE,Revenue,EXTERNAL DAYCARE,130245290,26-Jul-16,1004462,666.60,WORKSHOP 305,SP0001403
WANDSWORTH COUNCIL,ASC,SOCIAL SERVICES,PRIVATE,Revenue,EXTERNAL DAYCARE,130245290,26-Jul-16,1004464,666.60,WORKSHOP 305,SP0001403
WANDSWORTH COUNCIL,ASC,SOCIAL SERVICES,PRIVATE,Revenue,EXTERNAL DAYCARE,130245290,26-Jul-16,1004469,666.60,WORKSHOP 305,SP0001403
WANDSWORTH COUNCIL,ASC,SOCIAL SERVICES,PRIVATE,Revenue,EXTERNAL DAYCARE,130245290,26-Jul-16,1004479,909.00,WORKSHOP 305,SP0001403
WANDSWORTH COUNCIL,ASC,SOCIAL SERVICES,PRIVATE,Revenue,EXTERNAL DAYCARE,130245290,19-Jul-16,999851,520.00,THE CAMDEN SOCIETY,SP0001674
WANDSWORTH COUNCIL,ASC,SOCIAL SERVICES,PRIVATE,Revenue,EXTERNAL DAYCARE,130245290,19-Jul-16,999852,520.00,THE CAMDEN SOCIETY,SP0001674
WANDSWORTH COUNCIL,ASC,SOCIAL SERVICES,PRIVATE,Revenue,EXTERNAL DAYCARE,130245290,19-Jul-16,999853,520.00,THE CAMDEN SOCIETY,SP0001674
WANDSWORTH COUNCIL,ASC,SOCIAL SERVICES,PRIVATE,Revenue,EXTERNAL DAYCARE,130245290,19-Jul-16,999854,520.00,THE CAMDEN SOCIETY,SP0001674
WANDSWORTH COUNCIL,ASC,SOCIAL SERVICES,PRIVATE,Revenue,EXTERNAL DAYCARE,130245290,19-Jul-16,999855,520.00,THE CAMDEN SOCIETY,SP0001674
WANDSWORTH COUNCIL,ASC,SOCIAL SERVICES,PRIVATE,Revenue,EXTERNAL DAYCARE,130245290,19-Jul-16,999856,520.00,THE CAMDEN SOCIETY,SP0001674
WANDSWORTH COUNCIL,ASC,SOCIAL SERVICES,PRIVATE,Revenue,EXTERNAL DAYCARE,130245290,19-Jul-16,999857,520.00,THE CAMDEN SOCIETY,SP0001674
WANDSWORTH COUNCIL,ASC,SOCIAL SERVICES,PRIVATE,Revenue,EXTERNAL DAYCARE,130245290,26-Jul-16,1004438,963.20,INSPIRE CARE OUTREACH LIMITED,SP0010404
WANDSWORTH COUNCIL,ASC,SOCIAL SERVICES,PRIVATE,Revenue,EXTERNAL DAYCARE,130245290,07-Jul-16,990351,963.20,INSPIRE CARE OUTREACH LIMITED,SP0010404
WANDSWORTH COUNCIL,ASC,SOCIAL SERVICES,PRIVATE,Revenue,EXTERNAL HOMECARE,130245300,07-Jul-16,990245,964.90,RAINBOW MEDICAL SERVICES,SP0000037
WANDSWORTH COUNCIL,ASC,SOCIAL SERVICES,PRIVATE,Revenue,EXTERNAL HOMECARE,130245300,04-Jul-16,986209,757.13,ASIAN ELDERS SUPPORT SCHEME,SP0000190
WANDSWORTH COUNCIL,ASC,SOCIAL SERVICES,PRIVATE,Revenue,EXTERNAL HOMECARE,130245300,07-Jul-16,990278,644.41,MUSHKIL AASAAN LTD,SP0000978
WANDSWORTH COUNCIL,ASC,SOCIAL SERVICES,PRIVATE,Revenue,EXTERNAL HOMECARE,130245300,08-Jul-16,991409,528.75,SOMA HEALTHCARE LTD,SP0001116
WANDSWORTH COUNCIL,ASC,SOCIAL SERVICES,PRIVATE,Revenue,EXTERNAL HOMECARE,130245300,01-Jul-16,985132,"1,289.40",SUPREME CARE SERVICE LTD,SP0001600
WANDSWORTH COUNCIL,ASC,SOCIAL SERVICES,PRIVATE,Revenue,EXTERNAL HOMECARE,130245300,11-Jul-16,992600,"1,309.52",SUPREME CARE SERVICE LTD,SP0001600
WANDSWORTH COUNCIL,ASC,SOCIAL SERVICES,PRIVATE,Revenue,EXTERNAL HOMECARE,130245300,20-Jul-16,1000952,"3,232.00",CHRISTIES CARE LTD,SP0005440
WANDSWORTH COUNCIL,ASC,SOCIAL SERVICES,PRIVATE,Revenue,EXTERNAL HOMECARE,130245300,27-Jul-16,1005604,658.98,LONDON HOMECARE LTD,SP0009029
WANDSWORTH COUNCIL,ASC,SOCIAL SERVICES,PRIVATE,Revenue,EXTERNAL HOMECARE,130245300,27-Jul-16,1005608,"1,902.96",LONDON HOMECARE LTD,SP0009029
WANDSWORTH COUNCIL,ASC,SOCIAL SERVICES,PRIVATE,Revenue,EXTERNAL HOMECARE,130245300,27-Jul-16,1005664,695.49,LONDON HOMECARE LTD,SP0009029
WANDSWORTH COUNCIL,ASC,SOCIAL SERVICES,PRIVATE,Revenue,EXTERNAL HOMECARE,130245300,04-Jul-16,986226,665.32,LONDON HOMECARE LTD,SP0009029
WANDSWORTH COUNCIL,ASC,SOCIAL SERVICES,PRIVATE,Revenue,EXTERNAL HOMECARE,130245300,04-Jul-16,986228,"1,648.02",LONDON HOMECARE LTD,SP0009029
WANDSWORTH COUNCIL,ASC,SOCIAL SERVICES,PRIVATE,Revenue,EXTERNAL HOMECARE,130245300,04-Jul-16,986312,680.42,LONDON HOMECARE LTD,SP0009029
WANDSWORTH COUNCIL,ASC,SOCIAL SERVICES,PRIVATE,Revenue,EXTERNAL NURSING CARE,130245310,21-Jul-16,1001429,"6,166.88",WINGHAM COURT,SP0000025
WANDSWORTH COUNCIL,ASC,SOCIAL SERVICES,PRIVATE,Revenue,EXTERNAL NURSING CARE,130245310,21-Jul-16,1001476,"3,730.85",ROSEDENE NURSING HOME,SP0000316
WANDSWORTH COUNCIL,ASC,SOCIAL SERVICES,PRIVATE,Revenue,EXTERNAL NURSING CARE,130245310,15-Jul-16,996613,"4,181.88",VOYAGE CARE LTD,SP0000366
WANDSWORTH COUNCIL,ASC,SOCIAL SERVICES,PRIVATE,Revenue,EXTERNAL NURSING CARE,130245310,15-Jul-16,996615,"5,325.08",VOYAGE CARE LTD,SP0000366
WANDSWORTH COUNCIL,ASC,SOCIAL SERVICES,PRIVATE,Revenue,EXTERNAL NURSING CARE,130245310,27-Jul-16,1005558,"9,108.12",CHOICE SUPPORT,SP0000398
WANDSWORTH COUNCIL,ASC,SOCIAL SERVICES,PRIVATE,Revenue,EXTERNAL NURSING CARE,130245310,21-Jul-16,1001424,"9,037.65",THE COMMUNITY CARE COMPANY UK LTD,SP0000576
WANDSWORTH COUNCIL,ASC,SOCIAL SERVICES,PRIVATE,Revenue,EXTERNAL NURSING CARE,130245310,15-Jul-16,996248,"3,079.52",BUPA CARE SERVICES BACS RECEIPTS,SP0000644
WANDSWORTH COUNCIL,ASC,SOCIAL SERVICES,PRIVATE,Revenue,EXTERNAL NURSING CARE,130245310,15-Jul-16,996268,"3,079.52",BUPA CARE SERVICES BACS RECEIPTS,SP0000644
WANDSWORTH COUNCIL,ASC,SOCIAL SERVICES,PRIVATE,Revenue,EXTERNAL NURSING CARE,130245310,21-Jul-16,1001416,"8,455.12",SUSSEX HEALTH CARE,SP0001115
WANDSWORTH COUNCIL,ASC,SOCIAL SERVICES,PRIVATE,Revenue,EXTERNAL RESIDENTIAL CARE,130245330,22-Jul-16,1002727,"5,674.36",CMG HOMES LTD,SP0000075
WANDSWORTH COUNCIL,ASC,SOCIAL SERVICES,PRIVATE,Revenue,EXTERNAL RESIDENTIAL CARE,130245330,22-Jul-16,1002728,"3,940.80",CMG HOMES LTD,SP0000075
WANDSWORTH COUNCIL,ASC,SOCIAL SERVICES,PRIVATE,Revenue,EXTERNAL RESIDENTIAL CARE,130245330,22-Jul-16,1002729,"6,052.16",CMG HOMES LTD,SP0000075
WANDSWORTH COUNCIL,ASC,SOCIAL SERVICES,PRIVATE,Revenue,EXTERNAL RESIDENTIAL CARE,130245330,22-Jul-16,1002730,"5,594.64",CMG HOMES LTD,SP0000075
WANDSWORTH COUNCIL,ASC,SOCIAL SERVICES,PRIVATE,Revenue,EXTERNAL RESIDENTIAL CARE,130245330,22-Jul-16,1002731,"4,404.80",CMG HOMES LTD,SP0000075
WANDSWORTH COUNCIL,ASC,SOCIAL SERVICES,PRIVATE,Revenue,EXTERNAL RESIDENTIAL CARE,130245330,22-Jul-16,1002732,"3,909.12",CMG HOMES LTD,SP0000075
WANDSWORTH COUNCIL,ASC,SOCIAL SERVICES,PRIVATE,Revenue,EXTERNAL RESIDENTIAL CARE,130245330,22-Jul-16,1002733,"8,121.44",CMG HOMES LTD,SP0000075
WANDSWORTH COUNCIL,ASC,SOCIAL SERVICES,PRIVATE,Revenue,EXTERNAL RESIDENTIAL CARE,130245330,22-Jul-16,1002734,"4,902.84",CMG HOMES LTD,SP0000075
WANDSWORTH COUNCIL,ASC,SOCIAL SERVICES,PRIVATE,Revenue,EXTERNAL RESIDENTIAL CARE,130245330,22-Jul-16,1002735,"4,680.84",CMG HOMES LTD,SP0000075
WANDSWORTH COUNCIL,ASC,SOCIAL SERVICES,PRIVATE,Revenue,EXTERNAL RESIDENTIAL CARE,130245330,22-Jul-16,1002736,"7,188.28",CMG HOMES LTD,SP0000075
WANDSWORTH COUNCIL,ASC,SOCIAL SERVICES,PRIVATE,Revenue,EXTERNAL RESIDENTIAL CARE,130245330,22-Jul-16,1002738,"5,674.36",CMG HOMES LTD,SP0000075
WANDSWORTH COUNCIL,ASC,SOCIAL SERVICES,PRIVATE,Revenue,EXTERNAL RESIDENTIAL CARE,130245330,22-Jul-16,1002739,"3,940.80",CMG HOMES LTD,SP0000075
WANDSWORTH COUNCIL,ASC,SOCIAL SERVICES,PRIVATE,Revenue,EXTERNAL RESIDENTIAL CARE,130245330,22-Jul-16,1002740,"6,052.16",CMG HOMES LTD,SP0000075
WANDSWORTH COUNCIL,ASC,SOCIAL SERVICES,PRIVATE,Revenue,EXTERNAL RESIDENTIAL CARE,130245330,22-Jul-16,1002741,"5,594.64",CMG HOMES LTD,SP0000075
WANDSWORTH COUNCIL,ASC,SOCIAL SERVICES,PRIVATE,Revenue,EXTERNAL RESIDENTIAL CARE,130245330,22-Jul-16,1002742,"4,404.80",CMG HOMES LTD,SP0000075
WANDSWORTH COUNCIL,ASC,SOCIAL SERVICES,PRIVATE,Revenue,EXTERNAL RESIDENTIAL CARE,130245330,22-Jul-16,1002743,"3,909.12",CMG HOMES LTD,SP0000075
WANDSWORTH COUNCIL,ASC,SOCIAL SERVICES,PRIVATE,Revenue,EXTERNAL RESIDENTIAL CARE,130245330,22-Jul-16,1002744,"8,121.44",CMG HOMES LTD,SP0000075
WANDSWORTH COUNCIL,ASC,SOCIAL SERVICES,PRIVATE,Revenue,EXTERNAL RESIDENTIAL CARE,130245330,22-Jul-16,1002745,"4,902.84",CMG HOMES LTD,SP0000075
WANDSWORTH COUNCIL,ASC,SOCIAL SERVICES,PRIVATE,Revenue,EXTERNAL RESIDENTIAL CARE,130245330,22-Jul-16,1002746,"4,680.84",CMG HOMES LTD,SP0000075
WANDSWORTH COUNCIL,ASC,SOCIAL SERVICES,PRIVATE,Revenue,EXTERNAL RESIDENTIAL CARE,130245330,22-Jul-16,1002747,"7,188.28",CMG HOMES LTD,SP0000075
WANDSWORTH COUNCIL,ASC,SOCIAL SERVICES,PRIVATE,Revenue,EXTERNAL RESIDENTIAL CARE,130245330,25-Jul-16,1004008,"5,674.36",CMG HOMES LTD,SP0000075
WANDSWORTH COUNCIL,ASC,SOCIAL SERVICES,PRIVATE,Revenue,EXTERNAL RESIDENTIAL CARE,130245330,25-Jul-16,1004009,"3,940.80",CMG HOMES LTD,SP0000075
WANDSWORTH COUNCIL,ASC,SOCIAL SERVICES,PRIVATE,Revenue,EXTERNAL RESIDENTIAL CARE,130245330,25-Jul-16,1004010,"6,052.16",CMG HOMES LTD,SP0000075
WANDSWORTH COUNCIL,ASC,SOCIAL SERVICES,PRIVATE,Revenue,EXTERNAL RESIDENTIAL CARE,130245330,25-Jul-16,1004011,"5,594.64",CMG HOMES LTD,SP0000075
WANDSWORTH COUNCIL,ASC,SOCIAL SERVICES,PRIVATE,Revenue,EXTERNAL RESIDENTIAL CARE,130245330,25-Jul-16,1004012,"4,404.80",CMG HOMES LTD,SP0000075
WANDSWORTH COUNCIL,ASC,SOCIAL SERVICES,PRIVATE,Revenue,EXTERNAL RESIDENTIAL CARE,130245330,25-Jul-16,1004013,"3,909.12",CMG HOMES LTD,SP0000075
WANDSWORTH COUNCIL,ASC,SOCIAL SERVICES,PRIVATE,Revenue,EXTERNAL RESIDENTIAL CARE,130245330,25-Jul-16,1004014,"8,121.44",CMG HOMES LTD,SP0000075
WANDSWORTH COUNCIL,ASC,SOCIAL SERVICES,PRIVATE,Revenue,EXTERNAL RESIDENTIAL CARE,130245330,25-Jul-16,1004015,"4,918.84",CMG HOMES LTD,SP0000075
WANDSWORTH COUNCIL,ASC,SOCIAL SERVICES,PRIVATE,Revenue,EXTERNAL RESIDENTIAL CARE,130245330,25-Jul-16,1004016,"4,698.44",CMG HOMES LTD,SP0000075
WANDSWORTH COUNCIL,ASC,SOCIAL SERVICES,PRIVATE,Revenue,EXTERNAL RESIDENTIAL CARE,130245330,25-Jul-16,1004017,"7,188.28",CMG HOMES LTD,SP0000075
WANDSWORTH COUNCIL,ASC,SOCIAL SERVICES,PRIVATE,Revenue,EXTERNAL RESIDENTIAL CARE,130245330,25-Jul-16,1004018,"4,428.53",CMG HOMES LTD,SP0000075
WANDSWORTH COUNCIL,ASC,SOCIAL SERVICES,PRIVATE,Revenue,EXTERNAL RESIDENTIAL CARE,130245330,21-Jul-16,1001543,"6,669.65",NATIONAL SOCIETY FOR EPILEPSY,SP0000120
WANDSWORTH COUNCIL,ASC,SOCIAL SERVICES,PRIVATE,Revenue,EXTERNAL RESIDENTIAL CARE,130245330,15-Jul-16,996087,"2,499.08",SANCTUARY CARE LTD,SP0000121
WANDSWORTH COUNCIL,ASC,SOCIAL SERVICES,PRIVATE,Revenue,EXTERNAL RESIDENTIAL CARE,130245330,21-Jul-16,1001547,"5,058.85",IN CHORUS LTD,SP0000129
WANDSWORTH COUNCIL,ASC,SOCIAL SERVICES,PRIVATE,Revenue,EXTERNAL RESIDENTIAL CARE,130245330,22-Jul-16,1002715,"4,002.90",CENTRUST CARE HOMES LTD,SP0000141
WANDSWORTH COUNCIL,ASC,SOCIAL SERVICES,PRIVATE,Revenue,EXTERNAL RESIDENTIAL CARE,130245330,21-Jul-16,1001556,"4,869.74",FRANCES TAYLOR FOUNDATION,SP0000142
WANDSWORTH COUNCIL,ASC,SOCIAL SERVICES,PRIVATE,Revenue,EXTERNAL RESIDENTIAL CARE,130245330,21-Jul-16,1001557,"4,373.88",FRANCES TAYLOR FOUNDATION,SP0000142
WANDSWORTH COUNCIL,ASC,SOCIAL SERVICES,PRIVATE,Revenue,EXTERNAL RESIDENTIAL CARE,130245330,21-Jul-16,1001558,"4,220.47",FRANCES TAYLOR FOUNDATION,SP0000142
WANDSWORTH COUNCIL,ASC,SOCIAL SERVICES,PRIVATE,Revenue,EXTERNAL RESIDENTIAL CARE,130245330,05-Jul-16,987404,"4,712.66",FRANCES TAYLOR FOUNDATION,SP0000142
WANDSWORTH COUNCIL,ASC,SOCIAL SERVICES,PRIVATE,Revenue,EXTERNAL RESIDENTIAL CARE,130245330,05-Jul-16,987405,"4,254.22",FRANCES TAYLOR FOUNDATION,SP0000142
WANDSWORTH COUNCIL,ASC,SOCIAL SERVICES,PRIVATE,Revenue,EXTERNAL RESIDENTIAL CARE,130245330,05-Jul-16,987406,"4,084.33",FRANCES TAYLOR FOUNDATION,SP0000142
WANDSWORTH COUNCIL,ASC,SOCIAL SERVICES,PRIVATE,Revenue,EXTERNAL RESIDENTIAL CARE,130245330,01-Jul-16,985106,"4,078.44",RESIDENTIAL CARE SERVICES T/A FRANKLYN L,SP0000147
WANDSWORTH COUNCIL,ASC,SOCIAL SERVICES,PRIVATE,Revenue,EXTERNAL RESIDENTIAL CARE,130245330,27-Jul-16,1005459,"9,223.48",THE MAPLES,SP0000154
WANDSWORTH COUNCIL,ASC,SOCIAL SERVICES,PRIVATE,Revenue,EXTERNAL RESIDENTIAL CARE,130245330,07-Jul-16,990186,"9,223.48",THE MAPLES,SP0000154
WANDSWORTH COUNCIL,ASC,SOCIAL SERVICES,PRIVATE,Revenue,EXTERNAL RESIDENTIAL CARE,130245330,07-Jul-16,989508,"1,662.08",ORCHARD VALE TRUST,SP0000214
WANDSWORTH COUNCIL,ASC,SOCIAL SERVICES,PRIVATE,Revenue,EXTERNAL RESIDENTIAL CARE,130245330,21-Jul-16,1001544,"3,926.02",ST MARYS RESIDENTIAL HOME,SP0000215
WANDSWORTH COUNCIL,ASC,SOCIAL SERVICES,PRIVATE,Revenue,EXTERNAL RESIDENTIAL CARE,130245330,21-Jul-16,1001545,"3,118.80",ST MARYS RESIDENTIAL HOME,SP0000215
WANDSWORTH COUNCIL,ASC,SOCIAL SERVICES,PRIVATE,Revenue,EXTERNAL RESIDENTIAL CARE,130245330,21-Jul-16,1001546,"3,564.13",ST MARYS RESIDENTIAL HOME,SP0000215
WANDSWORTH COUNCIL,ASC,SOCIAL SERVICES,PRIVATE,Revenue,EXTERNAL RESIDENTIAL CARE,130245330,08-Jul-16,991291,"2,962.80",ST MARYS RESIDENTIAL HOME,SP0000215
WANDSWORTH COUNCIL,ASC,SOCIAL SERVICES,PRIVATE,Revenue,EXTERNAL RESIDENTIAL CARE,130245330,14-Jul-16,995607,"3,860.83",ST MARYS RESIDENTIAL HOME,SP0000215
WANDSWORTH COUNCIL,ASC,SOCIAL SERVICES,PRIVATE,Revenue,EXTERNAL RESIDENTIAL CARE,130245330,14-Jul-16,995608,"3,799.37",ST MARYS RESIDENTIAL HOME,SP0000215
WANDSWORTH COUNCIL,ASC,SOCIAL SERVICES,PRIVATE,Revenue,EXTERNAL RESIDENTIAL CARE,130245330,14-Jul-16,995609,"3,478.85",ST MARYS RESIDENTIAL HOME,SP0000215
WANDSWORTH COUNCIL,ASC,SOCIAL SERVICES,PRIVATE,Revenue,EXTERNAL RESIDENTIAL CARE,130245330,14-Jul-16,995610,"3,617.02",ST MARYS RESIDENTIAL HOME,SP0000215
WANDSWORTH COUNCIL,ASC,SOCIAL SERVICES,PRIVATE,Revenue,EXTERNAL RESIDENTIAL CARE,130245330,14-Jul-16,995611,"2,969.87",ST MARYS RESIDENTIAL HOME,SP0000215
WANDSWORTH COUNCIL,ASC,SOCIAL SERVICES,PRIVATE,Revenue,EXTERNAL RESIDENTIAL CARE,130245330,14-Jul-16,995612,"4,996.81",ST MARYS RESIDENTIAL HOME,SP0000215
WANDSWORTH COUNCIL,ASC,SOCIAL SERVICES,PRIVATE,Revenue,EXTERNAL RESIDENTIAL CARE,130245330,14-Jul-16,995613,"3,527.53",ST MARYS RESIDENTIAL HOME,SP0000215
WANDSWORTH COUNCIL,ASC,SOCIAL SERVICES,PRIVATE,Revenue,EXTERNAL RESIDENTIAL CARE,130245330,14-Jul-16,995614,"3,491.40",ST MARYS RESIDENTIAL HOME,SP0000215
WANDSWORTH COUNCIL,ASC,SOCIAL SERVICES,PRIVATE,Revenue,EXTERNAL RESIDENTIAL CARE,130245330,14-Jul-16,995615,"3,343.33",ST MARYS RESIDENTIAL HOME,SP0000215
WANDSWORTH COUNCIL,ASC,SOCIAL SERVICES,PRIVATE,Revenue,EXTERNAL RESIDENTIAL CARE,130245330,14-Jul-16,995616,"3,704.57",ST MARYS RESIDENTIAL HOME,SP0000215
WANDSWORTH COUNCIL,ASC,SOCIAL SERVICES,PRIVATE,Revenue,EXTERNAL RESIDENTIAL CARE,130245330,14-Jul-16,995617,"3,452.58",ST MARYS RESIDENTIAL HOME,SP0000215
WANDSWORTH COUNCIL,ASC,SOCIAL SERVICES,PRIVATE,Revenue,EXTERNAL RESIDENTIAL CARE,130245330,14-Jul-16,995618,"3,704.57",ST MARYS RESIDENTIAL HOME,SP0000215
WANDSWORTH COUNCIL,ASC,SOCIAL SERVICES,PRIVATE,Revenue,EXTERNAL RESIDENTIAL CARE,130245330,14-Jul-16,995619,"2,254.51",ST MARYS RESIDENTIAL HOME,SP0000215
WANDSWORTH COUNCIL,ASC,SOCIAL SERVICES,PRIVATE,Revenue,EXTERNAL RESIDENTIAL CARE,130245330,14-Jul-16,995620,"3,118.80",ST MARYS RESIDENTIAL HOME,SP0000215
WANDSWORTH COUNCIL,ASC,SOCIAL SERVICES,PRIVATE,Revenue,EXTERNAL RESIDENTIAL CARE,130245330,14-Jul-16,995621,"3,564.13",ST MARYS RESIDENTIAL HOME,SP0000215
WANDSWORTH COUNCIL,ASC,SOCIAL SERVICES,PRIVATE,Revenue,EXTERNAL RESIDENTIAL CARE,130245330,14-Jul-16,995635,"3,569.83",ST MARYS RESIDENTIAL HOME,SP0000215
WANDSWORTH COUNCIL,ASC,SOCIAL SERVICES,PRIVATE,Revenue,EXTERNAL RESIDENTIAL CARE,130245330,08-Jul-16,990838,"3,724.72",HAYDON PARK LODGE LTD,SP0000231
WANDSWORTH COUNCIL,ASC,SOCIAL SERVICES,PRIVATE,Revenue,EXTERNAL RESIDENTIAL CARE,130245330,25-Jul-16,1003994,"7,708.95",THE DISABILITIES TRUST,SP0000239
WANDSWORTH COUNCIL,ASC,SOCIAL SERVICES,PRIVATE,Revenue,EXTERNAL RESIDENTIAL CARE,130245330,12-Jul-16,993671,"7,460.27",THE DISABILITIES TRUST,SP0000239
WANDSWORTH COUNCIL,ASC,SOCIAL SERVICES,PRIVATE,Revenue,EXTERNAL RESIDENTIAL CARE,130245330,27-Jul-16,1005465,"4,739.88",CAMERON LODGE LIMITED,SP0000271
WANDSWORTH COUNCIL,ASC,SOCIAL SERVICES,PRIVATE,Revenue,EXTERNAL RESIDENTIAL CARE,130245330,21-Jul-16,1001518,"8,046.54",BROOKDALE CARE,SP0000282
WANDSWORTH COUNCIL,ASC,SOCIAL SERVICES,PRIVATE,Revenue,EXTERNAL RESIDENTIAL CARE,130245330,15-Jul-16,996632,"8,046.54",BROOKDALE CARE,SP0000282
WANDSWORTH COUNCIL,ASC,SOCIAL SERVICES,PRIVATE,Revenue,EXTERNAL RESIDENTIAL CARE,130245330,19-Jul-16,999818,"7,785.58",BROOKDALE CARE,SP0000282
WANDSWORTH COUNCIL,ASC,SOCIAL SERVICES,PRIVATE,Revenue,EXTERNAL RESIDENTIAL CARE,130245330,21-Jul-16,1001417,"6,206.87",RESIDENTIAL COMMUNITY CARE,SP0000315
WANDSWORTH COUNCIL,ASC,SOCIAL SERVICES,PRIVATE,Revenue,EXTERNAL RESIDENTIAL CARE,130245330,21-Jul-16,1001418,"6,263.46",RESIDENTIAL COMMUNITY CARE,SP0000315
WANDSWORTH COUNCIL,ASC,SOCIAL SERVICES,PRIVATE,Revenue,EXTERNAL RESIDENTIAL CARE,130245330,14-Jul-16,995383,"4,946.29",DOLPHIN HOMES LTD,SP0000331
WANDSWORTH COUNCIL,ASC,SOCIAL SERVICES,PRIVATE,Revenue,EXTERNAL RESIDENTIAL CARE,130245330,14-Jul-16,995384,"3,893.95",DOLPHIN HOMES LTD,SP0000331
WANDSWORTH COUNCIL,ASC,SOCIAL SERVICES,PRIVATE,Revenue,EXTERNAL RESIDENTIAL CARE,130245330,22-Jul-16,1002702,"6,197.52",NORWOOD SCHOOLS LTD,SP0000332
WANDSWORTH COUNCIL,ASC,SOCIAL SERVICES,PRIVATE,Revenue,EXTERNAL RESIDENTIAL CARE,130245330,22-Jul-16,1002703,"6,454.68",NORWOOD SCHOOLS LTD,SP0000332
WANDSWORTH COUNCIL,ASC,SOCIAL SERVICES,PRIVATE,Revenue,EXTERNAL RESIDENTIAL CARE,130245330,14-Jul-16,995622,"6,197.52",NORWOOD SCHOOLS LTD,SP0000332
WANDSWORTH COUNCIL,ASC,SOCIAL SERVICES,PRIVATE,Revenue,EXTERNAL RESIDENTIAL CARE,130245330,18-Jul-16,998379,"6,443.42",NORWOOD SCHOOLS LTD,SP0000332
WANDSWORTH COUNCIL,ASC,SOCIAL SERVICES,PRIVATE,Revenue,EXTERNAL RESIDENTIAL CARE,130245330,22-Jul-16,1002698,"2,589.34",HEYWOODS GRANGE LTD,SP0000361
WANDSWORTH COUNCIL,ASC,SOCIAL SERVICES,PRIVATE,Revenue,EXTERNAL RESIDENTIAL CARE,130245330,22-Jul-16,1002699,"2,589.34",HEYWOODS GRANGE LTD,SP0000361
WANDSWORTH COUNCIL,ASC,SOCIAL SERVICES,PRIVATE,Revenue,EXTERNAL RESIDENTIAL CARE,130245330,22-Jul-16,1002700,"3,128.91",HEYWOODS GRANGE LTD,SP0000361
WANDSWORTH COUNCIL,ASC,SOCIAL SERVICES,PRIVATE,Revenue,EXTERNAL RESIDENTIAL CARE,130245330,01-Jul-16,985109,"5,912.35",VOYAGE CARE LTD,SP0000366
WANDSWORTH COUNCIL,ASC,SOCIAL SERVICES,PRIVATE,Revenue,EXTERNAL RESIDENTIAL CARE,130245330,15-Jul-16,996616,"6,441.12",VOYAGE CARE LTD,SP0000366
WANDSWORTH COUNCIL,ASC,SOCIAL SERVICES,PRIVATE,Revenue,EXTERNAL RESIDENTIAL CARE,130245330,15-Jul-16,996617,"7,766.72",VOYAGE CARE LTD,SP0000366
WANDSWORTH COUNCIL,ASC,SOCIAL SERVICES,PRIVATE,Revenue,EXTERNAL RESIDENTIAL CARE,130245330,21-Jul-16,1001525,"2,124.34",ST DAVIDS CARE IN THE COMMUNITY,SP0000379
WANDSWORTH COUNCIL,ASC,SOCIAL SERVICES,PRIVATE,Revenue,EXTERNAL RESIDENTIAL CARE,130245330,21-Jul-16,1001526,"2,661.04",ST DAVIDS CARE IN THE COMMUNITY,SP0000379
WANDSWORTH COUNCIL,ASC,SOCIAL SERVICES,PRIVATE,Revenue,EXTERNAL RESIDENTIAL CARE,130245330,21-Jul-16,1001527,"2,053.57",ST DAVIDS CARE IN THE COMMUNITY,SP0000379
WANDSWORTH COUNCIL,ASC,SOCIAL SERVICES,PRIVATE,Revenue,EXTERNAL RESIDENTIAL CARE,130245330,21-Jul-16,1001559,"5,646.12",ESSEX CARE CONSORTIUM,SP0000387
WANDSWORTH COUNCIL,ASC,SOCIAL SERVICES,PRIVATE,Revenue,EXTERNAL RESIDENTIAL CARE,130245330,22-Jul-16,1002696,"4,055.97",KENILWORTH RESIDENTIAL HOME,SP0000432
WANDSWORTH COUNCIL,ASC,SOCIAL SERVICES,PRIVATE,Revenue,EXTERNAL RESIDENTIAL CARE,130245330,22-Jul-16,1002697,"4,150.04",KENILWORTH RESIDENTIAL HOME,SP0000432
WANDSWORTH COUNCIL,ASC,SOCIAL SERVICES,PRIVATE,Revenue,EXTERNAL RESIDENTIAL CARE,130245330,05-Jul-16,987402,"4,686.80",THE WELL HOUSE,SP0000448
WANDSWORTH COUNCIL,ASC,SOCIAL SERVICES,PRIVATE,Revenue,EXTERNAL RESIDENTIAL CARE,130245330,05-Jul-16,987403,"4,434.36",THE WELL HOUSE,SP0000448
WANDSWORTH COUNCIL,ASC,SOCIAL SERVICES,PRIVATE,Revenue,EXTERNAL RESIDENTIAL CARE,130245330,06-Jul-16,988528,"5,262.60",MACINTYRE CARE,SP0000473
WANDSWORTH COUNCIL,ASC,SOCIAL SERVICES,PRIVATE,Revenue,EXTERNAL RESIDENTIAL CARE,130245330,06-Jul-16,988529,"5,483.96",MACINTYRE CARE,SP0000473
WANDSWORTH COUNCIL,ASC,SOCIAL SERVICES,PRIVATE,Revenue,EXTERNAL RESIDENTIAL CARE,130245330,06-Jul-16,988531,"3,813.24",MACINTYRE CARE,SP0000473
WANDSWORTH COUNCIL,ASC,SOCIAL SERVICES,PRIVATE,Revenue,EXTERNAL RESIDENTIAL CARE,130245330,06-Jul-16,988532,"5,244.40",MACINTYRE CARE,SP0000473
WANDSWORTH COUNCIL,ASC,SOCIAL SERVICES,PRIVATE,Revenue,EXTERNAL RESIDENTIAL CARE,130245330,06-Jul-16,988533,"3,788.24",MACINTYRE CARE,SP0000473
WANDSWORTH COUNCIL,ASC,SOCIAL SERVICES,PRIVATE,Revenue,EXTERNAL RESIDENTIAL CARE,130245330,06-Jul-16,988534,"3,851.96",MACINTYRE CARE,SP0000473
WANDSWORTH COUNCIL,ASC,SOCIAL SERVICES,PRIVATE,Revenue,EXTERNAL RESIDENTIAL CARE,130245330,06-Jul-16,988535,"5,048.84",MACINTYRE CARE,SP0000473
WANDSWORTH COUNCIL,ASC,SOCIAL SERVICES,PRIVATE,Revenue,EXTERNAL RESIDENTIAL CARE,130245330,06-Jul-16,988536,"5,164.16",MACINTYRE CARE,SP0000473
WANDSWORTH COUNCIL,ASC,SOCIAL SERVICES,PRIVATE,Revenue,EXTERNAL RESIDENTIAL CARE,130245330,06-Jul-16,988537,"2,324.48",MACINTYRE CARE,SP0000473
WANDSWORTH COUNCIL,ASC,SOCIAL SERVICES,PRIVATE,Revenue,EXTERNAL RESIDENTIAL CARE,130245330,06-Jul-16,988538,"8,135.00",MACINTYRE CARE,SP0000473
WANDSWORTH COUNCIL,ASC,SOCIAL SERVICES,PRIVATE,Revenue,EXTERNAL RESIDENTIAL CARE,130245330,06-Jul-16,988539,"5,096.88",MACINTYRE CARE,SP0000473
WANDSWORTH COUNCIL,ASC,SOCIAL SERVICES,PRIVATE,Revenue,EXTERNAL RESIDENTIAL CARE,130245330,06-Jul-16,988540,"5,484.04",MACINTYRE CARE,SP0000473
WANDSWORTH COUNCIL,ASC,SOCIAL SERVICES,PRIVATE,Revenue,EXTERNAL RESIDENTIAL CARE,130245330,06-Jul-16,988541,"4,972.84",MACINTYRE CARE,SP0000473
WANDSWORTH COUNCIL,ASC,SOCIAL SERVICES,PRIVATE,Revenue,EXTERNAL RESIDENTIAL CARE,130245330,06-Jul-16,988542,"4,338.96",MACINTYRE CARE,SP0000473
WANDSWORTH COUNCIL,ASC,SOCIAL SERVICES,PRIVATE,Revenue,EXTERNAL RESIDENTIAL CARE,130245330,06-Jul-16,988543,"4,958.24",MACINTYRE CARE,SP0000473
WANDSWORTH COUNCIL,ASC,SOCIAL SERVICES,PRIVATE,Revenue,EXTERNAL RESIDENTIAL CARE,130245330,06-Jul-16,988544,"4,958.24",MACINTYRE CARE,SP0000473
WANDSWORTH COUNCIL,ASC,SOCIAL SERVICES,PRIVATE,Revenue,EXTERNAL RESIDENTIAL CARE,130245330,06-Jul-16,988546,"4,953.40",MACINTYRE CARE,SP0000473
WANDSWORTH COUNCIL,ASC,SOCIAL SERVICES,PRIVATE,Revenue,EXTERNAL RESIDENTIAL CARE,130245330,06-Jul-16,988547,"4,972.84",MACINTYRE CARE,SP0000473
WANDSWORTH COUNCIL,ASC,SOCIAL SERVICES,PRIVATE,Revenue,EXTERNAL RESIDENTIAL CARE,130245330,06-Jul-16,988548,"5,080.88",MACINTYRE CARE,SP0000473
WANDSWORTH COUNCIL,ASC,SOCIAL SERVICES,PRIVATE,Revenue,EXTERNAL RESIDENTIAL CARE,130245330,06-Jul-16,988549,"4,972.84",MACINTYRE CARE,SP0000473
WANDSWORTH COUNCIL,ASC,SOCIAL SERVICES,PRIVATE,Revenue,EXTERNAL RESIDENTIAL CARE,130245330,20-Jul-16,1000853,"8,982.39",SURREY & BORDERS PARTNERSHIP NHS TRUST,SP0000501
WANDSWORTH COUNCIL,ASC,SOCIAL SERVICES,PRIVATE,Revenue,EXTERNAL RESIDENTIAL CARE,130245330,20-Jul-16,1000854,"5,605.20",SURREY & BORDERS PARTNERSHIP NHS TRUST,SP0000501
WANDSWORTH COUNCIL,ASC,SOCIAL SERVICES,PRIVATE,Revenue,EXTERNAL RESIDENTIAL CARE,130245330,21-Jul-16,1001532,"13,801.00",SURREY & BORDERS PARTNERSHIP NHS TRUST,SP0000501
WANDSWORTH COUNCIL,ASC,SOCIAL SERVICES,PRIVATE,Revenue,EXTERNAL RESIDENTIAL CARE,130245330,07-Jul-16,989502,"7,717.76",LORING HALL LIMITED,SP0000511
WANDSWORTH COUNCIL,ASC,SOCIAL SERVICES,PRIVATE,Revenue,EXTERNAL RESIDENTIAL CARE,130245330,21-Jul-16,1001456,"8,370.84",AIMS CARE PARTNERSHIP,SP0000561
WANDSWORTH COUNCIL,ASC,SOCIAL SERVICES,PRIVATE,Revenue,EXTERNAL RESIDENTIAL CARE,130245330,26-Jul-16,1004355,"7,597.04",SEEABILITY,SP0000572
WANDSWORTH COUNCIL,ASC,SOCIAL SERVICES,PRIVATE,Revenue,EXTERNAL RESIDENTIAL CARE,130245330,07-Jul-16,989505,"7,351.97",SEEABILITY,SP0000572
WANDSWORTH COUNCIL,ASC,SOCIAL SERVICES,PRIVATE,Revenue,EXTERNAL RESIDENTIAL CARE,130245330,12-Jul-16,993654,"8,292.86",SEEABILITY,SP0000572
WANDSWORTH COUNCIL,ASC,SOCIAL SERVICES,PRIVATE,Revenue,EXTERNAL RESIDENTIAL CARE,130245330,21-Jul-16,1001428,"6,249.68",THE COMMUNITY CARE COMPANY UK LTD,SP0000576
WANDSWORTH COUNCIL,ASC,SOCIAL SERVICES,PRIVATE,Revenue,EXTERNAL RESIDENTIAL CARE,130245330,21-Jul-16,1001519,"5,683.81",THE COMMUNITY CARE COMPANY UK LTD,SP0000576
WANDSWORTH COUNCIL,ASC,SOCIAL SERVICES,PRIVATE,Revenue,EXTERNAL RESIDENTIAL CARE,130245330,21-Jul-16,1001520,"7,171.89",THE COMMUNITY CARE COMPANY UK LTD,SP0000576
WANDSWORTH COUNCIL,ASC,SOCIAL SERVICES,PRIVATE,Revenue,EXTERNAL RESIDENTIAL CARE,130245330,21-Jul-16,1001521,"6,062.44",THE COMMUNITY CARE COMPANY UK LTD,SP0000576
WANDSWORTH COUNCIL,ASC,SOCIAL SERVICES,PRIVATE,Revenue,EXTERNAL RESIDENTIAL CARE,130245330,21-Jul-16,1001522,"7,253.60",THE COMMUNITY CARE COMPANY UK LTD,SP0000576
WANDSWORTH COUNCIL,ASC,SOCIAL SERVICES,PRIVATE,Revenue,EXTERNAL RESIDENTIAL CARE,130245330,27-Jul-16,1005461,"6,660.92",BIRCC,SP0000584
WANDSWORTH COUNCIL,ASC,SOCIAL SERVICES,PRIVATE,Revenue,EXTERNAL RESIDENTIAL CARE,130245330,27-Jul-16,1005462,"6,660.92",BIRCC,SP0000584
WANDSWORTH COUNCIL,ASC,SOCIAL SERVICES,PRIVATE,Revenue,EXTERNAL RESIDENTIAL CARE,130245330,21-Jul-16,1001411,"7,185.09",THE REGARD PARTNERSHIP,SP0000588
WANDSWORTH COUNCIL,ASC,SOCIAL SERVICES,PRIVATE,Revenue,EXTERNAL RESIDENTIAL CARE,130245330,21-Jul-16,1001412,"7,290.84",THE REGARD PARTNERSHIP,SP0000588
WANDSWORTH COUNCIL,ASC,SOCIAL SERVICES,PRIVATE,Revenue,EXTERNAL RESIDENTIAL CARE,130245330,21-Jul-16,1001413,"6,001.36",THE REGARD PARTNERSHIP,SP0000588
WANDSWORTH COUNCIL,ASC,SOCIAL SERVICES,PRIVATE,Revenue,EXTERNAL RESIDENTIAL CARE,130245330,21-Jul-16,1001414,"8,029.66",THE REGARD PARTNERSHIP,SP0000588
WANDSWORTH COUNCIL,ASC,SOCIAL SERVICES,PRIVATE,Revenue,EXTERNAL RESIDENTIAL CARE,130245330,26-Jul-16,1004354,"7,203.91",THE REGARD PARTNERSHIP,SP0000588
WANDSWORTH COUNCIL,ASC,SOCIAL SERVICES,PRIVATE,Revenue,EXTERNAL RESIDENTIAL CARE,130245330,14-Jul-16,995627,"7,295.06",THE REGARD PARTNERSHIP,SP0000588
WANDSWORTH COUNCIL,ASC,SOCIAL SERVICES,PRIVATE,Revenue,EXTERNAL RESIDENTIAL CARE,130245330,14-Jul-16,995628,"7,052.40",THE REGARD PARTNERSHIP,SP0000588
WANDSWORTH COUNCIL,ASC,SOCIAL SERVICES,PRIVATE,Revenue,EXTERNAL RESIDENTIAL CARE,130245330,14-Jul-16,995629,"6,971.54",THE REGARD PARTNERSHIP,SP0000588
WANDSWORTH COUNCIL,ASC,SOCIAL SERVICES,PRIVATE,Revenue,EXTERNAL RESIDENTIAL CARE,130245330,15-Jul-16,996614,"5,875.84",THE REGARD PARTNERSHIP,SP0000588
WANDSWORTH COUNCIL,ASC,SOCIAL SERVICES,PRIVATE,Revenue,EXTERNAL RESIDENTIAL CARE,130245330,20-Jul-16,1000946,"9,867.20",EVERGREEN PARTNERSHIP,SP0000597
WANDSWORTH COUNCIL,ASC,SOCIAL SERVICES,PRIVATE,Revenue,EXTERNAL RESIDENTIAL CARE,130245330,15-Jul-16,996294,"4,732.60",LAETUS LODGE,SP0000600
WANDSWORTH COUNCIL,ASC,SOCIAL SERVICES,PRIVATE,Revenue,EXTERNAL RESIDENTIAL CARE,130245330,15-Jul-16,996295,"7,620.55",LAETUS LODGE,SP0000600
WANDSWORTH COUNCIL,ASC,SOCIAL SERVICES,PRIVATE,Revenue,EXTERNAL RESIDENTIAL CARE,130245330,15-Jul-16,996296,"4,618.50",LAETUS LODGE,SP0000600
WANDSWORTH COUNCIL,ASC,SOCIAL SERVICES,PRIVATE,Revenue,EXTERNAL RESIDENTIAL CARE,130245330,15-Jul-16,996297,"6,032.20",LAETUS LODGE,SP0000600
WANDSWORTH COUNCIL,ASC,SOCIAL SERVICES,PRIVATE,Revenue,EXTERNAL RESIDENTIAL CARE,130245330,15-Jul-16,996298,"6,596.55",LAETUS LODGE,SP0000600
WANDSWORTH COUNCIL,ASC,SOCIAL SERVICES,PRIVATE,Revenue,EXTERNAL RESIDENTIAL CARE,130245330,15-Jul-16,996299,"7,795.85",LAETUS LODGE,SP0000600
WANDSWORTH COUNCIL,ASC,SOCIAL SERVICES,PRIVATE,Revenue,EXTERNAL RESIDENTIAL CARE,130245330,15-Jul-16,996300,"9,377.70",LAETUS LODGE,SP0000600
WANDSWORTH COUNCIL,ASC,SOCIAL SERVICES,PRIVATE,Revenue,EXTERNAL RESIDENTIAL CARE,130245330,21-Jul-16,1001550,"3,472.09",MENCAP,SP0000604
WANDSWORTH COUNCIL,ASC,SOCIAL SERVICES,PRIVATE,Revenue,EXTERNAL RESIDENTIAL CARE,130245330,21-Jul-16,1001552,"2,409.54",MENCAP,SP0000604
WANDSWORTH COUNCIL,ASC,SOCIAL SERVICES,PRIVATE,Revenue,EXTERNAL RESIDENTIAL CARE,130245330,26-Jul-16,1004364,"8,454.94",HEALTHLINC INDIVIDUAL CARE,SP0000617
WANDSWORTH COUNCIL,ASC,SOCIAL SERVICES,PRIVATE,Revenue,EXTERNAL RESIDENTIAL CARE,130245330,22-Jul-16,1002682,"3,675.52",METROPOLITAN HOUSING TRUST,SP0000626
WANDSWORTH COUNCIL,ASC,SOCIAL SERVICES,PRIVATE,Revenue,EXTERNAL RESIDENTIAL CARE,130245330,22-Jul-16,1002683,"3,677.12",METROPOLITAN HOUSING TRUST,SP0000626
WANDSWORTH COUNCIL,ASC,SOCIAL SERVICES,PRIVATE,Revenue,EXTERNAL RESIDENTIAL CARE,130245330,22-Jul-16,1002684,"3,659.52",METROPOLITAN HOUSING TRUST,SP0000626
WANDSWORTH COUNCIL,ASC,SOCIAL SERVICES,PRIVATE,Revenue,EXTERNAL RESIDENTIAL CARE,130245330,22-Jul-16,1002685,"3,659.68",METROPOLITAN HOUSING TRUST,SP0000626
WANDSWORTH COUNCIL,ASC,SOCIAL SERVICES,PRIVATE,Revenue,EXTERNAL RESIDENTIAL CARE,130245330,22-Jul-16,1002686,"3,659.52",METROPOLITAN HOUSING TRUST,SP0000626
WANDSWORTH COUNCIL,ASC,SOCIAL SERVICES,PRIVATE,Revenue,EXTERNAL RESIDENTIAL CARE,130245330,22-Jul-16,1002687,"3,659.52",METROPOLITAN HOUSING TRUST,SP0000626
WANDSWORTH COUNCIL,ASC,SOCIAL SERVICES,PRIVATE,Revenue,EXTERNAL RESIDENTIAL CARE,130245330,22-Jul-16,1002688,"3,812.04",METROPOLITAN HOUSING TRUST,SP0000626
WANDSWORTH COUNCIL,ASC,SOCIAL SERVICES,PRIVATE,Revenue,EXTERNAL RESIDENTIAL CARE,130245330,22-Jul-16,1002689,"3,659.52",METROPOLITAN HOUSING TRUST,SP0000626
WANDSWORTH COUNCIL,ASC,SOCIAL SERVICES,PRIVATE,Revenue,EXTERNAL RESIDENTIAL CARE,130245330,22-Jul-16,1002690,"4,772.88",METROPOLITAN HOUSING TRUST,SP0000626
WANDSWORTH COUNCIL,ASC,SOCIAL SERVICES,PRIVATE,Revenue,EXTERNAL RESIDENTIAL CARE,130245330,22-Jul-16,1002691,"4,790.16",METROPOLITAN HOUSING TRUST,SP0000626
WANDSWORTH COUNCIL,ASC,SOCIAL SERVICES,PRIVATE,Revenue,EXTERNAL RESIDENTIAL CARE,130245330,22-Jul-16,1002692,"4,243.64",METROPOLITAN HOUSING TRUST,SP0000626
WANDSWORTH COUNCIL,ASC,SOCIAL SERVICES,PRIVATE,Revenue,EXTERNAL RESIDENTIAL CARE,130245330,22-Jul-16,1002693,"4,756.88",METROPOLITAN HOUSING TRUST,SP0000626
WANDSWORTH COUNCIL,ASC,SOCIAL SERVICES,PRIVATE,Revenue,EXTERNAL RESIDENTIAL CARE,130245330,22-Jul-16,1002695,"4,725.79",METROPOLITAN HOUSING TRUST,SP0000626
WANDSWORTH COUNCIL,ASC,SOCIAL SERVICES,PRIVATE,Revenue,EXTERNAL RESIDENTIAL CARE,130245330,25-Jul-16,1004007,"6,033.38",SUSSEX AUTISTIC COMMUNITY TRUST(CARE SER,SP0000652
WANDSWORTH COUNCIL,ASC,SOCIAL SERVICES,PRIVATE,Revenue,EXTERNAL RESIDENTIAL CARE,130245330,26-Jul-16,1004348,"6,228.50",SUSSEX AUTISTIC COMMUNITY TRUST(CARE SER,SP0000652
WANDSWORTH COUNCIL,ASC,SOCIAL SERVICES,PRIVATE,Revenue,EXTERNAL RESIDENTIAL CARE,130245330,18-Jul-16,998398,"2,395.60",LIVABILITY,SP0000669
WANDSWORTH COUNCIL,ASC,SOCIAL SERVICES,PRIVATE,Revenue,EXTERNAL RESIDENTIAL CARE,130245330,15-Jul-16,996222,"30,595.63",LOVING CARE LTD,SP0000670
WANDSWORTH COUNCIL,ASC,SOCIAL SERVICES,PRIVATE,Revenue,EXTERNAL RESIDENTIAL CARE,130245330,15-Jul-16,996223,"29,591.38",LOVING CARE LTD,SP0000670
WANDSWORTH COUNCIL,ASC,SOCIAL SERVICES,PRIVATE,Revenue,EXTERNAL RESIDENTIAL CARE,130245330,15-Jul-16,996224,"27,591.30",LOVING CARE LTD,SP0000670
WANDSWORTH COUNCIL,ASC,SOCIAL SERVICES,PRIVATE,Revenue,EXTERNAL RESIDENTIAL CARE,130245330,15-Jul-16,996225,"28,426.26",LOVING CARE LTD,SP0000670
WANDSWORTH COUNCIL,ASC,SOCIAL SERVICES,PRIVATE,Revenue,EXTERNAL RESIDENTIAL CARE,130245330,15-Jul-16,996293,"25,308.72",LOVING CARE LTD,SP0000670
WANDSWORTH COUNCIL,ASC,SOCIAL SERVICES,PRIVATE,Revenue,EXTERNAL RESIDENTIAL CARE,130245330,15-Jul-16,996310,"28,896.69",LOVING CARE LTD,SP0000670
WANDSWORTH COUNCIL,ASC,SOCIAL SERVICES,PRIVATE,Revenue,EXTERNAL RESIDENTIAL CARE,130245330,15-Jul-16,996312,"29,715.87",LOVING CARE LTD,SP0000670
WANDSWORTH COUNCIL,ASC,SOCIAL SERVICES,PRIVATE,Revenue,EXTERNAL RESIDENTIAL CARE,130245330,15-Jul-16,996312,"10,552.73",LOVING CARE LTD,SP0000670
WANDSWORTH COUNCIL,ASC,SOCIAL SERVICES,PRIVATE,Revenue,EXTERNAL RESIDENTIAL CARE,130245330,14-Jul-16,995389,"5,133.28",WHITMORE VALE HOUSING ASSOCIATION LTD,SP0000694
WANDSWORTH COUNCIL,ASC,SOCIAL SERVICES,PRIVATE,Revenue,EXTERNAL RESIDENTIAL CARE,130245330,21-Jul-16,1001427,"3,120.73",THE MANOR HOUSE,SP0000728
WANDSWORTH COUNCIL,ASC,SOCIAL SERVICES,PRIVATE,Revenue,EXTERNAL RESIDENTIAL CARE,130245330,21-Jul-16,1001524,"8,596.21",RALEIGH HOUSE LTD,SP0000760
WANDSWORTH COUNCIL,ASC,SOCIAL SERVICES,PRIVATE,Revenue,EXTERNAL RESIDENTIAL CARE,130245330,28-Jul-16,1006415,"4,847.49",WHITE ROSE CARE,SP0000780
WANDSWORTH COUNCIL,ASC,SOCIAL SERVICES,PRIVATE,Revenue,EXTERNAL RESIDENTIAL CARE,130245330,28-Jul-16,1006416,"4,847.49",WHITE ROSE CARE,SP0000780
WANDSWORTH COUNCIL,ASC,SOCIAL SERVICES,PRIVATE,Revenue,EXTERNAL RESIDENTIAL CARE,130245330,25-Jul-16,1004021,"3,806.64",GLENCARE GROUP,SP0000791
WANDSWORTH COUNCIL,ASC,SOCIAL SERVICES,PRIVATE,Revenue,EXTERNAL RESIDENTIAL CARE,130245330,12-Jul-16,993655,"3,822.65",GLENCARE GROUP,SP0000791
WANDSWORTH COUNCIL,ASC,SOCIAL SERVICES,PRIVATE,Revenue,EXTERNAL RESIDENTIAL CARE,130245330,12-Jul-16,993656,"6,103.44",GLENCARE GROUP,SP0000791
WANDSWORTH COUNCIL,ASC,SOCIAL SERVICES,PRIVATE,Revenue,EXTERNAL RESIDENTIAL CARE,130245330,12-Jul-16,993657,"3,822.64",GLENCARE GROUP,SP0000791
WANDSWORTH COUNCIL,ASC,SOCIAL SERVICES,PRIVATE,Revenue,EXTERNAL RESIDENTIAL CARE,130245330,12-Jul-16,993663,"2,267.32",FREEWAYS TRUST LTD,SP0000793
WANDSWORTH COUNCIL,ASC,SOCIAL SERVICES,PRIVATE,Revenue,EXTERNAL RESIDENTIAL CARE,130245330,07-Jul-16,990182,"3,162.56",UNITED RESPONSE,SP0000797
WANDSWORTH COUNCIL,ASC,SOCIAL SERVICES,PRIVATE,Revenue,EXTERNAL RESIDENTIAL CARE,130245330,27-Jul-16,1005556,"3,182.72",PROSPECTS,SP0000800
WANDSWORTH COUNCIL,ASC,SOCIAL SERVICES,PRIVATE,Revenue,EXTERNAL RESIDENTIAL CARE,130245330,01-Jul-16,985108,"3,182.72",PROSPECTS,SP0000800
WANDSWORTH COUNCIL,ASC,SOCIAL SERVICES,PRIVATE,Revenue,EXTERNAL RESIDENTIAL CARE,130245330,21-Jul-16,1001528,"9,200.00",CHATSWORTH CARE,SP0000831
WANDSWORTH COUNCIL,ASC,SOCIAL SERVICES,PRIVATE,Revenue,EXTERNAL RESIDENTIAL CARE,130245330,14-Jul-16,995625,"9,200.00",CHATSWORTH CARE,SP0000831
WANDSWORTH COUNCIL,ASC,SOCIAL SERVICES,PRIVATE,Revenue,EXTERNAL RESIDENTIAL CARE,130245330,14-Jul-16,995379,"8,051.14",FIRCROFT,SP0000840
WANDSWORTH COUNCIL,ASC,SOCIAL SERVICES,PRIVATE,Revenue,EXTERNAL RESIDENTIAL CARE,130245330,21-Jul-16,1001551,"3,472.09",ROYAL MENCAP SOCIETY,SP0000842
WANDSWORTH COUNCIL,ASC,SOCIAL SERVICES,PRIVATE,Revenue,EXTERNAL RESIDENTIAL CARE,130245330,07-Jul-16,989499,"4,213.68",ROYAL MENCAP SOCIETY,SP0000842
WANDSWORTH COUNCIL,ASC,SOCIAL SERVICES,PRIVATE,Revenue,EXTERNAL RESIDENTIAL CARE,130245330,07-Jul-16,989500,"5,856.68",ROYAL MENCAP SOCIETY,SP0000842
WANDSWORTH COUNCIL,ASC,SOCIAL SERVICES,PRIVATE,Revenue,EXTERNAL RESIDENTIAL CARE,130245330,29-Jul-16,1008242,"5,690.71",STALLCOMBE HOUSE,SP0000843
WANDSWORTH COUNCIL,ASC,SOCIAL SERVICES,PRIVATE,Revenue,EXTERNAL RESIDENTIAL CARE,130245330,07-Jul-16,989504,"5,507.15",STALLCOMBE HOUSE,SP0000843
WANDSWORTH COUNCIL,ASC,SOCIAL SERVICES,PRIVATE,Revenue,EXTERNAL RESIDENTIAL CARE,130245330,21-Jul-16,1001542,"3,498.66",EAST VIEW HOUSING MANAGEMENT LTD,SP0000845
WANDSWORTH COUNCIL,ASC,SOCIAL SERVICES,PRIVATE,Revenue,EXTERNAL RESIDENTIAL CARE,130245330,13-Jul-16,994404,"1,467.18",EAST VIEW HOUSING MANAGEMENT LTD,SP0000845
WANDSWORTH COUNCIL,ASC,SOCIAL SERVICES,PRIVATE,Revenue,EXTERNAL RESIDENTIAL CARE,130245330,13-Jul-16,994405,"3,385.80",EAST VIEW HOUSING MANAGEMENT LTD,SP0000845
WANDSWORTH COUNCIL,ASC,SOCIAL SERVICES,PRIVATE,Revenue,EXTERNAL RESIDENTIAL CARE,130245330,13-Jul-16,994406,"3,498.66",EAST VIEW HOUSING MANAGEMENT LTD,SP0000845
WANDSWORTH COUNCIL,ASC,SOCIAL SERVICES,PRIVATE,Revenue,EXTERNAL RESIDENTIAL CARE,130245330,13-Jul-16,994407,"3,385.80",EAST VIEW HOUSING MANAGEMENT LTD,SP0000845
WANDSWORTH COUNCIL,ASC,SOCIAL SERVICES,PRIVATE,Revenue,EXTERNAL RESIDENTIAL CARE,130245330,21-Jul-16,1001509,"2,636.68",SCOPE,SP0000852
WANDSWORTH COUNCIL,ASC,SOCIAL SERVICES,PRIVATE,Revenue,EXTERNAL RESIDENTIAL CARE,130245330,21-Jul-16,1001510,"2,810.68",SCOPE,SP0000852
WANDSWORTH COUNCIL,ASC,SOCIAL SERVICES,PRIVATE,Revenue,EXTERNAL RESIDENTIAL CARE,130245330,15-Jul-16,996606,"2,720.00",SCOPE,SP0000852
WANDSWORTH COUNCIL,ASC,SOCIAL SERVICES,PRIVATE,Revenue,EXTERNAL RESIDENTIAL CARE,130245330,21-Jul-16,1001555,"11,597.31",ASHCROFT CARE SERVICES,SP0000872
WANDSWORTH COUNCIL,ASC,SOCIAL SERVICES,PRIVATE,Revenue,EXTERNAL RESIDENTIAL CARE,130245330,22-Jul-16,1002707,"4,359.00",229 MITCHAM LANE LTD,SP0000884
WANDSWORTH COUNCIL,ASC,SOCIAL SERVICES,PRIVATE,Revenue,EXTERNAL RESIDENTIAL CARE,130245330,22-Jul-16,1002708,"5,102.83",229 MITCHAM LANE LTD,SP0000884
WANDSWORTH COUNCIL,ASC,SOCIAL SERVICES,PRIVATE,Revenue,EXTERNAL RESIDENTIAL CARE,130245330,22-Jul-16,1002709,"5,400.08",229 MITCHAM LANE LTD,SP0000884
WANDSWORTH COUNCIL,ASC,SOCIAL SERVICES,PRIVATE,Revenue,EXTERNAL RESIDENTIAL CARE,130245330,22-Jul-16,1002710,"5,102.83",229 MITCHAM LANE LTD,SP0000884
WANDSWORTH COUNCIL,ASC,SOCIAL SERVICES,PRIVATE,Revenue,EXTERNAL RESIDENTIAL CARE,130245330,22-Jul-16,1002711,"4,504.30",229 MITCHAM LANE LTD,SP0000884
WANDSWORTH COUNCIL,ASC,SOCIAL SERVICES,PRIVATE,Revenue,EXTERNAL RESIDENTIAL CARE,130245330,22-Jul-16,1002712,"5,272.92",229 MITCHAM LANE LTD,SP0000884
WANDSWORTH COUNCIL,ASC,SOCIAL SERVICES,PRIVATE,Revenue,EXTERNAL RESIDENTIAL CARE,130245330,22-Jul-16,1002713,"5,580.09",229 MITCHAM LANE LTD,SP0000884
WANDSWORTH COUNCIL,ASC,SOCIAL SERVICES,PRIVATE,Revenue,EXTERNAL RESIDENTIAL CARE,130245330,22-Jul-16,1002714,"5,272.92",229 MITCHAM LANE LTD,SP0000884
WANDSWORTH COUNCIL,ASC,SOCIAL SERVICES,PRIVATE,Revenue,EXTERNAL RESIDENTIAL CARE,130245330,14-Jul-16,995381,"3,957.32",THE LEO TRUST,SP0000908
WANDSWORTH COUNCIL,ASC,SOCIAL SERVICES,PRIVATE,Revenue,EXTERNAL RESIDENTIAL CARE,130245330,21-Jul-16,1001407,"5,414.64",TRACS,SP0000914
WANDSWORTH COUNCIL,ASC,SOCIAL SERVICES,PRIVATE,Revenue,EXTERNAL RESIDENTIAL CARE,130245330,12-Jul-16,993664,"7,271.56",CORICH COMMUNITY CARE LTD,SP0000915
WANDSWORTH COUNCIL,ASC,SOCIAL SERVICES,PRIVATE,Revenue,EXTERNAL RESIDENTIAL CARE,130245330,21-Jul-16,1001549,"8,515.42",PROGRESS HOUSING MARLOW,SP0000952
WANDSWORTH COUNCIL,ASC,SOCIAL SERVICES,PRIVATE,Revenue,EXTERNAL RESIDENTIAL CARE,130245330,21-Jul-16,1001458,"4,029.78",DOWNING (CHERTSEY ROAD) LTD,SP0000959
WANDSWORTH COUNCIL,ASC,SOCIAL SERVICES,PRIVATE,Revenue,EXTERNAL RESIDENTIAL CARE,130245330,28-Jul-16,1006388,"3,736.44",RIDGEWOOD CARE SERVICES LTD,SP0000969
WANDSWORTH COUNCIL,ASC,SOCIAL SERVICES,PRIVATE,Revenue,EXTERNAL RESIDENTIAL CARE,130245330,28-Jul-16,1006389,"3,557.60",RIDGEWOOD CARE SERVICES LTD,SP0000969
WANDSWORTH COUNCIL,ASC,SOCIAL SERVICES,PRIVATE,Revenue,EXTERNAL RESIDENTIAL CARE,130245330,01-Jul-16,985090,"2,819.36",RIDGEWOOD CARE SERVICES LTD,SP0000969
WANDSWORTH COUNCIL,ASC,SOCIAL SERVICES,PRIVATE,Revenue,EXTERNAL RESIDENTIAL CARE,130245330,01-Jul-16,985091,936.00,RIDGEWOOD CARE SERVICES LTD,SP0000969
WANDSWORTH COUNCIL,ASC,SOCIAL SERVICES,PRIVATE,Revenue,EXTERNAL RESIDENTIAL CARE,130245330,01-Jul-16,985092,"3,557.60",RIDGEWOOD CARE SERVICES LTD,SP0000969
WANDSWORTH COUNCIL,ASC,SOCIAL SERVICES,PRIVATE,Revenue,EXTERNAL RESIDENTIAL CARE,130245330,01-Jul-16,985093,"6,521.80",RIDGEWOOD CARE SERVICES LTD,SP0000969
WANDSWORTH COUNCIL,ASC,SOCIAL SERVICES,PRIVATE,Revenue,EXTERNAL RESIDENTIAL CARE,130245330,01-Jul-16,985094,"2,836.44",RIDGEWOOD CARE SERVICES LTD,SP0000969
WANDSWORTH COUNCIL,ASC,SOCIAL SERVICES,PRIVATE,Revenue,EXTERNAL RESIDENTIAL CARE,130245330,01-Jul-16,985095,948.20,RIDGEWOOD CARE SERVICES LTD,SP0000969
WANDSWORTH COUNCIL,ASC,SOCIAL SERVICES,PRIVATE,Revenue,EXTERNAL RESIDENTIAL CARE,130245330,14-Jul-16,995388,"6,522.60",RIDGEWOOD CARE SERVICES LTD,SP0000969
WANDSWORTH COUNCIL,ASC,SOCIAL SERVICES,PRIVATE,Revenue,EXTERNAL RESIDENTIAL CARE,130245330,25-Jul-16,1003999,"4,236.34",LEONARD CHESHIRE,SP0000976
WANDSWORTH COUNCIL,ASC,SOCIAL SERVICES,PRIVATE,Revenue,EXTERNAL RESIDENTIAL CARE,130245330,25-Jul-16,1004000,"6,196.41",LEONARD CHESHIRE,SP0000976
WANDSWORTH COUNCIL,ASC,SOCIAL SERVICES,PRIVATE,Revenue,EXTERNAL RESIDENTIAL CARE,130245330,25-Jul-16,1004001,"4,550.91",LEONARD CHESHIRE,SP0000976
WANDSWORTH COUNCIL,ASC,SOCIAL SERVICES,PRIVATE,Revenue,EXTERNAL RESIDENTIAL CARE,130245330,28-Jul-16,1006419,"4,613.60",LOTUS CARE HOME LTD,SP0001006
WANDSWORTH COUNCIL,ASC,SOCIAL SERVICES,PRIVATE,Revenue,EXTERNAL RESIDENTIAL CARE,130245330,18-Jul-16,998397,"6,406.40",LIVING AMBITIONS LIMITED,SP0001039
WANDSWORTH COUNCIL,ASC,SOCIAL SERVICES,PRIVATE,Revenue,EXTERNAL RESIDENTIAL CARE,130245330,22-Jul-16,1002704,"3,734.16",THE HOME FARM TRUST LTD,SP0001048
WANDSWORTH COUNCIL,ASC,SOCIAL SERVICES,PRIVATE,Revenue,EXTERNAL RESIDENTIAL CARE,130245330,22-Jul-16,1002705,"3,734.16",THE HOME FARM TRUST LTD,SP0001048
WANDSWORTH COUNCIL,ASC,SOCIAL SERVICES,PRIVATE,Revenue,EXTERNAL RESIDENTIAL CARE,130245330,26-Jul-16,1004359,"2,759.88",THE HOME FARM TRUST LTD,SP0001048
WANDSWORTH COUNCIL,ASC,SOCIAL SERVICES,PRIVATE,Revenue,EXTERNAL RESIDENTIAL CARE,130245330,26-Jul-16,1004360,"2,323.00",THE HOME FARM TRUST LTD,SP0001048
WANDSWORTH COUNCIL,ASC,SOCIAL SERVICES,PRIVATE,Revenue,EXTERNAL RESIDENTIAL CARE,130245330,26-Jul-16,1004361,"2,475.00",THE HOME FARM TRUST LTD,SP0001048
WANDSWORTH COUNCIL,ASC,SOCIAL SERVICES,PRIVATE,Revenue,EXTERNAL RESIDENTIAL CARE,130245330,26-Jul-16,1004362,"2,339.28",THE HOME FARM TRUST LTD,SP0001048
WANDSWORTH COUNCIL,ASC,SOCIAL SERVICES,PRIVATE,Revenue,EXTERNAL RESIDENTIAL CARE,130245330,26-Jul-16,1004363,"2,491.76",THE HOME FARM TRUST LTD,SP0001048
WANDSWORTH COUNCIL,ASC,SOCIAL SERVICES,PRIVATE,Revenue,EXTERNAL RESIDENTIAL CARE,130245330,28-Jul-16,1006414,"3,212.40",THE HOME FARM TRUST LTD,SP0001048
WANDSWORTH COUNCIL,ASC,SOCIAL SERVICES,PRIVATE,Revenue,EXTERNAL RESIDENTIAL CARE,130245330,15-Jul-16,996634,"2,740.39",THE HOME FARM TRUST LTD,SP0001048
WANDSWORTH COUNCIL,ASC,SOCIAL SERVICES,PRIVATE,Revenue,EXTERNAL RESIDENTIAL CARE,130245330,15-Jul-16,996635,"2,323.00",THE HOME FARM TRUST LTD,SP0001048
WANDSWORTH COUNCIL,ASC,SOCIAL SERVICES,PRIVATE,Revenue,EXTERNAL RESIDENTIAL CARE,130245330,15-Jul-16,996636,"2,448.16",THE HOME FARM TRUST LTD,SP0001048
WANDSWORTH COUNCIL,ASC,SOCIAL SERVICES,PRIVATE,Revenue,EXTERNAL RESIDENTIAL CARE,130245330,21-Jul-16,1001421,"4,362.85",ALLIED CARE (MHS) LTD,SP0001069
WANDSWORTH COUNCIL,ASC,SOCIAL SERVICES,PRIVATE,Revenue,EXTERNAL RESIDENTIAL CARE,130245330,21-Jul-16,1001459,"5,100.43",ALLIED CARE (MHS) LTD,SP0001069
WANDSWORTH COUNCIL,ASC,SOCIAL SERVICES,PRIVATE,Revenue,EXTERNAL RESIDENTIAL CARE,130245330,21-Jul-16,1001679,"7,104.27",ALLIED CARE (MHS) LTD,SP0001069
WANDSWORTH COUNCIL,ASC,SOCIAL SERVICES,PRIVATE,Revenue,EXTERNAL RESIDENTIAL CARE,130245330,04-Jul-16,986203,"4,419.27",ALLIED CARE (MHS) LTD,SP0001069
WANDSWORTH COUNCIL,ASC,SOCIAL SERVICES,PRIVATE,Revenue,EXTERNAL RESIDENTIAL CARE,130245330,04-Jul-16,986204,"4,723.08",ALLIED CARE (MHS) LTD,SP0001069
WANDSWORTH COUNCIL,ASC,SOCIAL SERVICES,PRIVATE,Revenue,EXTERNAL RESIDENTIAL CARE,130245330,04-Jul-16,986206,"5,100.43",ALLIED CARE (MHS) LTD,SP0001069
WANDSWORTH COUNCIL,ASC,SOCIAL SERVICES,PRIVATE,Revenue,EXTERNAL RESIDENTIAL CARE,130245330,08-Jul-16,991277,"4,723.08",ALLIED CARE (MHS) LTD,SP0001069
WANDSWORTH COUNCIL,ASC,SOCIAL SERVICES,PRIVATE,Revenue,EXTERNAL RESIDENTIAL CARE,130245330,08-Jul-16,991278,"4,723.08",ALLIED CARE (MHS) LTD,SP0001069
WANDSWORTH COUNCIL,ASC,SOCIAL SERVICES,PRIVATE,Revenue,EXTERNAL RESIDENTIAL CARE,130245330,08-Jul-16,991279,"4,935.90",ALLIED CARE (MHS) LTD,SP0001069
WANDSWORTH COUNCIL,ASC,SOCIAL SERVICES,PRIVATE,Revenue,EXTERNAL RESIDENTIAL CARE,130245330,25-Jul-16,1004003,"2,339.57",SAXON COURT,SP0001100
WANDSWORTH COUNCIL,ASC,SOCIAL SERVICES,PRIVATE,Revenue,EXTERNAL RESIDENTIAL CARE,130245330,15-Jul-16,996291,"9,309.45",TOTTERDOWN,SP0001113
WANDSWORTH COUNCIL,ASC,SOCIAL SERVICES,PRIVATE,Revenue,EXTERNAL RESIDENTIAL CARE,130245330,15-Jul-16,996292,"4,621.15",TOTTERDOWN,SP0001113
WANDSWORTH COUNCIL,ASC,SOCIAL SERVICES,PRIVATE,Revenue,EXTERNAL RESIDENTIAL CARE,130245330,27-Jul-16,1005547,"6,955.59",LONDON CARE PARTNERSHIP LTD,SP0001138
WANDSWORTH COUNCIL,ASC,SOCIAL SERVICES,PRIVATE,Revenue,EXTERNAL RESIDENTIAL CARE,130245330,27-Jul-16,1005548,"8,865.38",LONDON CARE PARTNERSHIP LTD,SP0001138
WANDSWORTH COUNCIL,ASC,SOCIAL SERVICES,PRIVATE,Revenue,EXTERNAL RESIDENTIAL CARE,130245330,27-Jul-16,1005549,"8,148.68",LONDON CARE PARTNERSHIP LTD,SP0001138
WANDSWORTH COUNCIL,ASC,SOCIAL SERVICES,PRIVATE,Revenue,EXTERNAL RESIDENTIAL CARE,130245330,27-Jul-16,1005550,"8,297.11",LONDON CARE PARTNERSHIP LTD,SP0001138
WANDSWORTH COUNCIL,ASC,SOCIAL SERVICES,PRIVATE,Revenue,EXTERNAL RESIDENTIAL CARE,130245330,27-Jul-16,1005551,"8,297.10",LONDON CARE PARTNERSHIP LTD,SP0001138
WANDSWORTH COUNCIL,ASC,SOCIAL SERVICES,PRIVATE,Revenue,EXTERNAL RESIDENTIAL CARE,130245330,27-Jul-16,1005552,"8,511.38",LONDON CARE PARTNERSHIP LTD,SP0001138
WANDSWORTH COUNCIL,ASC,SOCIAL SERVICES,PRIVATE,Revenue,EXTERNAL RESIDENTIAL CARE,130245330,27-Jul-16,1005553,"9,175.67",LONDON CARE PARTNERSHIP LTD,SP0001138
WANDSWORTH COUNCIL,ASC,SOCIAL SERVICES,PRIVATE,Revenue,EXTERNAL RESIDENTIAL CARE,130245330,28-Jul-16,1006420,"4,400.00",ACTION ON HEARING LOSS,SP0001359
WANDSWORTH COUNCIL,ASC,SOCIAL SERVICES,PRIVATE,Revenue,EXTERNAL RESIDENTIAL CARE,130245330,28-Jul-16,1006421,"4,400.00",ACTION ON HEARING LOSS,SP0001359
WANDSWORTH COUNCIL,ASC,SOCIAL SERVICES,PRIVATE,Revenue,EXTERNAL RESIDENTIAL CARE,130245330,28-Jul-16,1006422,"4,400.00",ACTION ON HEARING LOSS,SP0001359
WANDSWORTH COUNCIL,ASC,SOCIAL SERVICES,PRIVATE,Revenue,EXTERNAL RESIDENTIAL CARE,130245330,28-Jul-16,1006423,"4,400.00",ACTION ON HEARING LOSS,SP0001359
WANDSWORTH COUNCIL,ASC,SOCIAL SERVICES,PRIVATE,Revenue,EXTERNAL RESIDENTIAL CARE,130245330,22-Jul-16,1002706,"5,002.24",LARKFIELD HALL LTD T/A PEPENBURY,SP0001378
WANDSWORTH COUNCIL,ASC,SOCIAL SERVICES,PRIVATE,Revenue,EXTERNAL RESIDENTIAL CARE,130245330,26-Jul-16,1004358,"7,603.86",MIGHOUSE RESIDENTIAL CARE HOME LTD,SP0001402
WANDSWORTH COUNCIL,ASC,SOCIAL SERVICES,PRIVATE,Revenue,EXTERNAL RESIDENTIAL CARE,130245330,07-Jul-16,990219,"9,849.13",THE WEST OF ENGLAND SCHOOL & COLLEGE,SP0001486
WANDSWORTH COUNCIL,ASC,SOCIAL SERVICES,PRIVATE,Revenue,EXTERNAL RESIDENTIAL CARE,130245330,07-Jul-16,990220,"8,400.13",THE WEST OF ENGLAND SCHOOL & COLLEGE,SP0001486
WANDSWORTH COUNCIL,ASC,SOCIAL SERVICES,PRIVATE,Revenue,EXTERNAL RESIDENTIAL CARE,130245330,18-Jul-16,998403,"8,784.65",ROOKERY HOVE PRIORY,SP0001498
WANDSWORTH COUNCIL,ASC,SOCIAL SERVICES,PRIVATE,Revenue,EXTERNAL RESIDENTIAL CARE,130245330,07-Jul-16,990226,"7,523.88",MCCH SOCIETY LIMITED,SP0001531
WANDSWORTH COUNCIL,ASC,SOCIAL SERVICES,PRIVATE,Revenue,EXTERNAL RESIDENTIAL CARE,130245330,07-Jul-16,990227,"7,523.88",MCCH SOCIETY LIMITED,SP0001531
WANDSWORTH COUNCIL,ASC,SOCIAL SERVICES,PRIVATE,Revenue,EXTERNAL RESIDENTIAL CARE,130245330,07-Jul-16,990228,"7,523.88",MCCH SOCIETY LIMITED,SP0001531
WANDSWORTH COUNCIL,ASC,SOCIAL SERVICES,PRIVATE,Revenue,EXTERNAL RESIDENTIAL CARE,130245330,07-Jul-16,990229,"7,539.88",MCCH SOCIETY LIMITED,SP0001531
WANDSWORTH COUNCIL,ASC,SOCIAL SERVICES,PRIVATE,Revenue,EXTERNAL RESIDENTIAL CARE,130245330,18-Jul-16,998381,"4,242.00",NUTLEY HALL LTD,SP0001581
WANDSWORTH COUNCIL,ASC,SOCIAL SERVICES,PRIVATE,Revenue,EXTERNAL RESIDENTIAL CARE,130245330,18-Jul-16,998382,"4,383.32",NUTLEY HALL LTD,SP0001581
WANDSWORTH COUNCIL,ASC,SOCIAL SERVICES,PRIVATE,Revenue,EXTERNAL RESIDENTIAL CARE,130245330,18-Jul-16,998383,"4,242.00",NUTLEY HALL LTD,SP0001581
WANDSWORTH COUNCIL,ASC,SOCIAL SERVICES,PRIVATE,Revenue,EXTERNAL RESIDENTIAL CARE,130245330,18-Jul-16,998384,"4,383.32",NUTLEY HALL LTD,SP0001581
WANDSWORTH COUNCIL,ASC,SOCIAL SERVICES,PRIVATE,Revenue,EXTERNAL RESIDENTIAL CARE,130245330,07-Jul-16,990181,"3,523.28",CRAEGMOOR OLD RECTORY BREDE PRIORY,SP0001621
WANDSWORTH COUNCIL,ASC,SOCIAL SERVICES,PRIVATE,Revenue,EXTERNAL RESIDENTIAL CARE,130245330,21-Jul-16,1001541,"8,192.86",CONDOVER COLLEGE LTD,SP0001641
WANDSWORTH COUNCIL,ASC,SOCIAL SERVICES,PRIVATE,Revenue,EXTERNAL RESIDENTIAL CARE,130245330,29-Jul-16,1008228,"8,192.86",CONDOVER COLLEGE LTD,SP0001641
WANDSWORTH COUNCIL,ASC,SOCIAL SERVICES,PRIVATE,Revenue,EXTERNAL RESIDENTIAL CARE,130245330,15-Jul-16,996633,"8,192.86",CONDOVER COLLEGE LTD,SP0001641
WANDSWORTH COUNCIL,ASC,SOCIAL SERVICES,PRIVATE,Revenue,EXTERNAL RESIDENTIAL CARE,130245330,21-Jul-16,1001513,"13,090.46",ACH OF LONDON LLP,SP0001688
WANDSWORTH COUNCIL,ASC,SOCIAL SERVICES,PRIVATE,Revenue,EXTERNAL RESIDENTIAL CARE,130245330,25-Jul-16,1004004,"5,030.15",ACH OF LONDON LLP,SP0001688
WANDSWORTH COUNCIL,ASC,SOCIAL SERVICES,PRIVATE,Revenue,EXTERNAL RESIDENTIAL CARE,130245330,25-Jul-16,1004005,"5,197.81",ACH OF LONDON LLP,SP0001688
WANDSWORTH COUNCIL,ASC,SOCIAL SERVICES,PRIVATE,Revenue,EXTERNAL RESIDENTIAL CARE,130245330,12-Jul-16,993653,"9,889.80",SALISBURY SUPPORT 4 AUTISM LTD,SP0001691
WANDSWORTH COUNCIL,ASC,SOCIAL SERVICES,PRIVATE,Revenue,EXTERNAL RESIDENTIAL CARE,130245330,21-Jul-16,1001460,"7,616.83",PATHWAY HEALTHCARE,SP0001779
WANDSWORTH COUNCIL,ASC,SOCIAL SERVICES,PRIVATE,Revenue,EXTERNAL RESIDENTIAL CARE,130245330,21-Jul-16,1001461,"7,184.16",PATHWAY HEALTHCARE,SP0001779
WANDSWORTH COUNCIL,ASC,SOCIAL SERVICES,PRIVATE,Revenue,EXTERNAL RESIDENTIAL CARE,130245330,07-Jul-16,989506,"11,134.88",KISIMUL GROUP LTD,SP0002487
WANDSWORTH COUNCIL,ASC,SOCIAL SERVICES,PRIVATE,Revenue,EXTERNAL RESIDENTIAL CARE,130245330,07-Jul-16,989507,"11,145.94",KISIMUL GROUP LTD,SP0002487
WANDSWORTH COUNCIL,ASC,SOCIAL SERVICES,PRIVATE,Revenue,EXTERNAL RESIDENTIAL CARE,130245330,21-Jul-16,1001426,"6,408.96",THE BRANDON TRUST,SP0005337
WANDSWORTH COUNCIL,ASC,SOCIAL SERVICES,PRIVATE,Revenue,EXTERNAL RESIDENTIAL CARE,130245330,25-Jul-16,1003992,"3,631.96",CARE UNLIMITED DOMCARE LIMITED,SP0005359
WANDSWORTH COUNCIL,ASC,SOCIAL SERVICES,PRIVATE,Revenue,EXTERNAL RESIDENTIAL CARE,130245330,14-Jul-16,995636,"2,774.84",HASTINGS & BEXHILL MENCAP SOCIETY,SP0005380
WANDSWORTH COUNCIL,ASC,SOCIAL SERVICES,PRIVATE,Revenue,EXTERNAL RESIDENTIAL CARE,130245330,28-Jul-16,1006411,"3,580.86",CSS LTD T/A  THF CARE ESTATES LTD,SP0005682
WANDSWORTH COUNCIL,ASC,SOCIAL SERVICES,PRIVATE,Revenue,EXTERNAL RESIDENTIAL CARE,130245330,14-Jul-16,995631,"3,469.00",CSS LTD T/A  THF CARE ESTATES LTD,SP0005682
WANDSWORTH COUNCIL,ASC,SOCIAL SERVICES,PRIVATE,Revenue,EXTERNAL RESIDENTIAL CARE,130245330,14-Jul-16,995632,"3,469.00",CSS LTD T/A  THF CARE ESTATES LTD,SP0005682
WANDSWORTH COUNCIL,ASC,SOCIAL SERVICES,PRIVATE,Revenue,EXTERNAL RESIDENTIAL CARE,130245330,14-Jul-16,995633,"3,469.00",CSS LTD T/A  THF CARE ESTATES LTD,SP0005682
WANDSWORTH COUNCIL,ASC,SOCIAL SERVICES,PRIVATE,Revenue,EXTERNAL RESIDENTIAL CARE,130245330,21-Jul-16,1001425,"5,980.80",ENHAM,SP0005845
WANDSWORTH COUNCIL,ASC,SOCIAL SERVICES,PRIVATE,Revenue,EXTERNAL RESIDENTIAL CARE,130245330,21-Jul-16,1001512,"10,566.57",SEQUENCE CARE GROUP,SP0009709
WANDSWORTH COUNCIL,ASC,SOCIAL SERVICES,PRIVATE,Revenue,EXTERNAL RESIDENTIAL CARE,130245330,21-Jul-16,1001419,"4,598.80",ALLIED CARE LTD T/A ASHSTEAD HOUSE LTD,SP0009950
WANDSWORTH COUNCIL,ASC,SOCIAL SERVICES,PRIVATE,Revenue,EXTERNAL RESIDENTIAL CARE,130245330,26-Jul-16,1004347,"3,137.36",INSPIRE CARE OUTREACH LIMITED,SP0010404
WANDSWORTH COUNCIL,ASC,SOCIAL SERVICES,PRIVATE,Revenue,EXTERNAL RESIDENTIAL CARE,130245330,12-Jul-16,993662,"7,471.92",C.H.O.I.C.E LIMITED,SP0010438
WANDSWORTH COUNCIL,ASC,SOCIAL SERVICES,PRIVATE,Revenue,EXTERNAL RESIDENTIAL CARE,130245330,07-Jul-16,990180,"9,861.00","CRAEGMOOR, PARKCARE HOMES (NO2) LTD TA W",SP0010529
WANDSWORTH COUNCIL,ASC,,PRIVATE,Revenue,EXTERNAL RESI RESPITE CARE,130245340,20-Jul-16,1000003,"7,440.08",SOUTHSIDE PARTNERSHIP,SP0000692
WANDSWORTH COUNCIL,ASC,,PRIVATE,Revenue,EXTERNAL RESI RESPITE CARE,130245340,20-Jul-16,1000004,"4,409.45",SOUTHSIDE PARTNERSHIP,SP0000692
WANDSWORTH COUNCIL,ASC,,PRIVATE,Revenue,EXTERNAL RESI RESPITE CARE,130245340,20-Jul-16,999929,"4,690.90",SOUTHSIDE PARTNERSHIP,SP0000692
WANDSWORTH COUNCIL,ASC,,PRIVATE,Revenue,EXTERNAL RESI RESPITE CARE,130245340,21-Jul-16,999940,"38,875.58",SOUTHSIDE PARTNERSHIP,SP0000692
WANDSWORTH COUNCIL,ASC,SOCIAL SERVICES,PRIVATE,Revenue,EXTERNAL RESI RESPITE CARE,130245340,19-Jul-16,999819,"2,051.64",SEASHELL TRUST,SP0005836
WANDSWORTH COUNCIL,ASC,SOCIAL SERVICES,PRIVATE,Revenue,EXTERNAL RESI RESPITE CARE,130245340,19-Jul-16,999820,"1,709.70",SEASHELL TRUST,SP0005836
WANDSWORTH COUNCIL,ASC,SOCIAL SERVICES,PRIVATE,Revenue,ONE TO ONE CARE,130246220,29-Jul-16,1008319,533.40,RAINBOW MEDICAL SERVICES,SP0000037
WANDSWORTH COUNCIL,ASC,SOCIAL SERVICES,PRIVATE,Revenue,ONE TO ONE CARE,130246220,29-Jul-16,1008325,533.40,RAINBOW MEDICAL SERVICES,SP0000037
WANDSWORTH COUNCIL,ASC,SOCIAL SERVICES,PRIVATE,Revenue,ONE TO ONE CARE,130246220,29-Jul-16,1008332,533.40,RAINBOW MEDICAL SERVICES,SP0000037
WANDSWORTH COUNCIL,ASC,SOCIAL SERVICES,PRIVATE,Revenue,ONE TO ONE CARE,130246220,07-Jul-16,990353,"2,206.75",RAINBOW MEDICAL SERVICES,SP0000037
WANDSWORTH COUNCIL,ASC,SOCIAL SERVICES,PRIVATE,Revenue,ONE TO ONE CARE,130246220,07-Jul-16,990355,"1,438.21",RAINBOW MEDICAL SERVICES,SP0000037
WANDSWORTH COUNCIL,ASC,SOCIAL SERVICES,PRIVATE,Revenue,ONE TO ONE CARE,130246220,04-Jul-16,986374,"1,619.00",ASIAN ELDERS SUPPORT SCHEME,SP0000190
WANDSWORTH COUNCIL,ASC,SOCIAL SERVICES,PRIVATE,Revenue,ONE TO ONE CARE,130246220,21-Jul-16,1001661,698.12,ST MARYS RESIDENTIAL HOME,SP0000215
WANDSWORTH COUNCIL,ASC,SOCIAL SERVICES,PRIVATE,Revenue,ONE TO ONE CARE,130246220,21-Jul-16,1001662,653.39,ST MARYS RESIDENTIAL HOME,SP0000215
WANDSWORTH COUNCIL,ASC,SOCIAL SERVICES,PRIVATE,Revenue,ONE TO ONE CARE,130246220,14-Jul-16,995691,675.60,ST MARYS RESIDENTIAL HOME,SP0000215
WANDSWORTH COUNCIL,ASC,SOCIAL SERVICES,PRIVATE,Revenue,ONE TO ONE CARE,130246220,14-Jul-16,995692,632.31,ST MARYS RESIDENTIAL HOME,SP0000215
WANDSWORTH COUNCIL,ASC,SOCIAL SERVICES,PRIVATE,Revenue,ONE TO ONE CARE,130246220,21-Jul-16,1001417,"1,963.85",RESIDENTIAL COMMUNITY CARE,SP0000315
WANDSWORTH COUNCIL,ASC,SOCIAL SERVICES,PRIVATE,Revenue,ONE TO ONE CARE,130246220,19-Jul-16,999862,547.60,LIFEWAYS COMMUNITY CARE LTD,SP0000364
WANDSWORTH COUNCIL,ASC,SOCIAL SERVICES,PRIVATE,Revenue,ONE TO ONE CARE,130246220,06-Jul-16,988554,"1,364.04",MACINTYRE CARE,SP0000473
WANDSWORTH COUNCIL,ASC,SOCIAL SERVICES,PRIVATE,Revenue,ONE TO ONE CARE,130246220,06-Jul-16,988555,"1,364.04",MACINTYRE CARE,SP0000473
WANDSWORTH COUNCIL,ASC,SOCIAL SERVICES,PRIVATE,Revenue,ONE TO ONE CARE,130246220,06-Jul-16,988556,"1,928.52",MACINTYRE CARE,SP0000473
WANDSWORTH COUNCIL,ASC,SOCIAL SERVICES,PRIVATE,Revenue,ONE TO ONE CARE,130246220,06-Jul-16,988557,"1,364.04",MACINTYRE CARE,SP0000473
WANDSWORTH COUNCIL,ASC,SOCIAL SERVICES,PRIVATE,Revenue,ONE TO ONE CARE,130246220,06-Jul-16,988558,701.52,MACINTYRE CARE,SP0000473
WANDSWORTH COUNCIL,ASC,SOCIAL SERVICES,PRIVATE,Revenue,ONE TO ONE CARE,130246220,21-Jul-16,1001656,"1,172.55",THE COMMUNITY CARE COMPANY UK LTD,SP0000576
WANDSWORTH COUNCIL,ASC,SOCIAL SERVICES,PRIVATE,Revenue,ONE TO ONE CARE,130246220,21-Jul-16,1001657,"1,337.25",THE COMMUNITY CARE COMPANY UK LTD,SP0000576
WANDSWORTH COUNCIL,ASC,SOCIAL SERVICES,PRIVATE,Revenue,ONE TO ONE CARE,130246220,22-Jul-16,1002906,"2,577.12",METROPOLITAN HOUSING TRUST,SP0000626
WANDSWORTH COUNCIL,ASC,SOCIAL SERVICES,PRIVATE,Revenue,ONE TO ONE CARE,130246220,22-Jul-16,1002909,"1,925.76",METROPOLITAN HOUSING TRUST,SP0000626
WANDSWORTH COUNCIL,ASC,SOCIAL SERVICES,PRIVATE,Revenue,ONE TO ONE CARE,130246220,22-Jul-16,1002911,"1,844.64",METROPOLITAN HOUSING TRUST,SP0000626
WANDSWORTH COUNCIL,ASC,SOCIAL SERVICES,PRIVATE,Revenue,ONE TO ONE CARE,130246220,29-Jul-16,1008316,"2,480.00",STALLCOMBE HOUSE,SP0000843
WANDSWORTH COUNCIL,ASC,SOCIAL SERVICES,PRIVATE,Revenue,ONE TO ONE CARE,130246220,07-Jul-16,989618,"2,400.00",STALLCOMBE HOUSE,SP0000843
WANDSWORTH COUNCIL,ASC,SOCIAL SERVICES,PRIVATE,Revenue,ONE TO ONE CARE,130246220,12-Jul-16,993665,"1,600.44",CORICH COMMUNITY CARE LTD,SP0000915
WANDSWORTH COUNCIL,ASC,SOCIAL SERVICES,PRIVATE,Revenue,ONE TO ONE CARE,130246220,18-Jul-16,998492,"1,364.00",HILL PARK AUTISTIC TRUST,SP0000926
WANDSWORTH COUNCIL,ASC,SOCIAL SERVICES,PRIVATE,Revenue,ONE TO ONE CARE,130246220,21-Jul-16,1001660,"2,884.77",DOWNING (CHERTSEY ROAD) LTD,SP0000959
WANDSWORTH COUNCIL,ASC,SOCIAL SERVICES,PRIVATE,Revenue,ONE TO ONE CARE,130246220,22-Jul-16,1002918,177.00,FRONTIER SUPPORT SERVICES LTD,SP0001132
WANDSWORTH COUNCIL,ASC,SOCIAL SERVICES,PRIVATE,Revenue,ONE TO ONE CARE,130246220,22-Jul-16,1002920,708.24,FRONTIER SUPPORT SERVICES LTD,SP0001132
WANDSWORTH COUNCIL,ASC,SOCIAL SERVICES,PRIVATE,Revenue,ONE TO ONE CARE,130246220,22-Jul-16,1002926,500.14,FRONTIER SUPPORT SERVICES LTD,SP0001132
WANDSWORTH COUNCIL,ASC,SOCIAL SERVICES,PRIVATE,Revenue,ONE TO ONE CARE,130246220,08-Jul-16,991419,842.82,HARROW MENCAP,SP0001347
WANDSWORTH COUNCIL,ASC,SOCIAL SERVICES,PRIVATE,Revenue,ONE TO ONE CARE,130246220,22-Jul-16,1002912,807.68,LARKFIELD HALL LTD T/A PEPENBURY,SP0001378
WANDSWORTH COUNCIL,ASC,SOCIAL SERVICES,PRIVATE,Revenue,ONE TO ONE CARE,130246220,07-Jul-16,990189,"3,000.00",CRAEGMOOR OLD RECTORY BREDE PRIORY,SP0001621
WANDSWORTH COUNCIL,ASC,SOCIAL SERVICES,PRIVATE,Revenue,ONE TO ONE CARE,130246220,25-Jul-16,1004070,"1,992.09",ACH OF LONDON LLP,SP0001688
WANDSWORTH COUNCIL,ASC,SOCIAL SERVICES,PRIVATE,Revenue,ONE TO ONE CARE,130246220,14-Jul-16,995395,324.00,THE BRANDON TRUST,SP0005337
WANDSWORTH COUNCIL,ASC,SOCIAL SERVICES,PRIVATE,Revenue,ONE TO ONE CARE,130246220,14-Jul-16,995418,"1,032.68",THE BRANDON TRUST,SP0005337
WANDSWORTH COUNCIL,ASC,SOCIAL SERVICES,PRIVATE,Revenue,ONE TO ONE CARE,130246220,14-Jul-16,995434,"1,987.20",THE BRANDON TRUST,SP0005337
WANDSWORTH COUNCIL,ASC,SOCIAL SERVICES,PRIVATE,Revenue,ONE TO ONE CARE,130246220,14-Jul-16,995435,"1,312.00",THE BRANDON TRUST,SP0005337
WANDSWORTH COUNCIL,ASC,SOCIAL SERVICES,PRIVATE,Revenue,ONE TO ONE CARE,130246220,14-Jul-16,995438,"2,450.88",THE BRANDON TRUST,SP0005337
WANDSWORTH COUNCIL,ASC,SOCIAL SERVICES,PRIVATE,Revenue,ONE TO ONE CARE,130246220,14-Jul-16,995482,600.04,THE BRANDON TRUST,SP0005337
WANDSWORTH COUNCIL,ASC,SOCIAL SERVICES,PRIVATE,Revenue,ONE TO ONE CARE,130246220,14-Jul-16,995491,331.20,THE BRANDON TRUST,SP0005337
WANDSWORTH COUNCIL,ASC,SOCIAL SERVICES,PRIVATE,Revenue,ONE TO ONE CARE,130246220,14-Jul-16,995493,331.20,THE BRANDON TRUST,SP0005337
WANDSWORTH COUNCIL,ASC,SOCIAL SERVICES,VOL ASS,Revenue,SUPPORTED HOUSING PROGRAMME,130248030,26-Jul-16,1004527,"6,982.52",RAINBOW MEDICAL SERVICES,SP0000037
WANDSWORTH COUNCIL,ASC,SOCIAL SERVICES,VOL ASS,Revenue,SUPPORTED HOUSING PROGRAMME,130248030,26-Jul-16,1004528,"12,165.48",RAINBOW MEDICAL SERVICES,SP0000037
WANDSWORTH COUNCIL,ASC,SOCIAL SERVICES,VOL ASS,Revenue,SUPPORTED HOUSING PROGRAMME,130248030,26-Jul-16,1004529,"11,347.63",RAINBOW MEDICAL SERVICES,SP0000037
WANDSWORTH COUNCIL,ASC,SOCIAL SERVICES,VOL ASS,Revenue,SUPPORTED HOUSING PROGRAMME,130248030,29-Jul-16,1008318,"2,991.40",RAINBOW MEDICAL SERVICES,SP0000037
WANDSWORTH COUNCIL,ASC,SOCIAL SERVICES,VOL ASS,Revenue,SUPPORTED HOUSING PROGRAMME,130248030,29-Jul-16,1008324,"2,991.40",RAINBOW MEDICAL SERVICES,SP0000037
WANDSWORTH COUNCIL,ASC,SOCIAL SERVICES,VOL ASS,Revenue,SUPPORTED HOUSING PROGRAMME,130248030,29-Jul-16,1008326,"2,991.40",RAINBOW MEDICAL SERVICES,SP0000037
WANDSWORTH COUNCIL,ASC,SOCIAL SERVICES,VOL ASS,Revenue,SUPPORTED HOUSING PROGRAMME,130248030,29-Jul-16,1008331,"2,999.02",RAINBOW MEDICAL SERVICES,SP0000037
WANDSWORTH COUNCIL,ASC,SOCIAL SERVICES,VOL ASS,Revenue,SUPPORTED HOUSING PROGRAMME,130248030,27-Jul-16,1005802,"5,543.72",NORWOOD SCHOOLS LTD,SP0000332
WANDSWORTH COUNCIL,ASC,SOCIAL SERVICES,VOL ASS,Revenue,SUPPORTED HOUSING PROGRAMME,130248030,27-Jul-16,1005803,"5,543.72",NORWOOD SCHOOLS LTD,SP0000332
WANDSWORTH COUNCIL,ASC,SOCIAL SERVICES,VOL ASS,Revenue,SUPPORTED HOUSING PROGRAMME,130248030,04-Jul-16,986376,"2,341.88",LIFEWAYS COMMUNITY CARE LTD,SP0000364
WANDSWORTH COUNCIL,ASC,SOCIAL SERVICES,VOL ASS,Revenue,SUPPORTED HOUSING PROGRAMME,130248030,04-Jul-16,986377,"2,341.88",LIFEWAYS COMMUNITY CARE LTD,SP0000364
WANDSWORTH COUNCIL,ASC,SOCIAL SERVICES,VOL ASS,Revenue,SUPPORTED HOUSING PROGRAMME,130248030,18-Jul-16,998489,"7,336.00",LIFEWAYS COMMUNITY CARE LTD,SP0000364
WANDSWORTH COUNCIL,ASC,SOCIAL SERVICES,VOL ASS,Revenue,SUPPORTED HOUSING PROGRAMME,130248030,19-Jul-16,999863,"3,885.44",LIFEWAYS COMMUNITY CARE LTD,SP0000364
WANDSWORTH COUNCIL,ASC,SOCIAL SERVICES,VOL ASS,Revenue,SUPPORTED HOUSING PROGRAMME,130248030,19-Jul-16,999864,"2,596.04",LIFEWAYS COMMUNITY CARE LTD,SP0000364
WANDSWORTH COUNCIL,ASC,SOCIAL SERVICES,VOL ASS,Revenue,SUPPORTED HOUSING PROGRAMME,130248030,19-Jul-16,999865,"2,166.24",LIFEWAYS COMMUNITY CARE LTD,SP0000364
WANDSWORTH COUNCIL,ASC,SOCIAL SERVICES,VOL ASS,Revenue,SUPPORTED HOUSING PROGRAMME,130248030,19-Jul-16,999866,"2,227.64",LIFEWAYS COMMUNITY CARE LTD,SP0000364
WANDSWORTH COUNCIL,ASC,SOCIAL SERVICES,VOL ASS,Revenue,SUPPORTED HOUSING PROGRAMME,130248030,19-Jul-16,999867,"1,982.04",LIFEWAYS COMMUNITY CARE LTD,SP0000364
WANDSWORTH COUNCIL,ASC,SOCIAL SERVICES,VOL ASS,Revenue,SUPPORTED HOUSING PROGRAMME,130248030,19-Jul-16,999869,"1,982.04",LIFEWAYS COMMUNITY CARE LTD,SP0000364
WANDSWORTH COUNCIL,ASC,SOCIAL SERVICES,VOL ASS,Revenue,SUPPORTED HOUSING PROGRAMME,130248030,19-Jul-16,999870,"2,411.84",LIFEWAYS COMMUNITY CARE LTD,SP0000364
WANDSWORTH COUNCIL,ASC,SOCIAL SERVICES,VOL ASS,Revenue,SUPPORTED HOUSING PROGRAMME,130248030,19-Jul-16,999871,"1,736.44",LIFEWAYS COMMUNITY CARE LTD,SP0000364
WANDSWORTH COUNCIL,ASC,SOCIAL SERVICES,VOL ASS,Revenue,SUPPORTED HOUSING PROGRAMME,130248030,19-Jul-16,999872,"1,920.64",LIFEWAYS COMMUNITY CARE LTD,SP0000364
WANDSWORTH COUNCIL,ASC,SOCIAL SERVICES,VOL ASS,Revenue,SUPPORTED HOUSING PROGRAMME,130248030,19-Jul-16,999873,"3,210.04",LIFEWAYS COMMUNITY CARE LTD,SP0000364
WANDSWORTH COUNCIL,ASC,SOCIAL SERVICES,VOL ASS,Revenue,SUPPORTED HOUSING PROGRAMME,130248030,19-Jul-16,999876,"2,394.20",LIFEWAYS COMMUNITY CARE LTD,SP0000364
WANDSWORTH COUNCIL,ASC,SOCIAL SERVICES,VOL ASS,Revenue,SUPPORTED HOUSING PROGRAMME,130248030,19-Jul-16,999877,"2,551.16",LIFEWAYS COMMUNITY CARE LTD,SP0000364
WANDSWORTH COUNCIL,ASC,SOCIAL SERVICES,VOL ASS,Revenue,SUPPORTED HOUSING PROGRAMME,130248030,19-Jul-16,999878,"3,335.96",LIFEWAYS COMMUNITY CARE LTD,SP0000364
WANDSWORTH COUNCIL,ASC,SOCIAL SERVICES,VOL ASS,Revenue,SUPPORTED HOUSING PROGRAMME,130248030,19-Jul-16,999879,"2,603.48",LIFEWAYS COMMUNITY CARE LTD,SP0000364
WANDSWORTH COUNCIL,ASC,SOCIAL SERVICES,VOL ASS,Revenue,SUPPORTED HOUSING PROGRAMME,130248030,19-Jul-16,999880,"2,969.72",LIFEWAYS COMMUNITY CARE LTD,SP0000364
WANDSWORTH COUNCIL,ASC,SOCIAL SERVICES,VOL ASS,Revenue,SUPPORTED HOUSING PROGRAMME,130248030,19-Jul-16,999881,"2,341.88",LIFEWAYS COMMUNITY CARE LTD,SP0000364
WANDSWORTH COUNCIL,ASC,SOCIAL SERVICES,VOL ASS,Revenue,SUPPORTED HOUSING PROGRAMME,130248030,19-Jul-16,999882,"2,551.16",LIFEWAYS COMMUNITY CARE LTD,SP0000364
WANDSWORTH COUNCIL,ASC,SOCIAL SERVICES,VOL ASS,Revenue,SUPPORTED HOUSING PROGRAMME,130248030,19-Jul-16,999883,"1,444.56",LIFEWAYS COMMUNITY CARE LTD,SP0000364
WANDSWORTH COUNCIL,ASC,SOCIAL SERVICES,VOL ASS,Revenue,SUPPORTED HOUSING PROGRAMME,130248030,19-Jul-16,999884,"2,025.24",LIFEWAYS COMMUNITY CARE LTD,SP0000364
WANDSWORTH COUNCIL,ASC,SOCIAL SERVICES,VOL ASS,Revenue,SUPPORTED HOUSING PROGRAMME,130248030,19-Jul-16,999885,"2,025.24",LIFEWAYS COMMUNITY CARE LTD,SP0000364
WANDSWORTH COUNCIL,ASC,SOCIAL SERVICES,VOL ASS,Revenue,SUPPORTED HOUSING PROGRAMME,130248030,19-Jul-16,999886,"2,025.24",LIFEWAYS COMMUNITY CARE LTD,SP0000364
WANDSWORTH COUNCIL,ASC,SOCIAL SERVICES,VOL ASS,Revenue,SUPPORTED HOUSING PROGRAMME,130248030,19-Jul-16,999887,"2,244.28",LIFEWAYS COMMUNITY CARE LTD,SP0000364
WANDSWORTH COUNCIL,ASC,SOCIAL SERVICES,VOL ASS,Revenue,SUPPORTED HOUSING PROGRAMME,130248030,19-Jul-16,999888,"2,518.08",LIFEWAYS COMMUNITY CARE LTD,SP0000364
WANDSWORTH COUNCIL,ASC,SOCIAL SERVICES,VOL ASS,Revenue,SUPPORTED HOUSING PROGRAMME,130248030,19-Jul-16,999889,"2,025.24",LIFEWAYS COMMUNITY CARE LTD,SP0000364
WANDSWORTH COUNCIL,ASC,SOCIAL SERVICES,VOL ASS,Revenue,SUPPORTED HOUSING PROGRAMME,130248030,19-Jul-16,999890,"2,244.28",LIFEWAYS COMMUNITY CARE LTD,SP0000364
WANDSWORTH COUNCIL,ASC,SOCIAL SERVICES,VOL ASS,Revenue,SUPPORTED HOUSING PROGRAMME,130248030,19-Jul-16,999891,"1,860.96",LIFEWAYS COMMUNITY CARE LTD,SP0000364
WANDSWORTH COUNCIL,ASC,SOCIAL SERVICES,VOL ASS,Revenue,SUPPORTED HOUSING PROGRAMME,130248030,19-Jul-16,999892,"2,345.32",LIFEWAYS COMMUNITY CARE LTD,SP0000364
WANDSWORTH COUNCIL,ASC,SOCIAL SERVICES,VOL ASS,Revenue,SUPPORTED HOUSING PROGRAMME,130248030,19-Jul-16,999893,"2,867.20",LIFEWAYS COMMUNITY CARE LTD,SP0000364
WANDSWORTH COUNCIL,ASC,SOCIAL SERVICES,VOL ASS,Revenue,SUPPORTED HOUSING PROGRAMME,130248030,19-Jul-16,999894,"2,341.88",LIFEWAYS COMMUNITY CARE LTD,SP0000364
WANDSWORTH COUNCIL,ASC,SOCIAL SERVICES,VOL ASS,Revenue,SUPPORTED HOUSING PROGRAMME,130248030,27-Jul-16,1005557,"7,972.24",CHOICE SUPPORT,SP0000398
WANDSWORTH COUNCIL,ASC,SOCIAL SERVICES,VOL ASS,Revenue,SUPPORTED HOUSING PROGRAMME,130248030,28-Jul-16,1006509,"1,687.76",C M CARE LTD,SP0000455
WANDSWORTH COUNCIL,ASC,SOCIAL SERVICES,VOL ASS,Revenue,SUPPORTED HOUSING PROGRAMME,130248030,07-Jul-16,989608,"2,491.28",ROYAL MENCAP SOCIETY,SP0000842
WANDSWORTH COUNCIL,ASC,SOCIAL SERVICES,VOL ASS,Revenue,SUPPORTED HOUSING PROGRAMME,130248030,07-Jul-16,989609,"2,251.52",ROYAL MENCAP SOCIETY,SP0000842
WANDSWORTH COUNCIL,ASC,SOCIAL SERVICES,VOL ASS,Revenue,SUPPORTED HOUSING PROGRAMME,130248030,07-Jul-16,989610,"3,273.32",ROYAL MENCAP SOCIETY,SP0000842
WANDSWORTH COUNCIL,ASC,SOCIAL SERVICES,VOL ASS,Revenue,SUPPORTED HOUSING PROGRAMME,130248030,07-Jul-16,989611,"7,069.80",ROYAL MENCAP SOCIETY,SP0000842
WANDSWORTH COUNCIL,ASC,SOCIAL SERVICES,VOL ASS,Revenue,SUPPORTED HOUSING PROGRAMME,130248030,07-Jul-16,989612,"5,204.28",ROYAL MENCAP SOCIETY,SP0000842
WANDSWORTH COUNCIL,ASC,SOCIAL SERVICES,VOL ASS,Revenue,SUPPORTED HOUSING PROGRAMME,130248030,07-Jul-16,989613,"2,441.20",ROYAL MENCAP SOCIETY,SP0000842
WANDSWORTH COUNCIL,ASC,SOCIAL SERVICES,VOL ASS,Revenue,SUPPORTED HOUSING PROGRAMME,130248030,07-Jul-16,989614,"1,748.04",ROYAL MENCAP SOCIETY,SP0000842
WANDSWORTH COUNCIL,ASC,SOCIAL SERVICES,VOL ASS,Revenue,SUPPORTED HOUSING PROGRAMME,130248030,07-Jul-16,989615,897.32,ROYAL MENCAP SOCIETY,SP0000842
WANDSWORTH COUNCIL,ASC,SOCIAL SERVICES,VOL ASS,Revenue,SUPPORTED HOUSING PROGRAMME,130248030,07-Jul-16,989616,"3,246.40",ROYAL MENCAP SOCIETY,SP0000842
WANDSWORTH COUNCIL,ASC,SOCIAL SERVICES,VOL ASS,Revenue,SUPPORTED HOUSING PROGRAMME,130248030,18-Jul-16,998492,577.92,HILL PARK AUTISTIC TRUST,SP0000926
WANDSWORTH COUNCIL,ASC,SOCIAL SERVICES,VOL ASS,Revenue,SUPPORTED HOUSING PROGRAMME,130248030,18-Jul-16,998493,"1,845.59",HILL PARK AUTISTIC TRUST,SP0000926
WANDSWORTH COUNCIL,ASC,SOCIAL SERVICES,VOL ASS,Revenue,SUPPORTED HOUSING PROGRAMME,130248030,21-Jul-16,1001652,"5,310.92",ST ELIZABETHS CENTRE,SP0001019
WANDSWORTH COUNCIL,ASC,SOCIAL SERVICES,VOL ASS,Revenue,SUPPORTED HOUSING PROGRAMME,130248030,20-Jul-16,1000964,631.69,FRONTIER SUPPORT SERVICES LTD,SP0001132
WANDSWORTH COUNCIL,ASC,SOCIAL SERVICES,VOL ASS,Revenue,SUPPORTED HOUSING PROGRAMME,130248030,22-Jul-16,1002918,"1,380.88",FRONTIER SUPPORT SERVICES LTD,SP0001132
WANDSWORTH COUNCIL,ASC,SOCIAL SERVICES,VOL ASS,Revenue,SUPPORTED HOUSING PROGRAMME,130248030,22-Jul-16,1002919,"1,259.88",FRONTIER SUPPORT SERVICES LTD,SP0001132
WANDSWORTH COUNCIL,ASC,SOCIAL SERVICES,VOL ASS,Revenue,SUPPORTED HOUSING PROGRAMME,130248030,22-Jul-16,1002920,"1,110.24",FRONTIER SUPPORT SERVICES LTD,SP0001132
WANDSWORTH COUNCIL,ASC,SOCIAL SERVICES,VOL ASS,Revenue,SUPPORTED HOUSING PROGRAMME,130248030,22-Jul-16,1002921,"1,543.72",FRONTIER SUPPORT SERVICES LTD,SP0001132
WANDSWORTH COUNCIL,ASC,SOCIAL SERVICES,VOL ASS,Revenue,SUPPORTED HOUSING PROGRAMME,130248030,22-Jul-16,1002922,"1,877.92",FRONTIER SUPPORT SERVICES LTD,SP0001132
WANDSWORTH COUNCIL,ASC,SOCIAL SERVICES,VOL ASS,Revenue,SUPPORTED HOUSING PROGRAMME,130248030,22-Jul-16,1002923,"1,361.20",FRONTIER SUPPORT SERVICES LTD,SP0001132
WANDSWORTH COUNCIL,ASC,SOCIAL SERVICES,VOL ASS,Revenue,SUPPORTED HOUSING PROGRAMME,130248030,22-Jul-16,1002924,"1,363.36",FRONTIER SUPPORT SERVICES LTD,SP0001132
WANDSWORTH COUNCIL,ASC,SOCIAL SERVICES,VOL ASS,Revenue,SUPPORTED HOUSING PROGRAMME,130248030,22-Jul-16,1002925,"1,105.20",FRONTIER SUPPORT SERVICES LTD,SP0001132
WANDSWORTH COUNCIL,ASC,SOCIAL SERVICES,VOL ASS,Revenue,SUPPORTED HOUSING PROGRAMME,130248030,22-Jul-16,1002927,662.40,FRONTIER SUPPORT SERVICES LTD,SP0001132
WANDSWORTH COUNCIL,ASC,SOCIAL SERVICES,VOL ASS,Revenue,SUPPORTED HOUSING PROGRAMME,130248030,22-Jul-16,1002929,"1,697.72",FRONTIER SUPPORT SERVICES LTD,SP0001132
WANDSWORTH COUNCIL,ASC,SOCIAL SERVICES,VOL ASS,Revenue,SUPPORTED HOUSING PROGRAMME,130248030,22-Jul-16,1002932,"15,981.92",FRONTIER SUPPORT SERVICES LTD,SP0001132
WANDSWORTH COUNCIL,ASC,SOCIAL SERVICES,VOL ASS,Revenue,SUPPORTED HOUSING PROGRAMME,130248030,22-Jul-16,1002933,"1,545.80",FRONTIER SUPPORT SERVICES LTD,SP0001132
WANDSWORTH COUNCIL,ASC,SOCIAL SERVICES,VOL ASS,Revenue,SUPPORTED HOUSING PROGRAMME,130248030,22-Jul-16,1002916,"9,036.32",PRECIOUS HOMES LTD,SP0001459
WANDSWORTH COUNCIL,ASC,SOCIAL SERVICES,VOL ASS,Revenue,SUPPORTED HOUSING PROGRAMME,130248030,22-Jul-16,1002917,"2,869.71",PRECIOUS HOMES LTD,SP0001459
WANDSWORTH COUNCIL,ASC,SOCIAL SERVICES,VOL ASS,Revenue,SUPPORTED HOUSING PROGRAMME,130248030,14-Jul-16,995709,"9,036.32",PRECIOUS HOMES LTD,SP0001459
WANDSWORTH COUNCIL,ASC,SOCIAL SERVICES,VOL ASS,Revenue,SUPPORTED HOUSING PROGRAMME,130248030,14-Jul-16,995710,"2,869.71",PRECIOUS HOMES LTD,SP0001459
WANDSWORTH COUNCIL,ASC,SOCIAL SERVICES,VOL ASS,Revenue,SUPPORTED HOUSING PROGRAMME,130248030,27-Jul-16,1005485,"5,362.48",INDEPENDENCE HOMES LTD,SP0004378
WANDSWORTH COUNCIL,ASC,SOCIAL SERVICES,VOL ASS,Revenue,SUPPORTED HOUSING PROGRAMME,130248030,28-Jul-16,1006472,"5,362.48",INDEPENDENCE HOMES LTD,SP0004378
WANDSWORTH COUNCIL,ASC,SOCIAL SERVICES,VOL ASS,Revenue,SUPPORTED HOUSING PROGRAMME,130248030,28-Jul-16,1006473,"5,710.84",INDEPENDENCE HOMES LTD,SP0004378
WANDSWORTH COUNCIL,ASC,SOCIAL SERVICES,VOL ASS,Revenue,SUPPORTED HOUSING PROGRAMME,130248030,12-Jul-16,993745,"5,362.48",INDEPENDENCE HOMES LTD,SP0004378
WANDSWORTH COUNCIL,ASC,SOCIAL SERVICES,VOL ASS,Revenue,SUPPORTED HOUSING PROGRAMME,130248030,21-Jul-16,1001655,"3,472.96",THE BRANDON TRUST,SP0005337
WANDSWORTH COUNCIL,ASC,SOCIAL SERVICES,VOL ASS,Revenue,SUPPORTED HOUSING PROGRAMME,130248030,01-Jul-16,985315,947.25,THE BRANDON TRUST,SP0005337
WANDSWORTH COUNCIL,ASC,,VOL ASS,Revenue,SUPPORTED HOUSING PROGRAMME,130248030,05-Jul-16,986198,"10,557.40",THE BRANDON TRUST,SP0005337
WANDSWORTH COUNCIL,ASC,SOCIAL SERVICES,VOL ASS,Revenue,SUPPORTED HOUSING PROGRAMME,130248030,05-Jul-16,987462,"3,245.76",THE BRANDON TRUST,SP0005337
WANDSWORTH COUNCIL,ASC,SOCIAL SERVICES,VOL ASS,Revenue,SUPPORTED HOUSING PROGRAMME,130248030,07-Jul-16,989617,960.44,THE BRANDON TRUST,SP0005337
WANDSWORTH COUNCIL,ASC,SOCIAL SERVICES,VOL ASS,Revenue,SUPPORTED HOUSING PROGRAMME,130248030,14-Jul-16,995392,"1,551.32",THE BRANDON TRUST,SP0005337
WANDSWORTH COUNCIL,ASC,SOCIAL SERVICES,VOL ASS,Revenue,SUPPORTED HOUSING PROGRAMME,130248030,14-Jul-16,995393,"1,936.52",THE BRANDON TRUST,SP0005337
WANDSWORTH COUNCIL,ASC,SOCIAL SERVICES,VOL ASS,Revenue,SUPPORTED HOUSING PROGRAMME,130248030,14-Jul-16,995394,"7,764.16",THE BRANDON TRUST,SP0005337
WANDSWORTH COUNCIL,ASC,SOCIAL SERVICES,VOL ASS,Revenue,SUPPORTED HOUSING PROGRAMME,130248030,14-Jul-16,995395,"2,327.04",THE BRANDON TRUST,SP0005337
WANDSWORTH COUNCIL,ASC,SOCIAL SERVICES,VOL ASS,Revenue,SUPPORTED HOUSING PROGRAMME,130248030,14-Jul-16,995396,"5,629.64",THE BRANDON TRUST,SP0005337
WANDSWORTH COUNCIL,ASC,SOCIAL SERVICES,VOL ASS,Revenue,SUPPORTED HOUSING PROGRAMME,130248030,14-Jul-16,995397,"2,969.16",THE BRANDON TRUST,SP0005337
WANDSWORTH COUNCIL,ASC,SOCIAL SERVICES,VOL ASS,Revenue,SUPPORTED HOUSING PROGRAMME,130248030,14-Jul-16,995398,"2,979.92",THE BRANDON TRUST,SP0005337
WANDSWORTH COUNCIL,ASC,SOCIAL SERVICES,VOL ASS,Revenue,SUPPORTED HOUSING PROGRAMME,130248030,14-Jul-16,995399,"2,140.32",THE BRANDON TRUST,SP0005337
WANDSWORTH COUNCIL,ASC,SOCIAL SERVICES,VOL ASS,Revenue,SUPPORTED HOUSING PROGRAMME,130248030,14-Jul-16,995400,"1,125.08",THE BRANDON TRUST,SP0005337
WANDSWORTH COUNCIL,ASC,SOCIAL SERVICES,VOL ASS,Revenue,SUPPORTED HOUSING PROGRAMME,130248030,14-Jul-16,995401,"1,155.88",THE BRANDON TRUST,SP0005337
WANDSWORTH COUNCIL,ASC,SOCIAL SERVICES,VOL ASS,Revenue,SUPPORTED HOUSING PROGRAMME,130248030,14-Jul-16,995402,"1,854.72",THE BRANDON TRUST,SP0005337
WANDSWORTH COUNCIL,ASC,SOCIAL SERVICES,VOL ASS,Revenue,SUPPORTED HOUSING PROGRAMME,130248030,14-Jul-16,995403,"1,380.64",THE BRANDON TRUST,SP0005337
WANDSWORTH COUNCIL,ASC,SOCIAL SERVICES,VOL ASS,Revenue,SUPPORTED HOUSING PROGRAMME,130248030,14-Jul-16,995404,"1,466.16",THE BRANDON TRUST,SP0005337
WANDSWORTH COUNCIL,ASC,SOCIAL SERVICES,VOL ASS,Revenue,SUPPORTED HOUSING PROGRAMME,130248030,14-Jul-16,995405,"1,513.68",THE BRANDON TRUST,SP0005337
WANDSWORTH COUNCIL,ASC,SOCIAL SERVICES,VOL ASS,Revenue,SUPPORTED HOUSING PROGRAMME,130248030,14-Jul-16,995406,"1,513.68",THE BRANDON TRUST,SP0005337
WANDSWORTH COUNCIL,ASC,SOCIAL SERVICES,VOL ASS,Revenue,SUPPORTED HOUSING PROGRAMME,130248030,14-Jul-16,995407,"2,856.96",THE BRANDON TRUST,SP0005337
WANDSWORTH COUNCIL,ASC,SOCIAL SERVICES,VOL ASS,Revenue,SUPPORTED HOUSING PROGRAMME,130248030,14-Jul-16,995408,"2,260.80",THE BRANDON TRUST,SP0005337
WANDSWORTH COUNCIL,ASC,SOCIAL SERVICES,VOL ASS,Revenue,SUPPORTED HOUSING PROGRAMME,130248030,14-Jul-16,995409,"3,453.12",THE BRANDON TRUST,SP0005337
WANDSWORTH COUNCIL,ASC,SOCIAL SERVICES,VOL ASS,Revenue,SUPPORTED HOUSING PROGRAMME,130248030,14-Jul-16,995410,801.35,THE BRANDON TRUST,SP0005337
WANDSWORTH COUNCIL,ASC,SOCIAL SERVICES,VOL ASS,Revenue,SUPPORTED HOUSING PROGRAMME,130248030,14-Jul-16,995412,"1,886.40",THE BRANDON TRUST,SP0005337
WANDSWORTH COUNCIL,ASC,SOCIAL SERVICES,VOL ASS,Revenue,SUPPORTED HOUSING PROGRAMME,130248030,14-Jul-16,995413,"1,797.12",THE BRANDON TRUST,SP0005337
WANDSWORTH COUNCIL,ASC,SOCIAL SERVICES,VOL ASS,Revenue,SUPPORTED HOUSING PROGRAMME,130248030,14-Jul-16,995414,"2,062.08",THE BRANDON TRUST,SP0005337
WANDSWORTH COUNCIL,ASC,SOCIAL SERVICES,VOL ASS,Revenue,SUPPORTED HOUSING PROGRAMME,130248030,14-Jul-16,995415,"3,520.16",THE BRANDON TRUST,SP0005337
WANDSWORTH COUNCIL,ASC,SOCIAL SERVICES,VOL ASS,Revenue,SUPPORTED HOUSING PROGRAMME,130248030,14-Jul-16,995416,"2,580.17",THE BRANDON TRUST,SP0005337
WANDSWORTH COUNCIL,ASC,SOCIAL SERVICES,VOL ASS,Revenue,SUPPORTED HOUSING PROGRAMME,130248030,14-Jul-16,995417,"3,453.12",THE BRANDON TRUST,SP0005337
WANDSWORTH COUNCIL,ASC,SOCIAL SERVICES,VOL ASS,Revenue,SUPPORTED HOUSING PROGRAMME,130248030,14-Jul-16,995418,"3,143.96",THE BRANDON TRUST,SP0005337
WANDSWORTH COUNCIL,ASC,SOCIAL SERVICES,VOL ASS,Revenue,SUPPORTED HOUSING PROGRAMME,130248030,14-Jul-16,995419,"2,923.88",THE BRANDON TRUST,SP0005337
WANDSWORTH COUNCIL,ASC,SOCIAL SERVICES,VOL ASS,Revenue,SUPPORTED HOUSING PROGRAMME,130248030,14-Jul-16,995420,"4,688.56",THE BRANDON TRUST,SP0005337
WANDSWORTH COUNCIL,ASC,SOCIAL SERVICES,VOL ASS,Revenue,SUPPORTED HOUSING PROGRAMME,130248030,14-Jul-16,995421,"3,320.64",THE BRANDON TRUST,SP0005337
WANDSWORTH COUNCIL,ASC,SOCIAL SERVICES,VOL ASS,Revenue,SUPPORTED HOUSING PROGRAMME,130248030,14-Jul-16,995428,"2,112.52",THE BRANDON TRUST,SP0005337
WANDSWORTH COUNCIL,ASC,SOCIAL SERVICES,VOL ASS,Revenue,SUPPORTED HOUSING PROGRAMME,130248030,14-Jul-16,995429,"2,112.52",THE BRANDON TRUST,SP0005337
WANDSWORTH COUNCIL,ASC,SOCIAL SERVICES,VOL ASS,Revenue,SUPPORTED HOUSING PROGRAMME,130248030,14-Jul-16,995431,"3,702.20",THE BRANDON TRUST,SP0005337
WANDSWORTH COUNCIL,ASC,SOCIAL SERVICES,VOL ASS,Revenue,SUPPORTED HOUSING PROGRAMME,130248030,14-Jul-16,995432,"1,465.92",THE BRANDON TRUST,SP0005337
WANDSWORTH COUNCIL,ASC,SOCIAL SERVICES,VOL ASS,Revenue,SUPPORTED HOUSING PROGRAMME,130248030,14-Jul-16,995433,"3,121.92",THE BRANDON TRUST,SP0005337
WANDSWORTH COUNCIL,ASC,SOCIAL SERVICES,VOL ASS,Revenue,SUPPORTED HOUSING PROGRAMME,130248030,14-Jul-16,995434,"5,688.08",THE BRANDON TRUST,SP0005337
WANDSWORTH COUNCIL,ASC,SOCIAL SERVICES,VOL ASS,Revenue,SUPPORTED HOUSING PROGRAMME,130248030,14-Jul-16,995435,"5,983.44",THE BRANDON TRUST,SP0005337
WANDSWORTH COUNCIL,ASC,SOCIAL SERVICES,VOL ASS,Revenue,SUPPORTED HOUSING PROGRAMME,130248030,14-Jul-16,995436,"4,827.60",THE BRANDON TRUST,SP0005337
WANDSWORTH COUNCIL,ASC,SOCIAL SERVICES,VOL ASS,Revenue,SUPPORTED HOUSING PROGRAMME,130248030,14-Jul-16,995437,"6,344.92",THE BRANDON TRUST,SP0005337
WANDSWORTH COUNCIL,ASC,SOCIAL SERVICES,VOL ASS,Revenue,SUPPORTED HOUSING PROGRAMME,130248030,14-Jul-16,995438,"3,324.96",THE BRANDON TRUST,SP0005337
WANDSWORTH COUNCIL,ASC,SOCIAL SERVICES,VOL ASS,Revenue,SUPPORTED HOUSING PROGRAMME,130248030,14-Jul-16,995439,"2,886.04",THE BRANDON TRUST,SP0005337
WANDSWORTH COUNCIL,ASC,SOCIAL SERVICES,VOL ASS,Revenue,SUPPORTED HOUSING PROGRAMME,130248030,14-Jul-16,995440,"2,856.96",THE BRANDON TRUST,SP0005337
WANDSWORTH COUNCIL,ASC,SOCIAL SERVICES,VOL ASS,Revenue,SUPPORTED HOUSING PROGRAMME,130248030,14-Jul-16,995441,"2,128.32",THE BRANDON TRUST,SP0005337
WANDSWORTH COUNCIL,ASC,SOCIAL SERVICES,VOL ASS,Revenue,SUPPORTED HOUSING PROGRAMME,130248030,14-Jul-16,995442,"6,198.76",THE BRANDON TRUST,SP0005337
WANDSWORTH COUNCIL,ASC,SOCIAL SERVICES,VOL ASS,Revenue,SUPPORTED HOUSING PROGRAMME,130248030,14-Jul-16,995443,"1,465.92",THE BRANDON TRUST,SP0005337
WANDSWORTH COUNCIL,ASC,SOCIAL SERVICES,VOL ASS,Revenue,SUPPORTED HOUSING PROGRAMME,130248030,14-Jul-16,995444,"1,548.72",THE BRANDON TRUST,SP0005337
WANDSWORTH COUNCIL,ASC,SOCIAL SERVICES,VOL ASS,Revenue,SUPPORTED HOUSING PROGRAMME,130248030,14-Jul-16,995445,"2,592.60",THE BRANDON TRUST,SP0005337
WANDSWORTH COUNCIL,ASC,SOCIAL SERVICES,VOL ASS,Revenue,SUPPORTED HOUSING PROGRAMME,130248030,14-Jul-16,995446,"2,724.48",THE BRANDON TRUST,SP0005337
WANDSWORTH COUNCIL,ASC,SOCIAL SERVICES,VOL ASS,Revenue,SUPPORTED HOUSING PROGRAMME,130248030,14-Jul-16,995447,"3,564.56",THE BRANDON TRUST,SP0005337
WANDSWORTH COUNCIL,ASC,SOCIAL SERVICES,VOL ASS,Revenue,SUPPORTED HOUSING PROGRAMME,130248030,14-Jul-16,995448,"3,416.80",THE BRANDON TRUST,SP0005337
WANDSWORTH COUNCIL,ASC,SOCIAL SERVICES,VOL ASS,Revenue,SUPPORTED HOUSING PROGRAMME,130248030,14-Jul-16,995449,"2,848.72",THE BRANDON TRUST,SP0005337
WANDSWORTH COUNCIL,ASC,SOCIAL SERVICES,VOL ASS,Revenue,SUPPORTED HOUSING PROGRAMME,130248030,14-Jul-16,995450,"2,327.24",THE BRANDON TRUST,SP0005337
WANDSWORTH COUNCIL,ASC,SOCIAL SERVICES,VOL ASS,Revenue,SUPPORTED HOUSING PROGRAMME,130248030,14-Jul-16,995451,"2,327.24",THE BRANDON TRUST,SP0005337
WANDSWORTH COUNCIL,ASC,SOCIAL SERVICES,VOL ASS,Revenue,SUPPORTED HOUSING PROGRAMME,130248030,14-Jul-16,995452,"2,065.12",THE BRANDON TRUST,SP0005337
WANDSWORTH COUNCIL,ASC,SOCIAL SERVICES,VOL ASS,Revenue,SUPPORTED HOUSING PROGRAMME,130248030,14-Jul-16,995464,"1,499.44",THE BRANDON TRUST,SP0005337
WANDSWORTH COUNCIL,ASC,SOCIAL SERVICES,VOL ASS,Revenue,SUPPORTED HOUSING PROGRAMME,130248030,14-Jul-16,995471,"1,034.48",THE BRANDON TRUST,SP0005337
WANDSWORTH COUNCIL,ASC,SOCIAL SERVICES,VOL ASS,Revenue,SUPPORTED HOUSING PROGRAMME,130248030,14-Jul-16,995486,"1,625.36",THE BRANDON TRUST,SP0005337
WANDSWORTH COUNCIL,ASC,SOCIAL SERVICES,VOL ASS,Revenue,SUPPORTED HOUSING PROGRAMME,130248030,14-Jul-16,995487,"1,674.84",THE BRANDON TRUST,SP0005337
WANDSWORTH COUNCIL,ASC,SOCIAL SERVICES,VOL ASS,Revenue,SUPPORTED HOUSING PROGRAMME,130248030,14-Jul-16,995488,"5,630.08",THE BRANDON TRUST,SP0005337
WANDSWORTH COUNCIL,ASC,SOCIAL SERVICES,VOL ASS,Revenue,SUPPORTED HOUSING PROGRAMME,130248030,14-Jul-16,995491,"2,459.52",THE BRANDON TRUST,SP0005337
WANDSWORTH COUNCIL,ASC,SOCIAL SERVICES,VOL ASS,Revenue,SUPPORTED HOUSING PROGRAMME,130248030,14-Jul-16,995492,"3,883.68",THE BRANDON TRUST,SP0005337
WANDSWORTH COUNCIL,ASC,SOCIAL SERVICES,VOL ASS,Revenue,SUPPORTED HOUSING PROGRAMME,130248030,14-Jul-16,995493,"2,618.48",THE BRANDON TRUST,SP0005337
WANDSWORTH COUNCIL,ASC,SOCIAL SERVICES,VOL ASS,Revenue,SUPPORTED HOUSING PROGRAMME,130248030,14-Jul-16,995494,"3,585.60",THE BRANDON TRUST,SP0005337
WANDSWORTH COUNCIL,ASC,SOCIAL SERVICES,VOL ASS,Revenue,SUPPORTED HOUSING PROGRAMME,130248030,14-Jul-16,995501,"1,465.92",THE BRANDON TRUST,SP0005337
WANDSWORTH COUNCIL,ASC,SOCIAL SERVICES,VOL ASS,Revenue,SUPPORTED HOUSING PROGRAMME,130248030,14-Jul-16,995502,"2,606.80",THE BRANDON TRUST,SP0005337
WANDSWORTH COUNCIL,ASC,SOCIAL SERVICES,VOL ASS,Revenue,SUPPORTED HOUSING PROGRAMME,130248030,14-Jul-16,995504,"2,631.48",THE BRANDON TRUST,SP0005337
WANDSWORTH COUNCIL,ASC,SOCIAL SERVICES,VOL ASS,Revenue,SUPPORTED HOUSING PROGRAMME,130248030,14-Jul-16,995507,"4,177.52",THE BRANDON TRUST,SP0005337
WANDSWORTH COUNCIL,ASC,SOCIAL SERVICES,VOL ASS,Revenue,SUPPORTED HOUSING PROGRAMME,130248030,14-Jul-16,995695,"1,466.16",THE BRANDON TRUST,SP0005337
WANDSWORTH COUNCIL,ASC,SOCIAL SERVICES,VOL ASS,Revenue,SUPPORTED HOUSING PROGRAMME,130248030,14-Jul-16,995699,"8,163.95",THE BRANDON TRUST,SP0005337
WANDSWORTH COUNCIL,ASC,SOCIAL SERVICES,VOL ASS,Revenue,SUPPORTED HOUSING PROGRAMME,130248030,14-Jul-16,995700,"6,761.29",THE BRANDON TRUST,SP0005337
WANDSWORTH COUNCIL,ASC,SOCIAL SERVICES,VOL ASS,Revenue,SUPPORTED HOUSING PROGRAMME,130248030,14-Jul-16,995701,"6,761.29",THE BRANDON TRUST,SP0005337
WANDSWORTH COUNCIL,ASC,SOCIAL SERVICES,VOL ASS,Revenue,SUPPORTED HOUSING PROGRAMME,130248030,12-Jul-16,993738,"6,120.00",RELIABLE PERSONNEL LTD,SP0005657
WANDSWORTH COUNCIL,ASC,SOCIAL SERVICES,VOL ASS,Revenue,SUPPORTED HOUSING PROGRAMME,130248030,29-Jul-16,1008317,593.68,MCCALLUM CARE LTD CAREMARK (WANDSWORTH),SP0006036
WANDSWORTH COUNCIL,ASC,SOCIAL SERVICES,VOL ASS,Revenue,SUPPORTED HOUSING PROGRAMME,130248030,01-Jul-16,985318,597.97,MCCALLUM CARE LTD CAREMARK (WANDSWORTH),SP0006036
WANDSWORTH COUNCIL,ASC,SOCIAL SERVICES,VOL ASS,Revenue,SUPPORTED HOUSING PROGRAMME,130248030,18-Jul-16,998496,585.10,MCCALLUM CARE LTD CAREMARK (WANDSWORTH),SP0006036
WANDSWORTH COUNCIL,ASC,SOCIAL SERVICES,VOL ASS,Revenue,SUPPORTED HOUSING PROGRAMME,130248030,18-Jul-16,998494,"4,400.00",MORTON GARDENS,SP0008639
WANDSWORTH COUNCIL,ASC,SOCIAL SERVICES,VOL ASS,Revenue,SUPPORTED HOUSING PROGRAMME,130248030,15-Jul-16,996218,"9,846.05",CURANS CARE LTD,SP0010190
WANDSWORTH COUNCIL,ASC,SOCIAL SERVICES,VOL ASS,Revenue,SUPPORTED HOUSING PROGRAMME,130248030,15-Jul-16,996219,"4,675.15",CURANS CARE LTD,SP0010190
WANDSWORTH COUNCIL,ASC,SOCIAL SERVICES,VOL ASS,Revenue,SUPPORTED HOUSING PROGRAMME,130248030,15-Jul-16,996220,"9,852.60",CURANS CARE LTD,SP0010190
WANDSWORTH COUNCIL,ASC,SOCIAL SERVICES,VOL ASS,Revenue,SUPPORTED HOUSING PROGRAMME,130248030,15-Jul-16,996301,"17,711.26",CURANS CARE LTD,SP0010190
WANDSWORTH COUNCIL,ASC,SOCIAL SERVICES,VOL ASS,Revenue,SUPPORTED HOUSING PROGRAMME,130248030,26-Jul-16,1004514,"4,400.00",STEP 4 YOU,SP0010196
WANDSWORTH COUNCIL,ASC,SOCIAL SERVICES,VOL ASS,Revenue,SUPPORTED HOUSING PROGRAMME,130248030,27-Jul-16,1005800,"4,000.00",STEP 4 YOU,SP0010196
WANDSWORTH COUNCIL,ASC,SOCIAL SERVICES,VOL ASS,Revenue,SUPPORTED HOUSING PROGRAMME,130248030,27-Jul-16,1005801,"4,000.00",STEP 4 YOU,SP0010196
WANDSWORTH COUNCIL,ASC,SOCIAL SERVICES,VOL ASS,Revenue,SUPPORTED HOUSING PROGRAMME,130248030,05-Jul-16,987461,"3,940.00",STEP 4 YOU,SP0010196
WANDSWORTH COUNCIL,ASC,SOCIAL SERVICES,VOL ASS,Revenue,SUPPORTED HOUSING PROGRAMME,130248030,15-Jul-16,996713,"1,131.69",MS J DAVIES-BENNETTS T/A HANDSON HORSES,SP0010539
WANDSWORTH COUNCIL,ASC,SOCIAL SERVICES,DIRECT,Revenue,DIRECT PAYMENTS,130250380,18-Jul-16,997938,"1,876.72",HESTIA HOUSING & SUPPORT,SP0000258
WANDSWORTH COUNCIL,ASC,SOCIAL SERVICES,DIRECT,Revenue,DIRECT PAYMENTS,130250380,18-Jul-16,997941,732.84,HESTIA HOUSING & SUPPORT,SP0000258
WANDSWORTH COUNCIL,ASC,SOCIAL SERVICES,DIRECT,Revenue,DIRECT PAYMENTS,130250380,18-Jul-16,997944,"2,248.36",HESTIA HOUSING & SUPPORT,SP0000258
WANDSWORTH COUNCIL,ASC,SOCIAL SERVICES,DIRECT,Revenue,DIRECT PAYMENTS,130250380,18-Jul-16,997945,"1,020.80",HESTIA HOUSING & SUPPORT,SP0000258
WANDSWORTH COUNCIL,ASC,SOCIAL SERVICES,DIRECT,Revenue,DIRECT PAYMENTS,130250380,18-Jul-16,998220,838.12,VIBRANCE,SP0005489
WANDSWORTH COUNCIL,ASC,SOCIAL SERVICES,DIRECT,Revenue,DIRECT PAYMENTS,130250380,18-Jul-16,998227,760.24,VIBRANCE,SP0005489
WANDSWORTH COUNCIL,ASC,SOCIAL SERVICES,DIRECT,Revenue,DIRECT PAYMENTS,130250380,18-Jul-16,998230,"1,065.52",VIBRANCE,SP0005489
WANDSWORTH COUNCIL,ASC,SOCIAL SERVICES,DIRECT,Revenue,DIRECT PAYMENTS,130250380,18-Jul-16,998238,"2,703.44",VIBRANCE,SP0005489
WANDSWORTH COUNCIL,ASC,SOCIAL SERVICES,DIRECT,Revenue,DIRECT PAYMENTS,130250380,18-Jul-16,998243,769.76,VIBRANCE,SP0005489
WANDSWORTH COUNCIL,ASC,SOCIAL SERVICES,DIRECT,Revenue,DIRECT PAYMENTS,130250380,18-Jul-16,998244,783.68,VIBRANCE,SP0005489
WANDSWORTH COUNCIL,ASC,SOCIAL SERVICES,DIRECT,Revenue,DIRECT PAYMENTS,130250380,18-Jul-16,998246,606.56,VIBRANCE,SP0005489
WANDSWORTH COUNCIL,ASC,SOCIAL SERVICES,DIRECT,Revenue,DIRECT PAYMENTS,130250380,18-Jul-16,998252,608.72,VIBRANCE,SP0005489
WANDSWORTH COUNCIL,ASC,SOCIAL SERVICES,DIRECT,Revenue,DIRECT PAYMENTS,130250380,18-Jul-16,998257,"3,704.84",VIBRANCE,SP0005489
WANDSWORTH COUNCIL,ASC,SOCIAL SERVICES,DIRECT,Revenue,DIRECT PAYMENTS,130250380,18-Jul-16,998260,714.00,VIBRANCE,SP0005489
WANDSWORTH COUNCIL,ASC,SOCIAL SERVICES,DIRECT,Revenue,DIRECT PAYMENTS,130250380,18-Jul-16,998263,719.16,VIBRANCE,SP0005489
WANDSWORTH COUNCIL,ASC,SOCIAL SERVICES,DIRECT,Revenue,DIRECT PAYMENTS,130250380,18-Jul-16,998270,"1,856.16",VIBRANCE,SP0005489
WANDSWORTH COUNCIL,ASC,SOCIAL SERVICES,DIRECT,Revenue,DIRECT PAYMENTS,130250380,18-Jul-16,998272,930.56,VIBRANCE,SP0005489
WANDSWORTH COUNCIL,ASC,SOCIAL SERVICES,DIRECT,Revenue,DIRECT PAYMENTS,130250380,18-Jul-16,998281,720.96,VIBRANCE,SP0005489
WANDSWORTH COUNCIL,ASC,SOCIAL SERVICES,DIRECT,Revenue,DIRECT PAYMENTS,130250380,18-Jul-16,998282,720.96,VIBRANCE,SP0005489
WANDSWORTH COUNCIL,ASC,SOCIAL SERVICES,DIRECT,Revenue,DIRECT PAYMENTS,130250380,18-Jul-16,998311,"1,003.76",VIBRANCE,SP0005489
WANDSWORTH COUNCIL,ASC,SOCIAL SERVICES,DIRECT,Revenue,DIRECT PAYMENTS,130250380,18-Jul-16,998321,"3,901.21",VIBRANCE,SP0005489
WANDSWORTH COUNCIL,ASC,SOCIAL SERVICES,DIRECT,Revenue,DIRECT PAYMENTS,130250380,18-Jul-16,997903,"2,218.20",EPAYROLLUK LTD,SP0009092
WANDSWORTH COUNCIL,ASC,SOCIAL SERVICES,CUSTOMER & CLIENT RECPTS - EXT,Revenue,CL CONT EXT RESIDEN S28A 100%,130280680,15-Jul-16,996293,"2,155.95",LOVING CARE LTD,SP0000670
WANDSWORTH COUNCIL,ASC,SOCIAL SERVICES,CUSTOMER & CLIENT RECPTS - EXT,Revenue,CL CONT EXTERNAL RESIDENT S28A,130280710,14-Jul-16,995617,(560.15),ST MARYS RESIDENTIAL HOME,SP0000215
WANDSWORTH COUNCIL,ASC,SOCIAL SERVICES,CUSTOMER & CLIENT RECPTS - EXT,Revenue,CL CONT EXTERNAL RESIDENT S28A,130280710,20-Jul-16,1000592,(373.99),PARKGATE MANOR,SP0000521
WANDSWORTH COUNCIL,ASC,SOCIAL SERVICES,CUSTOMER & CLIENT RECPTS - EXT,Revenue,CL CONT EXTERNAL RESIDENT S28A,130280710,04-Jul-16,986199,(373.99),PARKGATE MANOR,SP0000521
WANDSWORTH COUNCIL,ASC,SOCIAL SERVICES,CUSTOMER & CLIENT RECPTS - EXT,Revenue,CL CONT EXTERNAL RESIDENT S28A,130280710,04-Jul-16,986200,(361.93),PARKGATE MANOR,SP0000521
WANDSWORTH COUNCIL,ASC,SOCIAL SERVICES,CUSTOMER & CLIENT RECPTS - EXT,Revenue,CL CONT EXTERNAL RESIDENT S28A,130280710,21-Jul-16,1001514,(522.80),THE COMMUNITY CARE COMPANY UK LTD,SP0000576
WANDSWORTH COUNCIL,ASC,SOCIAL SERVICES,CUSTOMER & CLIENT RECPTS - EXT,Revenue,CL CONT EXTERNAL RESIDENT S28A,130280710,22-Jul-16,1002686,(510.64),METROPOLITAN HOUSING TRUST,SP0000626
WANDSWORTH COUNCIL,ASC,SOCIAL SERVICES,CUSTOMER & CLIENT RECPTS - EXT,Revenue,CL CONT EXTERNAL RESIDENT S28A,130280710,22-Jul-16,1002694,(321.80),METROPOLITAN HOUSING TRUST,SP0000626
WANDSWORTH COUNCIL,ASC,SOCIAL SERVICES,CUSTOMER & CLIENT RECPTS - EXT,Revenue,CL CONT EXTERNAL RESIDENT S28A,130280710,21-Jul-16,1001540,(522.80),ASHTON CARE,SP0000695
WANDSWORTH COUNCIL,ASC,SOCIAL SERVICES,CUSTOMER & CLIENT RECPTS - EXT,Revenue,CL CONT EXTERNAL RESIDENTIAL,130280720,22-Jul-16,1002727,(400.60),CMG HOMES LTD,SP0000075
WANDSWORTH COUNCIL,ASC,SOCIAL SERVICES,CUSTOMER & CLIENT RECPTS - EXT,Revenue,CL CONT EXTERNAL RESIDENTIAL,130280720,22-Jul-16,1002728,(343.80),CMG HOMES LTD,SP0000075
WANDSWORTH COUNCIL,ASC,SOCIAL SERVICES,CUSTOMER & CLIENT RECPTS - EXT,Revenue,CL CONT EXTERNAL RESIDENTIAL,130280720,22-Jul-16,1002730,(400.60),CMG HOMES LTD,SP0000075
WANDSWORTH COUNCIL,ASC,SOCIAL SERVICES,CUSTOMER & CLIENT RECPTS - EXT,Revenue,CL CONT EXTERNAL RESIDENTIAL,130280720,22-Jul-16,1002731,(132.00),CMG HOMES LTD,SP0000075
WANDSWORTH COUNCIL,ASC,SOCIAL SERVICES,CUSTOMER & CLIENT RECPTS - EXT,Revenue,CL CONT EXTERNAL RESIDENTIAL,130280720,22-Jul-16,1002732,(400.60),CMG HOMES LTD,SP0000075
WANDSWORTH COUNCIL,ASC,SOCIAL SERVICES,CUSTOMER & CLIENT RECPTS - EXT,Revenue,CL CONT EXTERNAL RESIDENTIAL,130280720,22-Jul-16,1002733,(400.60),CMG HOMES LTD,SP0000075
WANDSWORTH COUNCIL,ASC,SOCIAL SERVICES,CUSTOMER & CLIENT RECPTS - EXT,Revenue,CL CONT EXTERNAL RESIDENTIAL,130280720,22-Jul-16,1002734,(337.80),CMG HOMES LTD,SP0000075
WANDSWORTH COUNCIL,ASC,SOCIAL SERVICES,CUSTOMER & CLIENT RECPTS - EXT,Revenue,CL CONT EXTERNAL RESIDENTIAL,130280720,22-Jul-16,1002735,(522.80),CMG HOMES LTD,SP0000075
WANDSWORTH COUNCIL,ASC,SOCIAL SERVICES,CUSTOMER & CLIENT RECPTS - EXT,Revenue,CL CONT EXTERNAL RESIDENTIAL,130280720,22-Jul-16,1002736,(359.80),CMG HOMES LTD,SP0000075
WANDSWORTH COUNCIL,ASC,SOCIAL SERVICES,CUSTOMER & CLIENT RECPTS - EXT,Revenue,CL CONT EXTERNAL RESIDENTIAL,130280720,22-Jul-16,1002738,(400.60),CMG HOMES LTD,SP0000075
WANDSWORTH COUNCIL,ASC,SOCIAL SERVICES,CUSTOMER & CLIENT RECPTS - EXT,Revenue,CL CONT EXTERNAL RESIDENTIAL,130280720,22-Jul-16,1002739,(343.80),CMG HOMES LTD,SP0000075
WANDSWORTH COUNCIL,ASC,SOCIAL SERVICES,CUSTOMER & CLIENT RECPTS - EXT,Revenue,CL CONT EXTERNAL RESIDENTIAL,130280720,22-Jul-16,1002741,(400.60),CMG HOMES LTD,SP0000075
WANDSWORTH COUNCIL,ASC,SOCIAL SERVICES,CUSTOMER & CLIENT RECPTS - EXT,Revenue,CL CONT EXTERNAL RESIDENTIAL,130280720,22-Jul-16,1002742,(132.00),CMG HOMES LTD,SP0000075
WANDSWORTH COUNCIL,ASC,SOCIAL SERVICES,CUSTOMER & CLIENT RECPTS - EXT,Revenue,CL CONT EXTERNAL RESIDENTIAL,130280720,22-Jul-16,1002743,(400.60),CMG HOMES LTD,SP0000075
WANDSWORTH COUNCIL,ASC,SOCIAL SERVICES,CUSTOMER & CLIENT RECPTS - EXT,Revenue,CL CONT EXTERNAL RESIDENTIAL,130280720,22-Jul-16,1002744,(400.60),CMG HOMES LTD,SP0000075
WANDSWORTH COUNCIL,ASC,SOCIAL SERVICES,CUSTOMER & CLIENT RECPTS - EXT,Revenue,CL CONT EXTERNAL RESIDENTIAL,130280720,22-Jul-16,1002745,(337.80),CMG HOMES LTD,SP0000075
WANDSWORTH COUNCIL,ASC,SOCIAL SERVICES,CUSTOMER & CLIENT RECPTS - EXT,Revenue,CL CONT EXTERNAL RESIDENTIAL,130280720,22-Jul-16,1002746,(522.80),CMG HOMES LTD,SP0000075
WANDSWORTH COUNCIL,ASC,SOCIAL SERVICES,CUSTOMER & CLIENT RECPTS - EXT,Revenue,CL CONT EXTERNAL RESIDENTIAL,130280720,22-Jul-16,1002747,(359.80),CMG HOMES LTD,SP0000075
WANDSWORTH COUNCIL,ASC,SOCIAL SERVICES,CUSTOMER & CLIENT RECPTS - EXT,Revenue,CL CONT EXTERNAL RESIDENTIAL,130280720,25-Jul-16,1004008,(400.60),CMG HOMES LTD,SP0000075
WANDSWORTH COUNCIL,ASC,SOCIAL SERVICES,CUSTOMER & CLIENT RECPTS - EXT,Revenue,CL CONT EXTERNAL RESIDENTIAL,130280720,25-Jul-16,1004009,(343.80),CMG HOMES LTD,SP0000075
WANDSWORTH COUNCIL,ASC,SOCIAL SERVICES,CUSTOMER & CLIENT RECPTS - EXT,Revenue,CL CONT EXTERNAL RESIDENTIAL,130280720,25-Jul-16,1004011,(400.60),CMG HOMES LTD,SP0000075
WANDSWORTH COUNCIL,ASC,SOCIAL SERVICES,CUSTOMER & CLIENT RECPTS - EXT,Revenue,CL CONT EXTERNAL RESIDENTIAL,130280720,25-Jul-16,1004012,(132.00),CMG HOMES LTD,SP0000075
WANDSWORTH COUNCIL,ASC,SOCIAL SERVICES,CUSTOMER & CLIENT RECPTS - EXT,Revenue,CL CONT EXTERNAL RESIDENTIAL,130280720,25-Jul-16,1004013,(400.60),CMG HOMES LTD,SP0000075
WANDSWORTH COUNCIL,ASC,SOCIAL SERVICES,CUSTOMER & CLIENT RECPTS - EXT,Revenue,CL CONT EXTERNAL RESIDENTIAL,130280720,25-Jul-16,1004014,(400.60),CMG HOMES LTD,SP0000075
WANDSWORTH COUNCIL,ASC,SOCIAL SERVICES,CUSTOMER & CLIENT RECPTS - EXT,Revenue,CL CONT EXTERNAL RESIDENTIAL,130280720,25-Jul-16,1004015,(337.80),CMG HOMES LTD,SP0000075
WANDSWORTH COUNCIL,ASC,SOCIAL SERVICES,CUSTOMER & CLIENT RECPTS - EXT,Revenue,CL CONT EXTERNAL RESIDENTIAL,130280720,25-Jul-16,1004016,(522.80),CMG HOMES LTD,SP0000075
WANDSWORTH COUNCIL,ASC,SOCIAL SERVICES,CUSTOMER & CLIENT RECPTS - EXT,Revenue,CL CONT EXTERNAL RESIDENTIAL,130280720,25-Jul-16,1004017,(359.80),CMG HOMES LTD,SP0000075
WANDSWORTH COUNCIL,ASC,SOCIAL SERVICES,CUSTOMER & CLIENT RECPTS - EXT,Revenue,CL CONT EXTERNAL RESIDENTIAL,130280720,25-Jul-16,1004018,(301.61),CMG HOMES LTD,SP0000075
WANDSWORTH COUNCIL,ASC,SOCIAL SERVICES,CUSTOMER & CLIENT RECPTS - EXT,Revenue,CL CONT EXTERNAL RESIDENTIAL,130280720,21-Jul-16,1001543,(385.95),NATIONAL SOCIETY FOR EPILEPSY,SP0000120
WANDSWORTH COUNCIL,ASC,SOCIAL SERVICES,CUSTOMER & CLIENT RECPTS - EXT,Revenue,CL CONT EXTERNAL RESIDENTIAL,130280720,15-Jul-16,996087,(337.80),SANCTUARY CARE LTD,SP0000121
WANDSWORTH COUNCIL,ASC,SOCIAL SERVICES,CUSTOMER & CLIENT RECPTS - EXT,Revenue,CL CONT EXTERNAL RESIDENTIAL,130280720,21-Jul-16,1001547,(380.64),IN CHORUS LTD,SP0000129
WANDSWORTH COUNCIL,ASC,SOCIAL SERVICES,CUSTOMER & CLIENT RECPTS - EXT,Revenue,CL CONT EXTERNAL RESIDENTIAL,130280720,22-Jul-16,1002715,(373.99),CENTRUST CARE HOMES LTD,SP0000141
WANDSWORTH COUNCIL,ASC,SOCIAL SERVICES,CUSTOMER & CLIENT RECPTS - EXT,Revenue,CL CONT EXTERNAL RESIDENTIAL,130280720,21-Jul-16,1001556,(373.77),FRANCES TAYLOR FOUNDATION,SP0000142
WANDSWORTH COUNCIL,ASC,SOCIAL SERVICES,CUSTOMER & CLIENT RECPTS - EXT,Revenue,CL CONT EXTERNAL RESIDENTIAL,130280720,21-Jul-16,1001557,(356.28),FRANCES TAYLOR FOUNDATION,SP0000142
WANDSWORTH COUNCIL,ASC,SOCIAL SERVICES,CUSTOMER & CLIENT RECPTS - EXT,Revenue,CL CONT EXTERNAL RESIDENTIAL,130280720,21-Jul-16,1001558,(443.52),FRANCES TAYLOR FOUNDATION,SP0000142
WANDSWORTH COUNCIL,ASC,SOCIAL SERVICES,CUSTOMER & CLIENT RECPTS - EXT,Revenue,CL CONT EXTERNAL RESIDENTIAL,130280720,05-Jul-16,987404,(361.72),FRANCES TAYLOR FOUNDATION,SP0000142
WANDSWORTH COUNCIL,ASC,SOCIAL SERVICES,CUSTOMER & CLIENT RECPTS - EXT,Revenue,CL CONT EXTERNAL RESIDENTIAL,130280720,05-Jul-16,987405,(366.22),FRANCES TAYLOR FOUNDATION,SP0000142
WANDSWORTH COUNCIL,ASC,SOCIAL SERVICES,CUSTOMER & CLIENT RECPTS - EXT,Revenue,CL CONT EXTERNAL RESIDENTIAL,130280720,05-Jul-16,987406,(429.22),FRANCES TAYLOR FOUNDATION,SP0000142
WANDSWORTH COUNCIL,ASC,SOCIAL SERVICES,CUSTOMER & CLIENT RECPTS - EXT,Revenue,CL CONT EXTERNAL RESIDENTIAL,130280720,01-Jul-16,985106,(337.80),RESIDENTIAL CARE SERVICES T/A FRANKLYN L,SP0000147
WANDSWORTH COUNCIL,ASC,SOCIAL SERVICES,CUSTOMER & CLIENT RECPTS - EXT,Revenue,CL CONT EXTERNAL RESIDENTIAL,130280720,07-Jul-16,989508,(337.80),ORCHARD VALE TRUST,SP0000214
WANDSWORTH COUNCIL,ASC,SOCIAL SERVICES,CUSTOMER & CLIENT RECPTS - EXT,Revenue,CL CONT EXTERNAL RESIDENTIAL,130280720,21-Jul-16,1001544,(356.28),ST MARYS RESIDENTIAL HOME,SP0000215
WANDSWORTH COUNCIL,ASC,SOCIAL SERVICES,CUSTOMER & CLIENT RECPTS - EXT,Revenue,CL CONT EXTERNAL RESIDENTIAL,130280720,21-Jul-16,1001545,"(1,348.68)",ST MARYS RESIDENTIAL HOME,SP0000215
WANDSWORTH COUNCIL,ASC,SOCIAL SERVICES,CUSTOMER & CLIENT RECPTS - EXT,Revenue,CL CONT EXTERNAL RESIDENTIAL,130280720,21-Jul-16,1001546,(337.80),ST MARYS RESIDENTIAL HOME,SP0000215
WANDSWORTH COUNCIL,ASC,SOCIAL SERVICES,CUSTOMER & CLIENT RECPTS - EXT,Revenue,CL CONT EXTERNAL RESIDENTIAL,130280720,08-Jul-16,991291,(344.79),ST MARYS RESIDENTIAL HOME,SP0000215
WANDSWORTH COUNCIL,ASC,SOCIAL SERVICES,CUSTOMER & CLIENT RECPTS - EXT,Revenue,CL CONT EXTERNAL RESIDENTIAL,130280720,14-Jul-16,995607,(266.45),ST MARYS RESIDENTIAL HOME,SP0000215
WANDSWORTH COUNCIL,ASC,SOCIAL SERVICES,CUSTOMER & CLIENT RECPTS - EXT,Revenue,CL CONT EXTERNAL RESIDENTIAL,130280720,14-Jul-16,995608,(344.78),ST MARYS RESIDENTIAL HOME,SP0000215
WANDSWORTH COUNCIL,ASC,SOCIAL SERVICES,CUSTOMER & CLIENT RECPTS - EXT,Revenue,CL CONT EXTERNAL RESIDENTIAL,130280720,14-Jul-16,995609,(560.15),ST MARYS RESIDENTIAL HOME,SP0000215
WANDSWORTH COUNCIL,ASC,SOCIAL SERVICES,CUSTOMER & CLIENT RECPTS - EXT,Revenue,CL CONT EXTERNAL RESIDENTIAL,130280720,14-Jul-16,995610,(361.72),ST MARYS RESIDENTIAL HOME,SP0000215
WANDSWORTH COUNCIL,ASC,SOCIAL SERVICES,CUSTOMER & CLIENT RECPTS - EXT,Revenue,CL CONT EXTERNAL RESIDENTIAL,130280720,14-Jul-16,995611,(344.78),ST MARYS RESIDENTIAL HOME,SP0000215
WANDSWORTH COUNCIL,ASC,SOCIAL SERVICES,CUSTOMER & CLIENT RECPTS - EXT,Revenue,CL CONT EXTERNAL RESIDENTIAL,130280720,14-Jul-16,995612,(429.22),ST MARYS RESIDENTIAL HOME,SP0000215
WANDSWORTH COUNCIL,ASC,SOCIAL SERVICES,CUSTOMER & CLIENT RECPTS - EXT,Revenue,CL CONT EXTERNAL RESIDENTIAL,130280720,14-Jul-16,995613,(560.15),ST MARYS RESIDENTIAL HOME,SP0000215
WANDSWORTH COUNCIL,ASC,SOCIAL SERVICES,CUSTOMER & CLIENT RECPTS - EXT,Revenue,CL CONT EXTERNAL RESIDENTIAL,130280720,14-Jul-16,995615,(764.70),ST MARYS RESIDENTIAL HOME,SP0000215
WANDSWORTH COUNCIL,ASC,SOCIAL SERVICES,CUSTOMER & CLIENT RECPTS - EXT,Revenue,CL CONT EXTERNAL RESIDENTIAL,130280720,14-Jul-16,995619,(560.15),ST MARYS RESIDENTIAL HOME,SP0000215
WANDSWORTH COUNCIL,ASC,SOCIAL SERVICES,CUSTOMER & CLIENT RECPTS - EXT,Revenue,CL CONT EXTERNAL RESIDENTIAL,130280720,14-Jul-16,995620,"(1,348.68)",ST MARYS RESIDENTIAL HOME,SP0000215
WANDSWORTH COUNCIL,ASC,SOCIAL SERVICES,CUSTOMER & CLIENT RECPTS - EXT,Revenue,CL CONT EXTERNAL RESIDENTIAL,130280720,14-Jul-16,995621,(337.80),ST MARYS RESIDENTIAL HOME,SP0000215
WANDSWORTH COUNCIL,ASC,SOCIAL SERVICES,CUSTOMER & CLIENT RECPTS - EXT,Revenue,CL CONT EXTERNAL RESIDENTIAL,130280720,14-Jul-16,995635,(559.33),ST MARYS RESIDENTIAL HOME,SP0000215
WANDSWORTH COUNCIL,ASC,SOCIAL SERVICES,CUSTOMER & CLIENT RECPTS - EXT,Revenue,CL CONT EXTERNAL RESIDENTIAL,130280720,08-Jul-16,990838,(337.60),HAYDON PARK LODGE LTD,SP0000231
WANDSWORTH COUNCIL,ASC,SOCIAL SERVICES,CUSTOMER & CLIENT RECPTS - EXT,Revenue,CL CONT EXTERNAL RESIDENTIAL,130280720,27-Jul-16,1005465,(638.48),CAMERON LODGE LIMITED,SP0000271
WANDSWORTH COUNCIL,ASC,SOCIAL SERVICES,CUSTOMER & CLIENT RECPTS - EXT,Revenue,CL CONT EXTERNAL RESIDENTIAL,130280720,21-Jul-16,1001518,(405.66),BROOKDALE CARE,SP0000282
WANDSWORTH COUNCIL,ASC,SOCIAL SERVICES,CUSTOMER & CLIENT RECPTS - EXT,Revenue,CL CONT EXTERNAL RESIDENTIAL,130280720,15-Jul-16,996632,(405.66),BROOKDALE CARE,SP0000282
WANDSWORTH COUNCIL,ASC,SOCIAL SERVICES,CUSTOMER & CLIENT RECPTS - EXT,Revenue,CL CONT EXTERNAL RESIDENTIAL,130280720,19-Jul-16,999818,(159.34),BROOKDALE CARE,SP0000282
WANDSWORTH COUNCIL,ASC,SOCIAL SERVICES,CUSTOMER & CLIENT RECPTS - EXT,Revenue,CL CONT EXTERNAL RESIDENTIAL,130280720,21-Jul-16,1001417,(373.99),RESIDENTIAL COMMUNITY CARE,SP0000315
WANDSWORTH COUNCIL,ASC,SOCIAL SERVICES,CUSTOMER & CLIENT RECPTS - EXT,Revenue,CL CONT EXTERNAL RESIDENTIAL,130280720,14-Jul-16,995383,(321.80),DOLPHIN HOMES LTD,SP0000331
WANDSWORTH COUNCIL,ASC,SOCIAL SERVICES,CUSTOMER & CLIENT RECPTS - EXT,Revenue,CL CONT EXTERNAL RESIDENTIAL,130280720,14-Jul-16,995384,(321.80),DOLPHIN HOMES LTD,SP0000331
WANDSWORTH COUNCIL,ASC,SOCIAL SERVICES,CUSTOMER & CLIENT RECPTS - EXT,Revenue,CL CONT EXTERNAL RESIDENTIAL,130280720,22-Jul-16,1002702,(321.80),NORWOOD SCHOOLS LTD,SP0000332
WANDSWORTH COUNCIL,ASC,SOCIAL SERVICES,CUSTOMER & CLIENT RECPTS - EXT,Revenue,CL CONT EXTERNAL RESIDENTIAL,130280720,22-Jul-16,1002703,(400.60),NORWOOD SCHOOLS LTD,SP0000332
WANDSWORTH COUNCIL,ASC,SOCIAL SERVICES,CUSTOMER & CLIENT RECPTS - EXT,Revenue,CL CONT EXTERNAL RESIDENTIAL,130280720,14-Jul-16,995622,(321.80),NORWOOD SCHOOLS LTD,SP0000332
WANDSWORTH COUNCIL,ASC,SOCIAL SERVICES,CUSTOMER & CLIENT RECPTS - EXT,Revenue,CL CONT EXTERNAL RESIDENTIAL,130280720,18-Jul-16,998379,(389.34),NORWOOD SCHOOLS LTD,SP0000332
WANDSWORTH COUNCIL,ASC,SOCIAL SERVICES,CUSTOMER & CLIENT RECPTS - EXT,Revenue,CL CONT EXTERNAL RESIDENTIAL,130280720,22-Jul-16,1002698,(578.81),HEYWOODS GRANGE LTD,SP0000361
WANDSWORTH COUNCIL,ASC,SOCIAL SERVICES,CUSTOMER & CLIENT RECPTS - EXT,Revenue,CL CONT EXTERNAL RESIDENTIAL,130280720,22-Jul-16,1002699,(578.81),HEYWOODS GRANGE LTD,SP0000361
WANDSWORTH COUNCIL,ASC,SOCIAL SERVICES,CUSTOMER & CLIENT RECPTS - EXT,Revenue,CL CONT EXTERNAL RESIDENTIAL,130280720,01-Jul-16,985109,(361.93),VOYAGE CARE LTD,SP0000366
WANDSWORTH COUNCIL,ASC,SOCIAL SERVICES,CUSTOMER & CLIENT RECPTS - EXT,Revenue,CL CONT EXTERNAL RESIDENTIAL,130280720,15-Jul-16,996616,(343.80),VOYAGE CARE LTD,SP0000366
WANDSWORTH COUNCIL,ASC,SOCIAL SERVICES,CUSTOMER & CLIENT RECPTS - EXT,Revenue,CL CONT EXTERNAL RESIDENTIAL,130280720,15-Jul-16,996617,(348.60),VOYAGE CARE LTD,SP0000366
WANDSWORTH COUNCIL,ASC,SOCIAL SERVICES,CUSTOMER & CLIENT RECPTS - EXT,Revenue,CL CONT EXTERNAL RESIDENTIAL,130280720,21-Jul-16,1001525,(373.99),ST DAVIDS CARE IN THE COMMUNITY,SP0000379
WANDSWORTH COUNCIL,ASC,SOCIAL SERVICES,CUSTOMER & CLIENT RECPTS - EXT,Revenue,CL CONT EXTERNAL RESIDENTIAL,130280720,21-Jul-16,1001526,(373.99),ST DAVIDS CARE IN THE COMMUNITY,SP0000379
WANDSWORTH COUNCIL,ASC,SOCIAL SERVICES,CUSTOMER & CLIENT RECPTS - EXT,Revenue,CL CONT EXTERNAL RESIDENTIAL,130280720,21-Jul-16,1001527,(373.99),ST DAVIDS CARE IN THE COMMUNITY,SP0000379
WANDSWORTH COUNCIL,ASC,SOCIAL SERVICES,CUSTOMER & CLIENT RECPTS - EXT,Revenue,CL CONT EXTERNAL RESIDENTIAL,130280720,21-Jul-16,1001559,(356.28),ESSEX CARE CONSORTIUM,SP0000387
WANDSWORTH COUNCIL,ASC,SOCIAL SERVICES,CUSTOMER & CLIENT RECPTS - EXT,Revenue,CL CONT EXTERNAL RESIDENTIAL,130280720,22-Jul-16,1002696,(321.80),KENILWORTH RESIDENTIAL HOME,SP0000432
WANDSWORTH COUNCIL,ASC,SOCIAL SERVICES,CUSTOMER & CLIENT RECPTS - EXT,Revenue,CL CONT EXTERNAL RESIDENTIAL,130280720,22-Jul-16,1002697,(505.20),KENILWORTH RESIDENTIAL HOME,SP0000432
WANDSWORTH COUNCIL,ASC,SOCIAL SERVICES,CUSTOMER & CLIENT RECPTS - EXT,Revenue,CL CONT EXTERNAL RESIDENTIAL,130280720,05-Jul-16,987402,(366.40),THE WELL HOUSE,SP0000448
WANDSWORTH COUNCIL,ASC,SOCIAL SERVICES,CUSTOMER & CLIENT RECPTS - EXT,Revenue,CL CONT EXTERNAL RESIDENTIAL,130280720,05-Jul-16,987403,(337.80),THE WELL HOUSE,SP0000448
WANDSWORTH COUNCIL,ASC,SOCIAL SERVICES,CUSTOMER & CLIENT RECPTS - EXT,Revenue,CL CONT EXTERNAL RESIDENTIAL,130280720,06-Jul-16,988528,(321.80),MACINTYRE CARE,SP0000473
WANDSWORTH COUNCIL,ASC,SOCIAL SERVICES,CUSTOMER & CLIENT RECPTS - EXT,Revenue,CL CONT EXTERNAL RESIDENTIAL,130280720,06-Jul-16,988529,(505.20),MACINTYRE CARE,SP0000473
WANDSWORTH COUNCIL,ASC,SOCIAL SERVICES,CUSTOMER & CLIENT RECPTS - EXT,Revenue,CL CONT EXTERNAL RESIDENTIAL,130280720,06-Jul-16,988531,(337.80),MACINTYRE CARE,SP0000473
WANDSWORTH COUNCIL,ASC,SOCIAL SERVICES,CUSTOMER & CLIENT RECPTS - EXT,Revenue,CL CONT EXTERNAL RESIDENTIAL,130280720,06-Jul-16,988532,(321.80),MACINTYRE CARE,SP0000473
WANDSWORTH COUNCIL,ASC,SOCIAL SERVICES,CUSTOMER & CLIENT RECPTS - EXT,Revenue,CL CONT EXTERNAL RESIDENTIAL,130280720,06-Jul-16,988533,(366.40),MACINTYRE CARE,SP0000473
WANDSWORTH COUNCIL,ASC,SOCIAL SERVICES,CUSTOMER & CLIENT RECPTS - EXT,Revenue,CL CONT EXTERNAL RESIDENTIAL,130280720,06-Jul-16,988534,(400.60),MACINTYRE CARE,SP0000473
WANDSWORTH COUNCIL,ASC,SOCIAL SERVICES,CUSTOMER & CLIENT RECPTS - EXT,Revenue,CL CONT EXTERNAL RESIDENTIAL,130280720,06-Jul-16,988535,(400.60),MACINTYRE CARE,SP0000473
WANDSWORTH COUNCIL,ASC,SOCIAL SERVICES,CUSTOMER & CLIENT RECPTS - EXT,Revenue,CL CONT EXTERNAL RESIDENTIAL,130280720,06-Jul-16,988537,(321.80),MACINTYRE CARE,SP0000473
WANDSWORTH COUNCIL,ASC,SOCIAL SERVICES,CUSTOMER & CLIENT RECPTS - EXT,Revenue,CL CONT EXTERNAL RESIDENTIAL,130280720,06-Jul-16,988538,(400.60),MACINTYRE CARE,SP0000473
WANDSWORTH COUNCIL,ASC,SOCIAL SERVICES,CUSTOMER & CLIENT RECPTS - EXT,Revenue,CL CONT EXTERNAL RESIDENTIAL,130280720,06-Jul-16,988539,(337.80),MACINTYRE CARE,SP0000473
WANDSWORTH COUNCIL,ASC,SOCIAL SERVICES,CUSTOMER & CLIENT RECPTS - EXT,Revenue,CL CONT EXTERNAL RESIDENTIAL,130280720,06-Jul-16,988540,(522.80),MACINTYRE CARE,SP0000473
WANDSWORTH COUNCIL,ASC,SOCIAL SERVICES,CUSTOMER & CLIENT RECPTS - EXT,Revenue,CL CONT EXTERNAL RESIDENTIAL,130280720,06-Jul-16,988541,(337.80),MACINTYRE CARE,SP0000473
WANDSWORTH COUNCIL,ASC,SOCIAL SERVICES,CUSTOMER & CLIENT RECPTS - EXT,Revenue,CL CONT EXTERNAL RESIDENTIAL,130280720,06-Jul-16,988542,(522.80),MACINTYRE CARE,SP0000473
WANDSWORTH COUNCIL,ASC,SOCIAL SERVICES,CUSTOMER & CLIENT RECPTS - EXT,Revenue,CL CONT EXTERNAL RESIDENTIAL,130280720,06-Jul-16,988543,(522.80),MACINTYRE CARE,SP0000473
WANDSWORTH COUNCIL,ASC,SOCIAL SERVICES,CUSTOMER & CLIENT RECPTS - EXT,Revenue,CL CONT EXTERNAL RESIDENTIAL,130280720,06-Jul-16,988544,(522.80),MACINTYRE CARE,SP0000473
WANDSWORTH COUNCIL,ASC,SOCIAL SERVICES,CUSTOMER & CLIENT RECPTS - EXT,Revenue,CL CONT EXTERNAL RESIDENTIAL,130280720,06-Jul-16,988546,(521.20),MACINTYRE CARE,SP0000473
WANDSWORTH COUNCIL,ASC,SOCIAL SERVICES,CUSTOMER & CLIENT RECPTS - EXT,Revenue,CL CONT EXTERNAL RESIDENTIAL,130280720,06-Jul-16,988547,(337.80),MACINTYRE CARE,SP0000473
WANDSWORTH COUNCIL,ASC,SOCIAL SERVICES,CUSTOMER & CLIENT RECPTS - EXT,Revenue,CL CONT EXTERNAL RESIDENTIAL,130280720,06-Jul-16,988548,(508.92),MACINTYRE CARE,SP0000473
WANDSWORTH COUNCIL,ASC,SOCIAL SERVICES,CUSTOMER & CLIENT RECPTS - EXT,Revenue,CL CONT EXTERNAL RESIDENTIAL,130280720,06-Jul-16,988549,(337.80),MACINTYRE CARE,SP0000473
WANDSWORTH COUNCIL,ASC,SOCIAL SERVICES,CUSTOMER & CLIENT RECPTS - EXT,Revenue,CL CONT EXTERNAL RESIDENTIAL,130280720,20-Jul-16,1000853,(321.80),SURREY & BORDERS PARTNERSHIP NHS TRUST,SP0000501
WANDSWORTH COUNCIL,ASC,SOCIAL SERVICES,CUSTOMER & CLIENT RECPTS - EXT,Revenue,CL CONT EXTERNAL RESIDENTIAL,130280720,20-Jul-16,1000854,(505.20),SURREY & BORDERS PARTNERSHIP NHS TRUST,SP0000501
WANDSWORTH COUNCIL,ASC,SOCIAL SERVICES,CUSTOMER & CLIENT RECPTS - EXT,Revenue,CL CONT EXTERNAL RESIDENTIAL,130280720,21-Jul-16,1001456,(373.99),AIMS CARE PARTNERSHIP,SP0000561
WANDSWORTH COUNCIL,ASC,SOCIAL SERVICES,CUSTOMER & CLIENT RECPTS - EXT,Revenue,CL CONT EXTERNAL RESIDENTIAL,130280720,26-Jul-16,1004355,(433.56),SEEABILITY,SP0000572
WANDSWORTH COUNCIL,ASC,SOCIAL SERVICES,CUSTOMER & CLIENT RECPTS - EXT,Revenue,CL CONT EXTERNAL RESIDENTIAL,130280720,07-Jul-16,989505,(419.57),SEEABILITY,SP0000572
WANDSWORTH COUNCIL,ASC,SOCIAL SERVICES,CUSTOMER & CLIENT RECPTS - EXT,Revenue,CL CONT EXTERNAL RESIDENTIAL,130280720,21-Jul-16,1001428,(373.99),THE COMMUNITY CARE COMPANY UK LTD,SP0000576
WANDSWORTH COUNCIL,ASC,SOCIAL SERVICES,CUSTOMER & CLIENT RECPTS - EXT,Revenue,CL CONT EXTERNAL RESIDENTIAL,130280720,21-Jul-16,1001519,(578.81),THE COMMUNITY CARE COMPANY UK LTD,SP0000576
WANDSWORTH COUNCIL,ASC,SOCIAL SERVICES,CUSTOMER & CLIENT RECPTS - EXT,Revenue,CL CONT EXTERNAL RESIDENTIAL,130280720,21-Jul-16,1001520,(443.52),THE COMMUNITY CARE COMPANY UK LTD,SP0000576
WANDSWORTH COUNCIL,ASC,SOCIAL SERVICES,CUSTOMER & CLIENT RECPTS - EXT,Revenue,CL CONT EXTERNAL RESIDENTIAL,130280720,21-Jul-16,1001521,(373.99),THE COMMUNITY CARE COMPANY UK LTD,SP0000576
WANDSWORTH COUNCIL,ASC,SOCIAL SERVICES,CUSTOMER & CLIENT RECPTS - EXT,Revenue,CL CONT EXTERNAL RESIDENTIAL,130280720,21-Jul-16,1001522,(373.77),THE COMMUNITY CARE COMPANY UK LTD,SP0000576
WANDSWORTH COUNCIL,ASC,SOCIAL SERVICES,CUSTOMER & CLIENT RECPTS - EXT,Revenue,CL CONT EXTERNAL RESIDENTIAL,130280720,27-Jul-16,1005462,(578.81),BIRCC,SP0000584
WANDSWORTH COUNCIL,ASC,SOCIAL SERVICES,CUSTOMER & CLIENT RECPTS - EXT,Revenue,CL CONT EXTERNAL RESIDENTIAL,130280720,21-Jul-16,1001411,(356.28),THE REGARD PARTNERSHIP,SP0000588
WANDSWORTH COUNCIL,ASC,SOCIAL SERVICES,CUSTOMER & CLIENT RECPTS - EXT,Revenue,CL CONT EXTERNAL RESIDENTIAL,130280720,21-Jul-16,1001412,(578.81),THE REGARD PARTNERSHIP,SP0000588
WANDSWORTH COUNCIL,ASC,SOCIAL SERVICES,CUSTOMER & CLIENT RECPTS - EXT,Revenue,CL CONT EXTERNAL RESIDENTIAL,130280720,21-Jul-16,1001414,(443.52),THE REGARD PARTNERSHIP,SP0000588
WANDSWORTH COUNCIL,ASC,SOCIAL SERVICES,CUSTOMER & CLIENT RECPTS - EXT,Revenue,CL CONT EXTERNAL RESIDENTIAL,130280720,26-Jul-16,1004354,(443.52),THE REGARD PARTNERSHIP,SP0000588
WANDSWORTH COUNCIL,ASC,SOCIAL SERVICES,CUSTOMER & CLIENT RECPTS - EXT,Revenue,CL CONT EXTERNAL RESIDENTIAL,130280720,14-Jul-16,995627,(443.52),THE REGARD PARTNERSHIP,SP0000588
WANDSWORTH COUNCIL,ASC,SOCIAL SERVICES,CUSTOMER & CLIENT RECPTS - EXT,Revenue,CL CONT EXTERNAL RESIDENTIAL,130280720,14-Jul-16,995628,(558.13),THE REGARD PARTNERSHIP,SP0000588
WANDSWORTH COUNCIL,ASC,SOCIAL SERVICES,CUSTOMER & CLIENT RECPTS - EXT,Revenue,CL CONT EXTERNAL RESIDENTIAL,130280720,14-Jul-16,995629,(429.22),THE REGARD PARTNERSHIP,SP0000588
WANDSWORTH COUNCIL,ASC,SOCIAL SERVICES,CUSTOMER & CLIENT RECPTS - EXT,Revenue,CL CONT EXTERNAL RESIDENTIAL,130280720,20-Jul-16,1000946,(337.80),EVERGREEN PARTNERSHIP,SP0000597
WANDSWORTH COUNCIL,ASC,SOCIAL SERVICES,CUSTOMER & CLIENT RECPTS - EXT,Revenue,CL CONT EXTERNAL RESIDENTIAL,130280720,15-Jul-16,996294,(422.25),LAETUS LODGE,SP0000600
WANDSWORTH COUNCIL,ASC,SOCIAL SERVICES,CUSTOMER & CLIENT RECPTS - EXT,Revenue,CL CONT EXTERNAL RESIDENTIAL,130280720,15-Jul-16,996295,(402.25),LAETUS LODGE,SP0000600
WANDSWORTH COUNCIL,ASC,SOCIAL SERVICES,CUSTOMER & CLIENT RECPTS - EXT,Revenue,CL CONT EXTERNAL RESIDENTIAL,130280720,15-Jul-16,996296,(458.00),LAETUS LODGE,SP0000600
WANDSWORTH COUNCIL,ASC,SOCIAL SERVICES,CUSTOMER & CLIENT RECPTS - EXT,Revenue,CL CONT EXTERNAL RESIDENTIAL,130280720,15-Jul-16,996297,(422.25),LAETUS LODGE,SP0000600
WANDSWORTH COUNCIL,ASC,SOCIAL SERVICES,CUSTOMER & CLIENT RECPTS - EXT,Revenue,CL CONT EXTERNAL RESIDENTIAL,130280720,15-Jul-16,996298,(422.25),LAETUS LODGE,SP0000600
WANDSWORTH COUNCIL,ASC,SOCIAL SERVICES,CUSTOMER & CLIENT RECPTS - EXT,Revenue,CL CONT EXTERNAL RESIDENTIAL,130280720,21-Jul-16,1001550,(373.99),MENCAP,SP0000604
WANDSWORTH COUNCIL,ASC,SOCIAL SERVICES,CUSTOMER & CLIENT RECPTS - EXT,Revenue,CL CONT EXTERNAL RESIDENTIAL,130280720,21-Jul-16,1001552,(373.99),MENCAP,SP0000604
WANDSWORTH COUNCIL,ASC,SOCIAL SERVICES,CUSTOMER & CLIENT RECPTS - EXT,Revenue,CL CONT EXTERNAL RESIDENTIAL,130280720,22-Jul-16,1002682,(337.80),METROPOLITAN HOUSING TRUST,SP0000626
WANDSWORTH COUNCIL,ASC,SOCIAL SERVICES,CUSTOMER & CLIENT RECPTS - EXT,Revenue,CL CONT EXTERNAL RESIDENTIAL,130280720,22-Jul-16,1002683,(522.80),METROPOLITAN HOUSING TRUST,SP0000626
WANDSWORTH COUNCIL,ASC,SOCIAL SERVICES,CUSTOMER & CLIENT RECPTS - EXT,Revenue,CL CONT EXTERNAL RESIDENTIAL,130280720,22-Jul-16,1002684,(321.80),METROPOLITAN HOUSING TRUST,SP0000626
WANDSWORTH COUNCIL,ASC,SOCIAL SERVICES,CUSTOMER & CLIENT RECPTS - EXT,Revenue,CL CONT EXTERNAL RESIDENTIAL,130280720,22-Jul-16,1002685,(400.60),METROPOLITAN HOUSING TRUST,SP0000626
WANDSWORTH COUNCIL,ASC,SOCIAL SERVICES,CUSTOMER & CLIENT RECPTS - EXT,Revenue,CL CONT EXTERNAL RESIDENTIAL,130280720,22-Jul-16,1002687,(400.60),METROPOLITAN HOUSING TRUST,SP0000626
WANDSWORTH COUNCIL,ASC,SOCIAL SERVICES,CUSTOMER & CLIENT RECPTS - EXT,Revenue,CL CONT EXTERNAL RESIDENTIAL,130280720,22-Jul-16,1002690,(337.80),METROPOLITAN HOUSING TRUST,SP0000626
WANDSWORTH COUNCIL,ASC,SOCIAL SERVICES,CUSTOMER & CLIENT RECPTS - EXT,Revenue,CL CONT EXTERNAL RESIDENTIAL,130280720,22-Jul-16,1002691,(522.80),METROPOLITAN HOUSING TRUST,SP0000626
WANDSWORTH COUNCIL,ASC,SOCIAL SERVICES,CUSTOMER & CLIENT RECPTS - EXT,Revenue,CL CONT EXTERNAL RESIDENTIAL,130280720,22-Jul-16,1002692,(321.80),METROPOLITAN HOUSING TRUST,SP0000626
WANDSWORTH COUNCIL,ASC,SOCIAL SERVICES,CUSTOMER & CLIENT RECPTS - EXT,Revenue,CL CONT EXTERNAL RESIDENTIAL,130280720,22-Jul-16,1002695,(337.80),METROPOLITAN HOUSING TRUST,SP0000626
WANDSWORTH COUNCIL,ASC,SOCIAL SERVICES,CUSTOMER & CLIENT RECPTS - EXT,Revenue,CL CONT EXTERNAL RESIDENTIAL,130280720,25-Jul-16,1004007,(344.78),SUSSEX AUTISTIC COMMUNITY TRUST(CARE SER,SP0000652
WANDSWORTH COUNCIL,ASC,SOCIAL SERVICES,CUSTOMER & CLIENT RECPTS - EXT,Revenue,CL CONT EXTERNAL RESIDENTIAL,130280720,26-Jul-16,1004348,(356.28),SUSSEX AUTISTIC COMMUNITY TRUST(CARE SER,SP0000652
WANDSWORTH COUNCIL,ASC,SOCIAL SERVICES,CUSTOMER & CLIENT RECPTS - EXT,Revenue,CL CONT EXTERNAL RESIDENTIAL,130280720,18-Jul-16,998398,(321.80),LIVABILITY,SP0000669
WANDSWORTH COUNCIL,ASC,SOCIAL SERVICES,CUSTOMER & CLIENT RECPTS - EXT,Revenue,CL CONT EXTERNAL RESIDENTIAL,130280720,15-Jul-16,996222,(958.72),LOVING CARE LTD,SP0000670
WANDSWORTH COUNCIL,ASC,SOCIAL SERVICES,CUSTOMER & CLIENT RECPTS - EXT,Revenue,CL CONT EXTERNAL RESIDENTIAL,130280720,15-Jul-16,996223,"(1,030.11)",LOVING CARE LTD,SP0000670
WANDSWORTH COUNCIL,ASC,SOCIAL SERVICES,CUSTOMER & CLIENT RECPTS - EXT,Revenue,CL CONT EXTERNAL RESIDENTIAL,130280720,15-Jul-16,996224,(796.24),LOVING CARE LTD,SP0000670
WANDSWORTH COUNCIL,ASC,SOCIAL SERVICES,CUSTOMER & CLIENT RECPTS - EXT,Revenue,CL CONT EXTERNAL RESIDENTIAL,130280720,15-Jul-16,996225,(780.37),LOVING CARE LTD,SP0000670
WANDSWORTH COUNCIL,ASC,SOCIAL SERVICES,CUSTOMER & CLIENT RECPTS - EXT,Revenue,CL CONT EXTERNAL RESIDENTIAL,130280720,15-Jul-16,996293,"(2,880.00)",LOVING CARE LTD,SP0000670
WANDSWORTH COUNCIL,ASC,SOCIAL SERVICES,CUSTOMER & CLIENT RECPTS - EXT,Revenue,CL CONT EXTERNAL RESIDENTIAL,130280720,15-Jul-16,996310,"(1,030.11)",LOVING CARE LTD,SP0000670
WANDSWORTH COUNCIL,ASC,SOCIAL SERVICES,CUSTOMER & CLIENT RECPTS - EXT,Revenue,CL CONT EXTERNAL RESIDENTIAL,130280720,15-Jul-16,996312,"(12,037.68)",LOVING CARE LTD,SP0000670
WANDSWORTH COUNCIL,ASC,SOCIAL SERVICES,CUSTOMER & CLIENT RECPTS - EXT,Revenue,CL CONT EXTERNAL RESIDENTIAL,130280720,14-Jul-16,995389,(522.80),WHITMORE VALE HOUSING ASSOCIATION LTD,SP0000694
WANDSWORTH COUNCIL,ASC,SOCIAL SERVICES,CUSTOMER & CLIENT RECPTS - EXT,Revenue,CL CONT EXTERNAL RESIDENTIAL,130280720,21-Jul-16,1001427,(373.99),THE MANOR HOUSE,SP0000728
WANDSWORTH COUNCIL,ASC,SOCIAL SERVICES,CUSTOMER & CLIENT RECPTS - EXT,Revenue,CL CONT EXTERNAL RESIDENTIAL,130280720,21-Jul-16,1001524,(578.81),RALEIGH HOUSE LTD,SP0000760
WANDSWORTH COUNCIL,ASC,SOCIAL SERVICES,CUSTOMER & CLIENT RECPTS - EXT,Revenue,CL CONT EXTERNAL RESIDENTIAL,130280720,28-Jul-16,1006415,(361.05),WHITE ROSE CARE,SP0000780
WANDSWORTH COUNCIL,ASC,SOCIAL SERVICES,CUSTOMER & CLIENT RECPTS - EXT,Revenue,CL CONT EXTERNAL RESIDENTIAL,130280720,28-Jul-16,1006416,(361.05),WHITE ROSE CARE,SP0000780
WANDSWORTH COUNCIL,ASC,SOCIAL SERVICES,CUSTOMER & CLIENT RECPTS - EXT,Revenue,CL CONT EXTERNAL RESIDENTIAL,130280720,25-Jul-16,1004021,(321.80),GLENCARE GROUP,SP0000791
WANDSWORTH COUNCIL,ASC,SOCIAL SERVICES,CUSTOMER & CLIENT RECPTS - EXT,Revenue,CL CONT EXTERNAL RESIDENTIAL,130280720,12-Jul-16,993655,(337.81),GLENCARE GROUP,SP0000791
WANDSWORTH COUNCIL,ASC,SOCIAL SERVICES,CUSTOMER & CLIENT RECPTS - EXT,Revenue,CL CONT EXTERNAL RESIDENTIAL,130280720,12-Jul-16,993656,(506.88),GLENCARE GROUP,SP0000791
WANDSWORTH COUNCIL,ASC,SOCIAL SERVICES,CUSTOMER & CLIENT RECPTS - EXT,Revenue,CL CONT EXTERNAL RESIDENTIAL,130280720,12-Jul-16,993657,(337.80),GLENCARE GROUP,SP0000791
WANDSWORTH COUNCIL,ASC,SOCIAL SERVICES,CUSTOMER & CLIENT RECPTS - EXT,Revenue,CL CONT EXTERNAL RESIDENTIAL,130280720,12-Jul-16,993663,(321.80),FREEWAYS TRUST LTD,SP0000793
WANDSWORTH COUNCIL,ASC,SOCIAL SERVICES,CUSTOMER & CLIENT RECPTS - EXT,Revenue,CL CONT EXTERNAL RESIDENTIAL,130280720,07-Jul-16,990182,(400.60),UNITED RESPONSE,SP0000797
WANDSWORTH COUNCIL,ASC,SOCIAL SERVICES,CUSTOMER & CLIENT RECPTS - EXT,Revenue,CL CONT EXTERNAL RESIDENTIAL,130280720,27-Jul-16,1005556,(337.80),PROSPECTS,SP0000800
WANDSWORTH COUNCIL,ASC,SOCIAL SERVICES,CUSTOMER & CLIENT RECPTS - EXT,Revenue,CL CONT EXTERNAL RESIDENTIAL,130280720,01-Jul-16,985108,(337.80),PROSPECTS,SP0000800
WANDSWORTH COUNCIL,ASC,SOCIAL SERVICES,CUSTOMER & CLIENT RECPTS - EXT,Revenue,CL CONT EXTERNAL RESIDENTIAL,130280720,21-Jul-16,1001528,(400.60),CHATSWORTH CARE,SP0000831
WANDSWORTH COUNCIL,ASC,SOCIAL SERVICES,CUSTOMER & CLIENT RECPTS - EXT,Revenue,CL CONT EXTERNAL RESIDENTIAL,130280720,21-Jul-16,1001529,(405.66),CHATSWORTH CARE,SP0000831
WANDSWORTH COUNCIL,ASC,SOCIAL SERVICES,CUSTOMER & CLIENT RECPTS - EXT,Revenue,CL CONT EXTERNAL RESIDENTIAL,130280720,14-Jul-16,995625,(400.60),CHATSWORTH CARE,SP0000831
WANDSWORTH COUNCIL,ASC,SOCIAL SERVICES,CUSTOMER & CLIENT RECPTS - EXT,Revenue,CL CONT EXTERNAL RESIDENTIAL,130280720,14-Jul-16,995379,(368.50),FIRCROFT,SP0000840
WANDSWORTH COUNCIL,ASC,SOCIAL SERVICES,CUSTOMER & CLIENT RECPTS - EXT,Revenue,CL CONT EXTERNAL RESIDENTIAL,130280720,21-Jul-16,1001551,(373.99),ROYAL MENCAP SOCIETY,SP0000842
WANDSWORTH COUNCIL,ASC,SOCIAL SERVICES,CUSTOMER & CLIENT RECPTS - EXT,Revenue,CL CONT EXTERNAL RESIDENTIAL,130280720,07-Jul-16,989499,(337.80),ROYAL MENCAP SOCIETY,SP0000842
WANDSWORTH COUNCIL,ASC,SOCIAL SERVICES,CUSTOMER & CLIENT RECPTS - EXT,Revenue,CL CONT EXTERNAL RESIDENTIAL,130280720,07-Jul-16,989500,(337.80),ROYAL MENCAP SOCIETY,SP0000842
